Workbook

Sheet Title Page
A1: U.S. EPA Office of Ground Water and Drinking Water
A2: Work Breakdown Structure (WBS) Model for Adsorption Treatment
A3: Release Date: March 2023
A4: · The primary purpose of this model is to assist EPA in estimating national compliance costs.
A5: · As such, the costs are intended to be representative of the central tendency of typical facilities.
A6: · The default settings, however, do not account for all of the site-specific factors that could affect the cost of any given individual facility or project.
A7: · Still, other uses of the model might be reasonable if sufficient care is taken by the user to account for site- or project-specific factors.
A8: · The model results are point estimates shown to the nearest $1, but this precision is not meant to imply that the results are accurate to $1.
A9: · Instead, users should review all documentation, modify inputs/assumptions as appropriate to their specific purpose, and form their own informed opinions about the accuracy and suitability of the results.
A10: · Use of this model requires Excel 2007 or later.
A11: · The model should be opened as Read-only, so that any changes you make are saved under a new file name.
A12: · To function properly, macros ("active content") must be enabled. If a security warning appears, click "options" and "enable this content."
A13: · For further information see the following document distributed with this file:
A14: USEPA. 2023. Work Breakdown Structure-Based Cost Model for Adsorption Drinking Water Treatment. Office of Water.
A15: · To begin using the model, go to the INPUT sheet.

Sheet Index
A1: INDEX
A2: This page provides an index to all user-adjustable inputs and assumptions. Click on a variable name to go directly to the adjustable cells.
A4: User-adjustable Input or Assumption | B4: Variable Name and Link
A5: Access space per pump for custom designed systems | B5: space_pumps_cust
A6: Access space per pump for pre-engineered packages | B6: space_pumps_pre
A7: Add coagulant to holding tank/basin? | B7: coag_res
A8: Add ferric chloride to neutralization tank? | B8: coag_res_n
A9: Additional building after… | B9: add_2nd_building
A10: Additional distance to discharge or recycle point if backwash and regenerant managed differently | B10: add_res_pipe_length2
A11: Additional freeboard | B11: sec_cont_freeboard
A12: Additional pH meters | B12: add_pH_controls
A13: Additional pH meters for small systems | B13: add_pH_controls_small
A14: Additional sampling ports | B14: add_ports
A15: Additional turbitidy meters | B15: add_turb
A16: Additional turbitidy meters for small systems | B16: add_turb_small
A17: Air conditioner | B17: cooling
A18: Alkalinity as CaCO3 | B18: alk_I
A19: Always include NEPA compliance costs? | B19: include_NEPA
A20: Amount of acid | B20: hcl_yr
A21: Amount of sodium hydroxide | B21: naoh_yr
A22: Annual Administrative LOE | B22: Clerical_LOE
A23: Annual Manager LOE | B23: Manager_LOE
A24: Annual media loss | B24: media_loss_annual
A25: Annual Operator LOE | B25: Operator_LOE
A26: Apply POTW discharge base charge (i.e., $/month) | B26: POTW_base_fee
A27: Apply POTW discharge TSS charge (i.e., $/lb of TSS over limit below) | B27: POTW_TSS_fee
A28: Apply POTW discharge volume charge (i.e., $/1000 gallons) | B28: POTW_volume_fee
A29: Average annual pan evaporation rate | B29: pan_evap
A30: Average annual precipitation | B30: precip
A31: Average Flow (including bypass) | B31: average_flow_I
A32: Backwash pipe length multiplier | B32: back_pipe_mult
A33: Backwash Pumping | B33: no_backwash_I
A34: Backwash Storage | B34: no_back_tank_I
A35: Backwashes per year | B35: backwash_yr
A36: Basin excavation depth above which deeper boreholes are needed | B36: deep_bore_need
A37: Bed depth | B37: bed_depth
A38: Bedding depth below pipe | B38: bedding_depth
A39: Bedding depth surrounding the pipe | B39: bedding_pct
A40: Booster pump materials | B40: pump_mtl
A41: Booster pump operating horsepower | B41: pump_energy_hp
A42: Borehole depth for deep basins | B42: bore_depth_max
A43: Borehole depth for shallow basins | B43: bore_depth_min
A44: Borehole depth without basins | B44: bore_depth_nobasin
A45: Borehole needed every x square feet | B45: hole_per_sf
A46: Boreholes per job | B46: hole_per_job
A47: Builder's risk insurance percentage | B47: br_ins_pct
A48: Bypass pipe length multiplier | B48: bp_pipe_mult
A49: Characteristics of evaporation pond or holding tank solids | B49: solids_haz_I
A50: Characteristics of neutralization tank solids | B50: rsolids_haz_I
A51: Characteristics of spent media | B51: media_haz_I
A52: Chemical pipe length multiplier | B52: chem_pipe_mult
A53: Chemical resistant coating coverage | B53: sec_cont_coating_cvg
A54: Chemical storage height | B54: storage_height
A55: Chemical tank mixer horsepower | B55: cmix_hp_per
A56: City Index for Total Capital Cost | B56: City_Index
A57: City Index for Total O&M Cost | B57: OM_City_Index
A58: Clean holding tank/basin when solids accumulation =x% of capacity | B58: htank_clean_pct
A59: Clean neutralization tanks when solids accumulation =x% of capacity | B59: ntank_clean_pct
A60: Clearance space beneath the ceiling | B60: ceiling_clearance
A61: Coefficient of passive pressure | B61: Coeff_Kp
A62: Component level | B62: component_level_I
A63: Computer workstations per x operators | B63: workstation_ratio
A64: Concrete pad thickness | B64: pad_thick
A65: Concrete pad thickness for small systems | B65: pad_thick_small
A66: Concrete thickness for holding basins | B66: conc_thick
A67: Contaminant concentration | B67: cont_conc
A68: Cooling table for buildings 500 square feet or greater | B68: cooling_table
A69: Cooling table for buildings less than 500 ft2 | B69: cooling_table_shed
A70: Cost estimating method | B70: curve
A71: Days of chemical storage | B71: cstore_days
A72: Days of winter (i.e., days of storage during periods with no net evaporation) | B72: winter_days
A73: Default number of lines per pump | B73: lines_pump_default
A74: Default number of residuals basins | B74: hbasins_default
A75: Design Flow (including bypass) | B75: design_flow_I
A76: Design safety factor for standby power | B76: std_safety_factor
A77: Diameter | B77: comm_diam
A78: Discharge option for spent backwash | B78: res_s2_opt_I
A79: Discharge option for spent regenerant | B79: res_reg_opt_I
A80: Disposal method for non-hazardous secondary solids | B80: solids_method
A81: Distance between drain field trenches | B81: sept_trench_dist
A82: Distance to discharge or recycle point | B82: add_res_pipe_length
A83: Drive controllers per backwash pump | B83: S_back_pump
A84: Drive controllers per booster pump | B84: S_booster_pump
A85: Drive controllers per chemical metering pump (acid and caustic) | B85: S_cm_pump
A86: Drive controllers per chemical pump for regeneration (acid and caustic) | B86: S_chem_pump
A87: Drive controllers per eductor | B87: S_eductor
A88: Drive controllers per mixer | B88: S_mixer
A89: Drive controllers per residuals pump | B89: S_res_pump
A90: Drive controllers per slurry pump system | B90: S_slurry
A91: Electric resistance | B91: heating
A92: Electrical percentage | B92: elect_pct
A93: Energy for all active booster pumps | B93: pump_energy
A94: Engineering percentage for large systems | B94: eng_pct_large
A95: Engineering percentage for medium systems | B95: eng_pct_medium
A96: Engineering percentage for small systems | B96: eng_pct_small
A97: Ethernet modules | B97: plc_ethernet
A98: Evaporation pond dike cross-sectional area | B98: dike_xsection
A99: Evaporation pond freeboard | B99: ep_freeboard
A100: Evaporation pond safety factor | B100: ep_safety_factor
A101: Evaporation pond solids density | B101: ep_solids_density
A102: Evaporation pond solids removal frequency | B102: dredging_freq
A103: Evaporation ratio | B103: evap_ratio
A104: Ferric chloride dosage for holding tank/basin | B104: coag_dose
A105: Ferric chloride dosage for neutralization tank | B105: coag_dose_n
A106: Ferric chloride sludge production factor for holding tank/basin | B106: coag_spf
A107: Ferric chloride sludge production factor for neutralization tank | B107: coag_spf_n
A108: Ferric chloride solution concentration | B108: coag_pct
A109: Ferric chloride solution density | B109: coag_density
A110: Financing percentage | B110: finance_pct
A111: Financing percentage for small systems | B111: finance_pct_small
A112: Fire Buffer for Buildings | B112: fire_buffer
A113: Flow equalization for spent backwash | B113: res_s1_opt_I
A114: Flow meters for backwash line | B114: tot_fm_back
A115: Flow meters for influent and treated water line | B115: tot_fm_in
A116: Flow meters for process line per vessel | B116: fm_proc
A117: Flow meters for residuals line | B117: tot_fm_res
A118: Free board above media at full expansion | B118: free_board
A119: Frost depth | B119: frost
A120: General Operator Labor | B120: General_Oper_Labor
A121: H2SO4 molecular weight | B121: molwt_H2SO4
A122: HCl molecular weight | B122: molwt_HCl
A123: HCl quantity to trigger RMP requirement | B123: HCl_quant_RMP
A124: HCl strength to trigger RMP requirement | B124: HCl_strength_RMP
A125: Head loss sensors per vessel | B125: head_tank
A126: Head loss sensors per vessel for small systems | B126: head_tank_small
A127: Heat pump | B127: heating_hp
A128: Heat pump | B128: cooling_hp
A129: Heating table for buildings 500 square feet or greater | B129: heating_table
A130: Heating table for buildings less than 500 ft2 | B130: heating_table_shed
A131: Height (straight) or Length (straight) | B131: comm_height_length
A132: High/Low alarms per backwash tank | B132: alarm_back
A133: High/Low alarms per caustic/acid tank | B133: alarm_chem
A134: High/Low alarms per holding tank/basin | B134: alarm_res
A135: Holding basin depth to volume ratio | B135: holding_ratio
A136: Holding basin freeboard | B136: holding_freeboard
A137: Holding tank/basin capacity safety factor | B137: res_cap_factor
A138: Holding tank/basin mixer horsepower (if coagulant is used) | B138: hmix_hp_per
A139: Holding tank/basin solids density | B139: ht_solids_density
A140: Holding tank/basin suspended solids removal efficiency with coagulant | B140: coag_TSSrem
A141: Holding tank/basin suspended solids removal efficiency without coagulant | B141: htank_TSSrem
A142: I/O port table | B142: port_table
A143: Include a separate day tank if daily volume is x or greater | B143: day_tank_needed
A144: Include architectural fee for small systems? | B144: include_arch_small
A145: Include architectural fee? | B145: include_arch
A146: Include buildings? | B146: include_buildings_I
A147: Include concrete pad in total capital cost? | B147: include_pad
A148: Include construction management cost for pre-engineered packages? | B148: include_cm_pre
A149: Include construction management cost? | B149: include_cm
A150: Include contingency costs for high cost systems? | B150: include_conting_high
A151: Include contingency costs for low cost systems? | B151: include_conting_low
A152: Include contingency costs for medium cost systems? | B152: include_conting_medium
A153: Include cooling in standby power | B153: need_cool
A154: Include geotechnical costs for high cost systems? | B154: include_geo_high
A155: Include geotechnical costs for low cost systems? | B155: include_geo_low
A156: Include geotechnical costs for medium cost systems? | B156: include_geo_medium
A157: Include heating in standby power | B157: need_heat
A158: Include HVAC? | B158: include_HVAC_I
A159: Include land? | B159: include_land_I
A160: Include mixers for chemical tanks | B160: include_cmix
A161: Include performance bond cost? | B161: include_bond
A162: Include permit costs? | B162: include_permits
A163: Include pilot study costs? | B163: include_pilot
A164: Include secondary containment | B164: include_sec_cont
A165: Include sitework costs? | B165: include_sitework
A166: Include standby power costs for small systems? | B166: include_standby_small
A167: Include standby power costs? | B167: include_standby
A168: Include yard piping costs? | B168: include_yardpipe
A169: Influent and treated water pipe length multiplier | B169: in_out_pipe_mult
A170: Influent pH Adjustment? | B170: pH_adj
A171: Influent water temperature | B171: t_I
A172: Influent water total dissolved solids | B172: TDS_I
A173: Installation, Transportatation, and O&P percentage | B173: inst_pct
A174: Instrumentation and control percentage | B174: i_c_pct
A175: Interval between backwashes | B175: back_interval_I
A176: Legal percentage | B176: legal_pct
A177: Level switch/alarms per vessel | B177: level_switch
A178: Level switch/alarms per vessel for small systems | B178: level_switch_small
A179: Lighting | B179: lighting
A180: Lighting power per sf, building 1 | B180: lighting_energy_1
A181: Lighting power per sf, building 2 | B181: lighting_energy_2
A182: Linear feet bored per day | B182: hole_per_day
A183: Long term acceptance rate | B183: sept_LTAR
A184: Maximum access space per vessel or tank for custom designed systems | B184: max_space_vessels_cust
A185: Maximum access space per vessel or tank for pre-engineered systems | B185: max_space_vessels_pre
A186: Maximum curb thickness | B186: sec_cont_max_thick
A187: Maximum distribution pipe connections per distribution box | B187: sept_dist_connections
A188: Maximum evaporation pond cell area | B188: max_ep_cell_area
A189: Maximum hazardous waste shipment size | B189: max_haz_ship
A190: Maximum liquid hazardous waste shipment size | B190: max_lhaz_ship
A191: Maximum radioactive (non-hazardous) waste shipment size | B191: max_rad_ship
A192: Maximum radioactive hazardous waste shipment size | B192: max_hazrad_ship
A193: Maximum septic drain field trench length | B193: sept_max_trench_l
A194: Maximum vessel diameter | B194: max_diam_override
A195: Maximum vessel height (vertical vessels) | B195: max_height
A196: Maximum vessel length (longitudinal vessels) | B196: max_length
A197: Media changeouts per year | B197: media_changes
A198: Media loss replacement | B198: media_loss_vol_annual
A199: Media regeneration or throwaway operation? | B199: throwaway_I
A200: Media useful life when regenerated (if expressed in number of regenerations) | B200: max_regen
A201: Media useful life when regenerated (if expressed in years) | B201: media_life
... 139 more rows

Sheet INPUT
A1: ADSORPTIVE MEDIA SYSTEM DESIGN AND COST INPUT
E3: STEP 1
E4: Select Adsorptive Media Type | I4: =IF(media_type=7,"For Alternative Media, the buttons shown in Step 2 will enter flows only, and clear all other inputs. Advanced users can change this behavior by entering inputs on the Standard Inputs sheet","") -> 
I5: =IF(media_type=7,"Assumptions for the alternative media must be set on the Adsorptive Media Assumptions page. Click here to adjust media assumptions","Click here to adjust media assumptions") -> Click here to adjust media assumptions
E6: STEP 2: | H6: =IF(OR('Standard Inputs'!AM8,'Standard Inputs'!AM16,'Standard Inputs'!AM24,'Standard Inputs'!AM32,'Standard Inputs'!AM40,'Standard Inputs'!AM48,'Standard Inputs'!AM56),"<- Using this design",IF(OR('Standard Inputs'!AN8,'Standard Inputs'!AN16,'Standard Inputs'!AN24,'Standard Inputs'!AN32,'Standard Inputs'!AN40,'Standard Inputs'!AN48,'Standard Inputs'!AN56),"<- You modified this design","")) -> <- Using this design | I6: The standard design buttons are for EPA's use in estimating national costs, but other users might find them useful as a starting point. See documentation for more information
E7: Select one of the eight standard designs at right OR select "CLEAR FOR MANUAL ENTRY" | H7: =IF(OR('Standard Inputs'!AM9,'Standard Inputs'!AM17,'Standard Inputs'!AM25,'Standard Inputs'!AM33,'Standard Inputs'!AM41,'Standard Inputs'!AM49,'Standard Inputs'!AM57),"<- Using this design",IF(OR('Standard Inputs'!AN9,'Standard Inputs'!AN17,'Standard Inputs'!AN25,'Standard Inputs'!AN33,'Standard Inputs'!AN41,'Standard Inputs'!AN49,'Standard Inputs'!AN57),"<- You modified this design","")) -> 
H8: =IF(OR('Standard Inputs'!AM10,'Standard Inputs'!AM18,'Standard Inputs'!AM26,'Standard Inputs'!AM34,'Standard Inputs'!AM42,'Standard Inputs'!AM50,'Standard Inputs'!AM58),"<- Using this design",IF(OR('Standard Inputs'!AN10,'Standard Inputs'!AN18,'Standard Inputs'!AN26,'Standard Inputs'!AN34,'Standard Inputs'!AN42,'Standard Inputs'!AN50,'Standard Inputs'!AN58),"<- You modified this design","")) -> 
H9: =IF(OR('Standard Inputs'!AM11,'Standard Inputs'!AM19,'Standard Inputs'!AM27,'Standard Inputs'!AM35,'Standard Inputs'!AM43,'Standard Inputs'!AM51,'Standard Inputs'!AM59),"<- Using this design",IF(OR('Standard Inputs'!AN11,'Standard Inputs'!AN19,'Standard Inputs'!AN27,'Standard Inputs'!AN35,'Standard Inputs'!AN43,'Standard Inputs'!AN51,'Standard Inputs'!AN59),"<- You modified this design","")) -> 
H10: =IF(OR('Standard Inputs'!AM12,'Standard Inputs'!AM20,'Standard Inputs'!AM28,'Standard Inputs'!AM36,'Standard Inputs'!AM44,'Standard Inputs'!AM52,'Standard Inputs'!AM60),"<- Using this design",IF(OR('Standard Inputs'!AN12,'Standard Inputs'!AN20,'Standard Inputs'!AN28,'Standard Inputs'!AN36,'Standard Inputs'!AN44,'Standard Inputs'!AN52,'Standard Inputs'!AN60),"<- You modified this design","")) -> 
H11: =IF(OR('Standard Inputs'!AM13,'Standard Inputs'!AM21,'Standard Inputs'!AM29,'Standard Inputs'!AM37,'Standard Inputs'!AM45,'Standard Inputs'!AM53,'Standard Inputs'!AM61),"<- Using this design",IF(OR('Standard Inputs'!AN13,'Standard Inputs'!AN21,'Standard Inputs'!AN29,'Standard Inputs'!AN37,'Standard Inputs'!AN45,'Standard Inputs'!AN53,'Standard Inputs'!AN61),"<- You modified this design","")) -> 
H12: =IF(OR('Standard Inputs'!AM14,'Standard Inputs'!AM22,'Standard Inputs'!AM30,'Standard Inputs'!AM38,'Standard Inputs'!AM46,'Standard Inputs'!AM54,'Standard Inputs'!AM62),"<- Using this design",IF(OR('Standard Inputs'!AN14,'Standard Inputs'!AN22,'Standard Inputs'!AN30,'Standard Inputs'!AN38,'Standard Inputs'!AN46,'Standard Inputs'!AN54,'Standard Inputs'!AN62),"<- You modified this design","")) -> 
H13: =IF(OR('Standard Inputs'!AM15,'Standard Inputs'!AM23,'Standard Inputs'!AM31,'Standard Inputs'!AM39,'Standard Inputs'!AM47,'Standard Inputs'!AM55,'Standard Inputs'!AM63),"<- Using this design",IF(OR('Standard Inputs'!AN15,'Standard Inputs'!AN23,'Standard Inputs'!AN31,'Standard Inputs'!AN39,'Standard Inputs'!AN47,'Standard Inputs'!AN55,'Standard Inputs'!AN63),"<- You modified this design","")) -> 
H14: =IF(COUNTIF(H6:H13,"")=16,"Using a manual design","") ->  | I14: =IF(COUNTIF(H6:H13,"")=16,"Fill in all gold cells below, then consider using AutoSize button","") -> 
E15: STEP 3:
E16: (Optional for standard designs) | G16: =IF(input_complete,IF('Standard Inputs'!AM66,"Input Complete -- Results Ready","Input Complete -- Press 'Generate Results'"),"Input Incomplete -- Check for Error Messages Below") -> Input Complete -- Results Ready | I16: =IF(input_complete,"","Fill in all gold cells below. If errors persist, consider using AutoSize button.") -> 
C17: =IF(AND(H32="Flow input ok",H38="pH adjustment input ok",H44="regeneration input ok",C58,C59,C60,C61,C63,H74="residuals input ok",H91="optional inputs ok"),TRUE,FALSE) -> TRUE | E17: Enter or change values in the gold and blue cells below, under "Manual Inputs"
E19: STEP 4: | I19: ="Resulting Costs (in year "&TEXT(current_year_cl,0)&" dollars, see OUTPUT sheet for details)" -> Resulting Costs (in year 2021 dollars, see OUTPUT sheet for details)
E20: =IF(G16="input complete -- results ready","Results are ready (no need to click button)","Click here to generate results -->") -> Results are ready (no need to click button) | I20: ="Direct Capital Cost: "&IF(input_status<>"Input Complete -- Results Ready",input_status,IF(Missing_Cost,"Missing cost!",IF(cost_buildup_error,"Cost buildup error!",IF(ISERROR(direct_cost),"Calculation error!",TEXT(direct_cost,"$0,0"))))) -> Direct Capital Cost: $62,729
I21: ="Total Capital Cost: "&IF(input_status<>"Input Complete -- Results Ready",input_status,IF(Missing_Cost,"Missing cost!",IF(cost_buildup_error,"Cost buildup error!",IF(ISERROR(system_cost),"Calculation error!",TEXT(system_cost,"$0,0"))))) -> Total Capital Cost: $113,747
I22: ="Annualized Capital Cost: "&IF(input_status<>"Input Complete -- Results Ready",input_status,IF(Missing_Cost,"Missing Price!",IF(cost_buildup_error,"Cost buildup error!",IF(ISERROR(Annualized_Capital_Cost),"Calculation error!",TEXT(Annualized_Capital_Cost,"$0,0")&" per year"&" (over "&useful_life&" years at "&Discount_rate*100&"%)")))) -> Annualized Capital Cost: $11,440 per year (over 17.6 years at 7%)
I23: ="Annual O&M Cost: "&IF(input_status<>"Input Complete -- Results Ready", input_status,IF(ISERROR(OM_cost),"Calculation error!",TEXT(OM_cost,"$0,0")&" per year")) -> Annual O&M Cost: $23,441 per year
E24: MANUAL INPUTS | I24: ="Total Annualized Cost: "&IF(input_status<>"Input Complete -- Results Ready",input_status,IF(Missing_Cost,"Missing Price!",IF(cost_buildup_error,"Cost buildup error!",IF(ISERROR(Annualized_Cost),"Calculation error!",TEXT(Annualized_Cost,"$0,0")&" per year ("&TEXT(TAC_pct_cap,"0%")&" capital, "&TEXT(TAC_pct_OM,"0%")&" O&M)")))) -> Total Annualized Cost: $34,881 per year (33% capital, 67% O&M)
E25: Cells in gold are required; cells in blue are optional | I25: =IF(input_status="Input Incomplete -- check for error messages below","",IF(Missing_Cost,"A price is not available for at least one required component. See Use? column on OUTPUT sheet.",IF(cost_buildup_error,"There is an Excel error in the price for at least one component. Please see the Use? column on OUTPUT sheet.",""))) -> 
H26: Select units
E27: Design Flow (including bypass) | F27: design_flow_I | G27: 0.03 | H27: MGD
E28: Average Flow (including bypass) | F28: average_flow_I | G28: 0.007 | H28: MGD
E29: For information:
E30: Treatment system design flow | G30: =IF(ISERROR(design_flow),"",IF(df_units="gpm",design_flow_rate, design_flow)) -> 0.03 | H30: =IF(df_units="","",df_units) -> MGD
E31: Bypass design flow | G31: =IF(ISERROR(design_flow),"",IF(df_units="gpm",bp_flow_rate, bp_flow_rate*60*24/10^6)) -> 0 | H31: =IF(df_units="","",df_units) -> MGD | I31: ="Current bypass percentage is "&TEXT(bp_pct,"0%")&". Go to Critical Design Assumptions to change this value." -> Current bypass percentage is 0%. Go to Critical Design Assumptions to change this value.
C32: =IF(H32="flow input ok",TRUE) -> TRUE | H32: =IF(OR(df_units="",af_units=""),"Choose units for design and average flow",IF(average_flow>design_flow,"The average flow should not be greater than the design flow",IF(OR(design_flow_I=0,average_flow_I=0),"Input incomplete",IF(average_flow_I<design_flow_I*min_avg_flow,"The average flow must be at least " & min_avg_flow & " times design flow","Flow Input OK")))) -> Flow Input OK | I32: Adjust bypass percentage
E34: Influent pH Adjustment? | F34: pH_adj | G34: yes | H34: <-- enter yes or no | I34: =VLOOKUP("ph_adj",input_guidance_table,media_type+1,FALSE) -> 
E35: Treated water corrosion control? | F35: corr_cont | G35: yes | H35: =IF(pH_adj="no","not required","<-- enter yes or no") -> <-- enter yes or no
E36: Original pH | F36: pHo | G36: 7.5 | H36: =IF(pH_adj="no","not required","SU") -> SU
E37: Alkalinity as CaCO3 | F37: alk_I | G37: 100 | H37: =IF(pH_adj="no","not required","ppm") -> ppm
C38: =IF(H38="pH adjustment input ok",TRUE) -> TRUE | H38: =IF(OR(pH_adj="",AND(pH_adj="yes",corr_cont=""),AND(pH_adj="yes",pHo=""),AND(pH_adj="yes",alk_I=""),AND(corr_cont="yes",alk_I="")),"Input incomplete",IF(AND(pH_adj="yes",pHo<pHf),"Original water pH cannot be < target pH for treatment","pH Adjustment Input OK")) -> pH Adjustment Input OK
H39: =IF(H38="Input incomplete","",IF(AND(pH_adj="yes",pHo<>"",pHo<pHf),"Hint: change pH value on media assumptions sheet","")) -> 
E41: Media regeneration or throwaway operation? | F41: throwaway_I | G41: throwaway | H41: <-- pick one | I41: =VLOOKUP("throwaway",input_guidance_table,media_type+1,FALSE) -> 
E42: ="Number of bed volumes before "&IF(throwaway=1,"media disposal","regeneration") -> Number of bed volumes before media disposal | F42: BV_regen | G42: 23000 | H42: bed volumes | I42: ="Important: bed volumes vary based on water quality and system configuration. Select data for input carefully, based on the scenario being modeled. "&VLOOKUP("bv_regen_I",input_guidance_table,media_type+1,FALSE) -> Important: bed volumes vary based on water quality and system configuration. Select data for input carefully, based on the scenario being modeled. Guidance: Greater than 23,000 BV are reported in the literature with inflow levels of 0.1 mg/L [As (V)].
E43: Type of acid for pH adjustment and/or regeneration | F43: acid_type_I | G43: hydrochloric | H43: =IF(AND(pH_adj="no",throwaway=1),"not required","<-- pick one") -> <-- pick one
C44: =IF(H44="regeneration input ok",TRUE) -> TRUE | H44: =IF(OR(throwaway_I="",BV_regen=0,AND(OR(pH_adj="yes",throwaway=2),acid_type_I="")),"Input incomplete","Regeneration Input OK") -> Regeneration Input OK
E46: Minimum number of vessels in series (i.e., parallel or series operation) | F46: num_tanks_I | G46: 2 | H46: <-- enter 1 for parallel, 2 or more for series | I46: =VLOOKUP("Num_tanks",input_guidance_table,media_type+1,FALSE) -> Guidance: The two vessels are set in series: the first is a roughing vessel and the second is a polishing vessel. The polishing vessel, for all practical purposes, serves as a redundant vessel. Having two vessels in series serves the purpose of treating more water volume than one vessel with similar bed volume.
E47: Theoretical total empty bed contact time (EBCT) | F47: EBCT_I | G47: 10 | H47: minutes | I47: =VLOOKUP("EBCT",input_guidance_table,media_type+1,FALSE) -> For optimal arsenic absorption, vendor recommends a minimum 6 minute EBCT. Pilot tests use EBCT of 5 minutes. Additional vendor suggests 5 to 8 minutes.
E48: For information: EBCT per Vessel | G48: =IF(ISERROR(EBCT_tank),"",EBCT_tank) -> 5 | H48: minutes
B49: yes | C49: <- Autosize Std Inputs | E49: The next four inputs may be entered manually, or calculated with AutoSize button. All other gold inputs must be complete before AutoSizing.
E50: Bed depth | F50: bed_depth | G50: 2.9 | H50: feet | I50: =VLOOKUP("bed_depth",input_guidance_table,media_type+1,FALSE) -> Guidance: typically bed depth ranges between 3 - 5 ft and should not go below 2.5 ft
E51: Vessel geometry | F51: tank_geom_I | G51: upright | H51: <-- pick one
E52: =IF(tank_geom=1,"Height (straight)",IF(tank_geom=2,"Length (straight)","")) -> Height (straight) | F52: comm_height_length | G52: 5 | H52: =IF(tank_geom<>"","feet","") -> feet | I52: =IF(tank_geom=2,"Guidance: 20 to 40 feet, for design flows greater than 2000 gpm","") -> 
E53: Diameter | F53: comm_diam | G53: 2.5 | H53: =IF(tank_geom<>"","feet","") -> feet | I53: =IF(tank_geom=1,"Guidance: 2 - 7 feet for flows <300 gpm; 5 - 10 feet for flows between 300 gpm and 750 gpm; 7 - 12 feet for flows >=750 gpm.",IF(tank_geom=2,"Guidance: 10 - 12 feet for flows greater than 2000 gpm","")) -> Guidance: 2 - 7 feet for flows <300 gpm; 5 - 10 feet for flows between 300 gpm and 750 gpm; 7 - 12 feet for flows >=750 gpm.
E54: For information:
E55: Number of treatment trains | G55: =IF(ISERROR(num_treat_lines),"",num_treat_lines) -> 1 | H55: trains
E56: Number of operating vessels | G56: =IF(ISERROR(op_num_tanks),"",op_num_tanks) -> 2 | H56: vessels
E57: Total vessels (incl. redundancy, below) | G57: =IF(ISERROR(final_num_tanks),"",final_num_tanks) -> 2 | H57: vessels
C58: =IF(H58="bed depth ok",TRUE) -> TRUE | H58: =IF(OR(num_tanks_I="",EBCT_I="",bed_depth="",comm_height_length="",comm_diam="",tank_geom_I=""),"Input incomplete",IF(bed_depth>max_bed_depth,"Warning: bed depth too great",IF(bed_depth>2*comm_diam,"Warning: bed depth should be less than twice the vessel diameter",IF(bed_depth<min_bed_depth,"Warning: bed depth too shallow","Bed Depth OK")))) -> Bed Depth OK | I58: Adjust bed depth constraints
C59: =IF(OR(H59="height ok",H59="length ok"),TRUE) -> TRUE | H59: =IF(H58="Input incomplete","",IF(tank_geom=1,IF(IF(AND(comm_diam>=min_diam,comm_diam<=max_diam_std_size),(OR(comm_height_length>=max_comm_height,comm_height_length>max_height)),comm_height_length>max_height),"Warning: vessel too high",IF(IF(AND(comm_diam>=min_diam,comm_diam<=max_diam_std_size),(AND(comm_height_length>=min_comm_height,comm_height_length>=height)),comm_height_length>=height),"Height OK","Warning: vessel not high enough")),IF(tank_geom=2,IF(comm_height_length>max_length,"Warning: vessel too long","Length OK"),"Invalid tank geometry input"))) -> Height OK | I59: Adjust vessel size constraints
C60: =IF(H60="diameter ok",TRUE) -> TRUE | H60: =IF(H58="Input incomplete","",IF(tank_geom=1,IF(comm_diam>max_diam,"Warning: vessel diameter too great",IF(comm_diam<diameter,"Warning: vessel diameter too small","Diameter OK")),IF(tank_geom=2,IF(comm_diam>max_diam,"Warning: vessel diameter too great",IF(comm_diam>max_height,"Warning: vessel diameter too great",IF(comm_SA<SA,"Warning: vessel surface area too small",IF(comm_diam<height,"Warning: vessel diameter too small","Diameter OK")))),""))) -> Diameter OK
C61: =IF(H61="volume ok",TRUE) -> TRUE | H61: =IF(H58="Input incomplete","",IF(input_vol_vess<media_volume_expanded,"Warning: vessel too small for this bed depth","Volume OK")) -> Volume OK | I61: =IF(ISERROR(vol_vessel),"",IF(input_vol_vess>vol_vessel*(1+vol_tol),CHOOSE(tank_geom,"Note: vessel may be oversized, given media quantity required. Increase bed depth or reduce height.","Note: vessel may be oversized, given media quantity required. Increase bed depth or reduce diameter."),"")) -> 
H62: =IF(H58="Input incomplete","",IF(input_vol_vess<media_volume_expanded,CHOOSE(tank_geom,"Hint: reduce bed depth or increase diameter or height","Hint: reduce bed depth or increase diameter"),"")) -> 
C63: =IF(H63="loading ok",TRUE) -> TRUE | H63: =IF(H58="Input incomplete","",IF(tank_geom=1,IF(comm_load_rate>load_max,"Warning: design exceeds maximum loading",IF(comm_load_rate<load_min,"Warning: design below minimum loading","Loading OK")),IF(comm_load_rate>load_max,"Warning: design exceeds maximum loading",IF(comm_load_rate<load_min,"Warning: design below minimum loading","Loading OK")))) -> Loading OK | I63: Adjust loading constraints
H64: =IF(H58="Input incomplete","",IF(tank_geom=1,IF(comm_load_rate>load_max,"Hint: increase vessel diameter or decrease bed depth",IF(comm_load_rate<load_min,"Hint: reduce vessel diameter or increase bed depth","")),IF(comm_load_rate>load_max,"Hint: increase vessel length and diameter or decrease bed depth",IF(comm_load_rate<load_min,"Hint: reduce vessel length and diameter or increase bed depth","")))) -> 
E66: Interval between backwashes | F66: back_interval_I | G66: 720 | H66: hours | I66: Varies based on water quality. Select data for input carefully, based on the scenario being modeled. Leave blank to assume backwash only at regeneration/media replacement
E67: Discharge option for spent regenerant | F67: res_reg_opt_I | G67: POTW | H67: =IF(throwaway<>1,"<-- pick one","not required") -> not required
E68: Discharge option for spent backwash | F68: res_s2_opt_I | G68: recycle | H68: <-- pick one
E69: Flow equalization for spent backwash | F69: res_s1_opt_I | G69: use neutralization tank | H69: =IF(AND(throwaway=1,res_s2_opt=3),"automatically included",IF(res_s2_opt=4,"not required","<-- pick one")) -> automatically included | I69: =IF(res_s1_opt=1,"Model selects between holding tank or basin based upon coagulant use and priority lookups on the Output sheet","") -> 
E70: Transfer method for spent media | F70: transfer_method_I | G70: manual | H70: <-- pick one
E71: Characteristics of spent media | F71: media_haz_I | G71: non-hazardous | H71: <-- pick one
E72: ="Characteristics of "&IF(res_s2_opt=5,"evaporation pond","holding tank")&" solids" -> Characteristics of holding tank solids | F72: solids_haz_I | G72: non-hazardous | H72: =IF(OR(res_s1_opt=1,AND(throwaway=1,OR(res_s2_opt=3,res_s2_opt=5))),"<-- pick one","not required") -> <-- pick one
E73: Characteristics of neutralization tank solids | F73: rsolids_haz_I | G73: non-hazardous | H73: =IF(throwaway<>1,"<-- pick one","not required") -> not required
C74: =IF(H74="Residuals input ok",TRUE) -> TRUE | H74: =IF(AND(OR(res_reg_opt_I<>"",H67="not required"),res_s2_opt_I<>"",OR(res_s1_opt_I<>"",H69="automatically included",H69="not required"),transfer_method_I<>"",media_haz_I<>"",OR(solids_haz_I<>"",H72="not required"),OR(rsolids_haz_I<>"",H73="not required")),"Residuals Input OK","Input incomplete") -> Residuals Input OK
E76: Number of booster pumps | F76: lines_pump_I | H76: pumps | I76: Enter 0 to exclude booster pumps (i.e., use existing pumps). Leave blank to accept model defaults (no pumps for systems <1 MGD, otherwise sized per average and design flows)
E77: For information: # of booster pumps | G77: =IF(ISERROR(booster_pumps),"",booster_pumps) -> 0 | H77: pumps
E78: Number of redundant vessels to be added | F78: NRD_I | H78: units | I78: Leave blank to accept redundancy frequency specified in critical design assumptions
E79: For information: Redundant vessels | G79: =IF(ISERROR(NRD),"",NRD) -> 0 | H79: units
E80: Backwash Pumping | F80: no_backwash_I | H80: <-- pick or leave blank | I80: Leave blank to accept model defaults (systems <1 MGD backwash using existing supply or treated water pumps, other systems add new backwash pumps)
E81: Backwash Storage | F81: no_back_tank_I | H81: <-- pick or leave blank | I81: Leave blank to accept model defaults (only systems between 1 and 10 MGD require separate backwash tanks)
E82: For information: # of backwash pumps | G82: =IF(ISERROR(backwash_pumps),"",backwash_pumps) -> 0 | H82: units
E83: # of backwash tanks | G83: =IF(ISERROR(num_back_tanks),"",num_back_tanks) -> 0 | H83: units
E84: Component level | F84: component_level_I | H84: <-- pick or leave blank | I84: Leave blank to use low cost components
E85: System automation | F85: manual_I | H85: <-- pick or leave blank | I85: Leave blank to allow model to pick based on component level
E86: Include buildings? | F86: include_buildings_I | H86: <-- pick or leave blank | I86: Leave blank to include buildings
E87: Include HVAC? | F87: include_HVAC_I | H87: <-- pick or leave blank | I87: Leave blank to allow model to pick based on component level and building type
E88: Include land? | F88: include_land_I | H88: <-- pick or leave blank | I88: Leave blank to include land
C89: =IF(H91="optional inputs ok",TRUE) -> TRUE | E89: For information: Component | G89: =IF(component_level=2,"high cost",IF(component_level=1,"mid cost","low cost")) -> low cost
C90: =IF(H92="optional inputs ok",TRUE) -> FALSE | E90: Automation | G90: =IF(manual=1,"manual",IF(manual=2,"semi-automated",IF(manual=3,"fully automated"))) -> manual
H91: =IF(ISERROR(pump_rating),"Input incomplete",IF(pump_rating>max_pump_size,"Warning: insufficent number of pumps.","Optional Inputs OK")) -> Optional Inputs OK
H92: =IF(OR(H91="input incomplete",H91="Optional Inputs OK"),"",IF(pump_rating>max_pump_size,"Hint: increase number of pumps or leave that input blank","")) -> 

Sheet OUTPUT
A1: OUTPUT SUMMARY
B2: Parameter | C2: Value | D2: Units
B3: Technology | C3: =HLOOKUP("abbreviation",media_name_table,media_type+1,FALSE) -> AA
B4: System Size Category | C4: =IF(ss_cat2=1,"small","large") -> small
B5: Design Flow | C5: =design_flow -> 0.03 | D5: MGD
B6: Average Flow | C6: =average_flow -> 0.007 | D6: MGD
B7: # of treatment trains | C7: =num_treat_lines -> 1
B8: # of vessels in series | C8: =Num_tanks -> 2 | D8: (i.e., parallel or series operation)
B9: Media regeneration or throwaway operation? | C9: =throwaway_I -> throwaway
B10: Bed life | C10: =BV_regen -> 23000 | D10: bed volumes
B11: Total EBCT | C11: =EBCT -> 10 | D11: minutes
B12: EBCT per vessel | C12: =EBCT_tank -> 5 | D12: minutes
B13: Bed depth | C13: =bed_depth -> 2.9 | D13: feet
B14: Vessel geometry | C14: =tank_geom_I -> upright
B15: =IF(tank_geom=1,"Height (straight)",IF(tank_geom=2,"Length (straight)","")) -> Height (straight) | C15: =comm_height_length -> 5 | D15: feet
B16: Diameter | C16: =comm_diam -> 2.5 | D16: feet
B17: Component level | C17: =IF(component_level=2,"high cost",IF(component_level=1,"mid cost","low cost")) -> low cost
B18: System automation | C18: =IF(manual=1,"manual",IF(manual=2,"semi-automated",IF(manual=3,"fully automated"))) -> manual
B19: ="Resulting Costs (in year "&TEXT(current_year_cl,0)&" dollars)" -> Resulting Costs (in year 2021 dollars)
B20: Direct Capital Cost | C20: =IF(input_status<>"input complete -- results ready","Action required",IF(Missing_Cost,"Missing cost!",IF(cost_buildup_error,"Error in buildup!",direct_cost))) -> 62728.89757 | D20: Details | E20: =IF(input_status<>"input complete -- results ready",IF(input_complete,"Press Generate Results","Check INPUT sheet for errors"),IF(Missing_Cost,"A price is not available for at least one required component. See Use? column below.",IF(cost_buildup_error,"There is an Excel error in the price for at least one component. See Use? column below.",""))) -> 
B21: Add-on Cost | C21: =IF(input_status<>"input complete -- results ready","Action required",addon_cost) -> 19885.92495 | D21: Details
B22: Indirect Capital Cost | C22: =IF(input_status<>"input complete -- results ready","Action required",C400) -> 31132.50042 | D22: Details
B23: Total Capital Cost | C23: =IF(input_status<>"input complete -- results ready","Action required",IF(Missing_Cost,"Missing cost!",IF(cost_buildup_error,"Error in buildup!",system_cost))) -> 113747.3229 | D23: Details
B24: ="Annualized Capital Cost "&IF(OR(input_status<>"input complete -- results ready",Missing_Cost,cost_buildup_error),"","(per year over "&useful_life&" years at "&Discount_rate*100&"%)") -> Annualized Capital Cost (per year over 17.6 years at 7%) | C24: =IF(input_status<>"input complete -- results ready","Action required",Annualized_Capital_Cost) -> 11439.78137 | D24: Details
B25: Annual O&M Cost (per year) | C25: =IF(input_status<>"input complete -- results ready","Action required",OM_cost) -> 23441.27463 | D25: Details
B26: ="Total Annualized Cost (per year"&IF(OR(input_status<>"input complete -- results ready",ISERROR(OR(TAC_pct_cap,TAC_pct_OM))),"",", "&TEXT(TAC_pct_cap,"0%")&" capital, "&TEXT(TAC_pct_OM,"0%")&" O&M")&")" -> Total Annualized Cost (per year, 33% capital, 67% O&M) | C26: =IF(input_status<>"input complete -- results ready","Action required",IF(Missing_Cost,"Missing cost!",IF(cost_buildup_error,"Error in buildup!",Annualized_Cost))) -> 34881.056 | D26: Details
B27: Annualized cost per 1,000 gallons average flow | C27: =IF(input_status<>"input complete -- results ready","Action required",IF(Missing_Cost,"Missing cost!",IF(cost_buildup_error,"Error in buildup!",C470))) -> 13.65207671
B28: Annualized cost per household per year | C28: =IF(input_status<>"input complete -- results ready","Action required",IF(Missing_Cost,"Missing cost!",IF(cost_buildup_error,"Error in buildup!",C471))) -> 1375.701008
A30: Direct Capital Cost Details (items in italics, without a 1 in the "Use?" column, represent alternate costs and are excluded from total)
A31: WBS # | B31: Item | C31: Design Quanitity | E31: Design Size | G31: Size used in estimate | I31: Unit Cost | J31: Total Cost | K31: Useful Life | L31: Use? | M31: Full Line Item Name | N31: Priority selection | W31: Useful Life
N32: Small (<1 mgd) | Q32: Medium (1-10 mgd) | T32: Large (>10 mgd)
N33: Low | O33: Mid | P33: High | Q33: Low | R33: Mid | S33: High | T33: Low | U33: Mid | V33: High | W33: Count? | X33: Depreciation | Y33: Buildings
A34: 1 | B34: Pressure Vessels | W34: =IF(ISERROR(K34*L34),0,IF(K34<1,0,L34)) -> 0 | X34: =IF(W34,J34/K34,0) -> 0
A35: 1.1 | B35: Stainless Steel | C35: =final_num_tanks -> 2 | D35: units | E35: =comm_vol_gal -> 183.5868207 | F35: gal | G35: =IF(curve=1,comm_vol_gal,VLOOKUP(comm_vol_gal,ss_pv_cost_cl,2)) -> 183.5868207 | H35: gal | I35: =IF(curve=1,ss_pv_eq,VLOOKUP(comm_vol_gal,ss_pv_cost_cl,3)) -> 33480.67208 | J35: =IF(I35="contact vendor","--",C35*I35) -> 66961.34415 | K35: =IF(C35=0,"NA",VLOOKUP(E35,ss_pv_cost_cl,IF(ss_cat="large",4,5))) -> 30 | L35: 0 | M35: =$B$34&" - "&B35 -> Pressure Vessels - Stainless Steel | N35: 4 | O35: 4 | P35: 1 | Q35: 4 | R35: 4 | S35: 1 | T35: 4 | U35: 4 | V35: 1 | W35: 0 | X35: 0
A36: 1.1 | B36: Carbon Steel - Stainless Internals | C36: =final_num_tanks -> 2 | D36: units | E36: =comm_vol_gal -> 183.5868207 | F36: gal | G36: =IF(curve=1,comm_vol_gal,VLOOKUP(comm_vol_gal,cs_pv_cost_cl,2)) -> 183.5868207 | H36: gal | I36: =IF(curve=1,cs_pv_eq,VLOOKUP(comm_vol_gal,cs_pv_cost_cl,3)) -> 17514.45739 | J36: =IF(I36="contact vendor","--",C36*I36) -> 35028.91478 | K36: =IF(C36=0,"NA",VLOOKUP(E36,cs_pv_cost_cl,IF(ss_cat="large",4,5))) -> 30 | L36: 0 | M36: =$B$34&" - "&B36 -> Pressure Vessels - Carbon Steel - Stainless Internals | N36: 3 | O36: 3 | P36: 2 | Q36: 3 | R36: 3 | S36: 2 | T36: 3 | U36: 3 | V36: 2 | W36: 0 | X36: 0
A37: 1.1 | B37: Carbon Steel - Plastic Internals | C37: =final_num_tanks -> 2 | D37: units | E37: =comm_vol_gal -> 183.5868207 | F37: gal | G37: =IF(curve=1,comm_vol_gal,VLOOKUP(comm_vol_gal,csp_pv_cost_cl,2)) -> 183.5868207 | H37: gal | I37: =IF(curve=1,csp_pv_eq,VLOOKUP(comm_vol_gal,csp_pv_cost_cl,3)) -> 16321.71 | J37: =IF(I37="contact vendor","--",C37*I37) -> 32643.42 | K37: =IF(C37=0,"NA",VLOOKUP(E37,csp_pv_cost_cl,IF(ss_cat="large",4,5))) -> 30 | L37: 0 | M37: =$B$34&" - "&B37 -> Pressure Vessels - Carbon Steel - Plastic Internals | N37: 2 | O37: 1 | P37: 3 | Q37: 2 | R37: 1 | S37: 3 | T37: 2 | U37: 1 | V37: 3 | W37: 0 | X37: 0
A38: 1.1 | B38: Fiberglass | C38: =final_num_tanks -> 2 | D38: units | E38: =comm_vol_gal -> 183.5868207 | F38: gal | G38: =IF(curve=1,comm_vol_gal,VLOOKUP(comm_vol_gal,fg_pv_cost_cl,2)) -> 183.5868207 | H38: gal | I38: =IF(curve=1,fg_pv_eq,VLOOKUP(comm_vol_gal,fg_pv_cost_cl,3)) -> 3800.910981 | J38: =IF(I38="contact vendor","--",C38*I38) -> 7601.821962 | K38: =IF(C38=0,"NA",VLOOKUP(E38,fg_pv_cost_cl,IF(ss_cat="large",4,5))) -> 20 | L38: 1 | M38: =$B$34&" - "&B38 -> Pressure Vessels - Fiberglass | N38: 1 | O38: 2 | P38: 4 | Q38: 1 | R38: 2 | S38: 4 | T38: 1 | U38: 2 | V38: 4 | W38: 1 | X38: 380.0910981
A39: 2 | B39: Tanks | W39: 0 | X39: 0
A40: 2.1 | B40: Backwash Tanks | W40: 0 | X40: 0
A41: 2.1.1 | B41: Steel | C41: =num_back_tanks -> 0 | D41: units | E41: =IF(C41=0,"NA",back_tank_vol) -> NA | F41: =IF(C41=0,"","gal") ->  | G41: =IF(C41=0,"NA",IF(curve=1,back_tank_vol,VLOOKUP(back_tank_vol,st_bwt_cost_cl,2))) -> NA | H41: =IF(C41=0,"","gal") ->  | I41: =IF(C41=0,"NA",IF(curve=1,st_bwt_eq,VLOOKUP(back_tank_vol,st_bwt_cost_cl,3))) -> NA | J41: =IF(OR(C41=0,I41="contact vendor"),"--",C41*I41) -> -- | K41: =IF(C41=0,"NA",VLOOKUP(E41,st_bwt_cost_cl,IF(ss_cat="large",4,5))) -> NA | M41: =$B$40&" - "&B41 -> Backwash Tanks - Steel | N41: 3 | O41: 3 | P41: 1 | Q41: 3 | R41: 3 | S41: 1 | T41: 3 | U41: 3 | V41: 1 | W41: 0 | X41: 0
A42: 2.1.1 | B42: Fiberglass | C42: =num_back_tanks -> 0 | D42: units | E42: =IF(C42=0,"NA",back_tank_vol) -> NA | F42: =IF(C42=0,"","gal") ->  | G42: =IF(C42=0,"NA",IF(curve=1,back_tank_vol,VLOOKUP(back_tank_vol,fg_bwt_cost_cl,2))) -> NA | H42: =IF(C42=0,"","gal") ->  | I42: =IF(C42=0,"NA",IF(curve=1,fg_bwt_eq,VLOOKUP(back_tank_vol,fg_bwt_cost_cl,3))) -> NA | J42: =IF(OR(C42=0,I42="contact vendor"),"--",C42*I42) -> -- | K42: =IF(C42=0,"NA",VLOOKUP(E42,fg_bwt_cost_cl,IF(ss_cat="large",4,5))) -> NA | M42: =$B$40&" - "&B42 -> Backwash Tanks - Fiberglass | N42: 2 | O42: 1 | P42: 2 | Q42: 2 | R42: 1 | S42: 2 | T42: 2 | U42: 1 | V42: 2 | W42: 0 | X42: 0
A43: 2.1.1 | B43: Plastic/HDPE | C43: =num_back_tanks -> 0 | D43: units | E43: =IF(C43=0,"NA",back_tank_vol) -> NA | F43: =IF(C43=0,"","gal") ->  | G43: =IF(C43=0,"NA",IF(curve=1,back_tank_vol,VLOOKUP(back_tank_vol,hdpe_bwt_cost_cl,2))) -> NA | H43: =IF(C43=0,"","gal") ->  | I43: =IF(C43=0,"NA",IF(curve=1,hdpe_bwt_eq,VLOOKUP(back_tank_vol,hdpe_bwt_cost_cl,3))) -> NA | J43: =IF(OR(C43=0,I43="contact vendor"),"--",C43*I43) -> -- | K43: =IF(C43=0,"NA",VLOOKUP(E43,hdpe_bwt_cost_cl,IF(ss_cat="large",4,5))) -> NA | M43: =$B$40&" - "&B43 -> Backwash Tanks - Plastic/HDPE | N43: 1 | O43: 2 | P43: 3 | Q43: 1 | R43: 2 | S43: 3 | T43: 1 | U43: 2 | V43: 3 | W43: 0 | X43: 0
A44: 2.2 | B44: Acid Storage Tanks | W44: 0 | X44: 0
A45: 2.2.1 | B45: Plastic/XLPE | C45: =num_acid_tanks -> 1 | D45: units | E45: =IF(C45=0,"NA",acid_tank_vol) -> 33 | F45: =IF(C45=0,"","gal") -> gal | G45: =IF(C45=0,"NA",IF(curve=1,acid_tank_vol,VLOOKUP(acid_tank_vol,pl_cst_cost_cl,2))) -> 33 | H45: =IF(C45=0,"","gal") -> gal | I45: =IF(C45=0,"NA",IF(curve=1,pl_cst_eq_hcl,VLOOKUP(acid_tank_vol,pl_cst_cost_cl,3))) -> 748.1739871 | J45: =IF(C45=0,0,IF(I45="contact vendor","--",C45*I45)) -> 748.1739871 | K45: =IF(C45=0,"NA",VLOOKUP(E45,pl_cst_cost_cl,IF(ss_cat="large",4,5))) -> 7 | L45: 1 | M45: =$B$44&" - "&B45 -> Acid Storage Tanks - Plastic/XLPE | N45: 1 | O45: 2 | P45: 2 | Q45: 1 | R45: 2 | S45: 2 | T45: 1 | U45: 2 | V45: 2 | W45: 1 | X45: 106.8819982
A46: 2.2.1 | B46: Fiberglass | C46: =num_acid_tanks -> 1 | D46: units | E46: =IF(C46=0,"NA",acid_tank_vol) -> 33 | F46: =IF(C46=0,"","gal") -> gal | G46: =IF(C46=0,"NA",IF(curve=1,acid_tank_vol,VLOOKUP(acid_tank_vol,fg_cst_cost_cl,2))) -> 33 | H46: =IF(C46=0,"","gal") -> gal | I46: =IF(C46=0,"NA",IF(curve=1,fg_cst_eq_hcl,VLOOKUP(acid_tank_vol,fg_cst_cost_cl,3))) -> 1783.069092 | J46: =IF(C46=0,0,IF(I46="contact vendor","--",C46*I46)) -> 1783.069092 | K46: =IF(C46=0,"NA",VLOOKUP(E46,fg_cst_cost_cl,IF(ss_cat="large",4,5))) -> 7 | L46: 0 | M46: =$B$44&" - "&B46 -> Acid Storage Tanks - Fiberglass | N46: 2 | O46: 1 | P46: 1 | Q46: 2 | R46: 1 | S46: 1 | T46: 2 | U46: 1 | V46: 1 | W46: 0 | X46: 0
A47: 2.2.2 | B47: Secondary Containment - Concrete Curbing | C47: =IF(OR(include_sec_cont=0,num_acid_tanks=0),0,acid_st_curb_concrete) -> 1 | D47: cy | E47: NA | G47: NA | I47: =IF(C47=0,"NA",VLOOKUP(0,conc_basin_cost_cl,3)) -> 739.6055887 | J47: =IF(C47=0,"--",IF(I47="contact vendor","--",C47*I47)) -> 739.6055887 | K47: =IF(C47=0,"NA",VLOOKUP(0,conc_basin_cost_cl,IF(ss_cat="large",4,5))) -> 37 | L47: 1 | M47: =$B$44&" - "&B47 -> Acid Storage Tanks - Secondary Containment - Concrete Curbing | N47: 1 | O47: 1 | P47: 1 | Q47: 1 | R47: 1 | S47: 1 | T47: 1 | U47: 1 | V47: 1 | W47: 1 | X47: 19.98934024
A48: 2.2.3 | B48: Secondary Containment - Chemical Resistant Coating | C48: =IF(OR(include_sec_cont=0,num_acid_tanks=0),0,acid_st_coating_gal) -> 1 | D48: gal | E48: NA | G48: NA | I48: =IF(C48=0,"NA",VLOOKUP(0,conc_coating_cost_cl,3)) -> 389.13 | J48: =IF(C48=0,"--",IF(I48="contact vendor","--",C48*I48)) -> 389.13 | K48: =IF(C48=0,"NA",VLOOKUP(0,conc_coating_cost_cl,IF(ss_cat="large",4,5))) -> 10 | L48: 1 | M48: =$B$44&" - "&B48 -> Acid Storage Tanks - Secondary Containment - Chemical Resistant Coating | N48: 1 | O48: 1 | P48: 1 | Q48: 1 | R48: 1 | S48: 1 | T48: 1 | U48: 1 | V48: 1 | W48: 1 | X48: 38.913
A49: 2.3 | B49: Acid Day Tanks | W49: 0 | X49: 0
A50: 2.3.1 | B50: Plastic/XLPE | C50: =day_tanks_acid -> 1 | D50: units | E50: =IF(C50=0,"NA",day_tank_vol_acid) -> 5 | F50: =IF(C50=0,"","gal") -> gal | G50: =IF(C50=0,"NA",IF(curve=1,day_tank_vol_acid,VLOOKUP(day_tank_vol_acid,pl_cst_cost_cl,2))) -> 5 | H50: =IF(C50=0,"","gal") -> gal | I50: =IF(C50=0,"NA",IF(curve=1,pl_day_eq_acid,VLOOKUP(day_tank_vol_acid,pl_cst_cost_cl,3))) -> 716.4700551 | J50: =IF(C50=0,"--",IF(I50="contact vendor","--",C50*I50)) -> 716.4700551 | K50: =IF(C50=0,"NA",VLOOKUP(day_tank_vol_acid,pl_cst_cost_cl,IF(ss_cat="large",4,5))) -> 7 | L50: 1 | M50: =$B$49&" - "&B50 -> Acid Day Tanks - Plastic/XLPE | N50: 1 | O50: 2 | P50: 2 | Q50: 1 | R50: 2 | S50: 2 | T50: 1 | U50: 2 | V50: 2 | W50: 1 | X50: 102.352865
A51: 2.3.1 | B51: Fiberglass | C51: =day_tanks_acid -> 1 | D51: units | E51: =IF(C51=0,"NA",day_tank_vol_acid) -> 5 | F51: =IF(C51=0,"","gal") -> gal | G51: =IF(C51=0,"NA",IF(curve=1,day_tank_vol_acid,VLOOKUP(day_tank_vol,fg_cst_cost_cl,2))) -> 5 | H51: =IF(C51=0,"","gal") -> gal | I51: =IF(C51=0,"NA",IF(curve=1,fg_day_eq_acid,VLOOKUP(day_tank_vol_acid,fg_cst_cost_cl,3))) -> 629.9279152 | J51: =IF(C51=0,"--",IF(I51="contact vendor","--",C51*I51)) -> 629.9279152 | K51: =IF(C51=0,"NA",VLOOKUP(day_tank_vol_acid,fg_cst_cost_cl,IF(ss_cat="large",4,5))) -> 7 | L51: 0 | M51: =$B$49&" - "&B51 -> Acid Day Tanks - Fiberglass | N51: 2 | O51: 1 | P51: 1 | Q51: 2 | R51: 1 | S51: 1 | T51: 2 | U51: 1 | V51: 1 | W51: 0 | X51: 0
A52: 2.3.2 | B52: Secondary Containment - Concrete Curbing | C52: =IF(OR(include_sec_cont=0,day_tanks_acid=0),0,acid_dt_curb_concrete) -> 1 | D52: cy | E52: NA | G52: NA | I52: =IF(C52=0,"NA",VLOOKUP(0,conc_basin_cost_cl,3)) -> 739.6055887 | J52: =IF(C52=0,"--",IF(I52="contact vendor","--",C52*I52)) -> 739.6055887 | K52: =IF(C52=0,"NA",VLOOKUP(0,conc_basin_cost_cl,IF(ss_cat="large",4,5))) -> 37 | L52: 1 | M52: =$B$49&" - "&B52 -> Acid Day Tanks - Secondary Containment - Concrete Curbing | N52: 1 | O52: 1 | P52: 1 | Q52: 1 | R52: 1 | S52: 1 | T52: 1 | U52: 1 | V52: 1 | W52: 1 | X52: 19.98934024
A53: 2.3.3 | B53: Secondary Containment - Chemical Resistant Coating | C53: =IF(OR(include_sec_cont=0,day_tanks_acid=0),0,acid_dt_coating_gal) -> 1 | D53: gal | E53: NA | G53: NA | I53: =IF(C53=0,"NA",VLOOKUP(0,conc_coating_cost_cl,3)) -> 389.13 | J53: =IF(C53=0,"--",IF(I53="contact vendor","--",C53*I53)) -> 389.13 | K53: =IF(C53=0,"NA",VLOOKUP(0,conc_coating_cost_cl,IF(ss_cat="large",4,5))) -> 10 | L53: 1 | M53: =$B$49&" - "&B53 -> Acid Day Tanks - Secondary Containment - Chemical Resistant Coating | N53: 1 | O53: 1 | P53: 1 | Q53: 1 | R53: 1 | S53: 1 | T53: 1 | U53: 1 | V53: 1 | W53: 1 | X53: 38.913
A54: 2.4 | B54: Caustic Storage Tanks | W54: 0 | X54: 0
A55: 2.4.1 | B55: Plastic/XLPE | C55: =num_caustic_tanks -> 1 | D55: units | E55: =IF(C55=0,"NA",caustic_tank_vol) -> 20 | F55: =IF(C55=0,"","gal") -> gal | G55: =IF(C55=0,"NA",IF(curve=1,caustic_tank_vol,VLOOKUP(caustic_tank_vol,pl_cst_cost_cl,2))) -> 20 | H55: =IF(C55=0,"","gal") -> gal | I55: =IF(C55=0,"NA",IF(curve=1,pl_cst_eq_naoh,VLOOKUP(caustic_tank_vol,pl_cst_cost_cl,3))) -> 733.4172854 | J55: =IF(C55=0,0,IF(I55="contact vendor","--",C55*I55)) -> 733.4172854 | K55: =IF(C55=0,"NA",VLOOKUP(E55,pl_cst_cost_cl,IF(ss_cat="large",4,5))) -> 7 | L55: 1 | M55: =$B$54&" - "&B55 -> Caustic Storage Tanks - Plastic/XLPE | N55: 1 | O55: 2 | P55: 3 | Q55: 1 | R55: 2 | S55: 3 | T55: 1 | U55: 2 | V55: 3 | W55: 1 | X55: 104.7738979
A56: 2.4.1 | B56: Fiberglass | C56: =num_caustic_tanks -> 1 | D56: units | E56: =IF(C56=0,"NA",caustic_tank_vol) -> 20 | F56: =IF(C56=0,"","gal") -> gal | G56: =IF(C56=0,"NA",IF(curve=1,caustic_tank_vol,VLOOKUP(caustic_tank_vol,fg_cst_cost_cl,2))) -> 20 | H56: =IF(C56=0,"","gal") -> gal | I56: =IF(C56=0,"NA",IF(curve=1,fg_cst_eq_naoh,VLOOKUP(caustic_tank_vol,fg_cst_cost_cl,3))) -> 1352.859272 | J56: =IF(C56=0,0,IF(I56="contact vendor","--",C56*I56)) -> 1352.859272 | K56: =IF(C56=0,"NA",VLOOKUP(E56,fg_cst_cost_cl,IF(ss_cat="large",4,5))) -> 7 | L56: 0 | M56: Caustic Storage Tanks - Fiberglass | N56: 2 | O56: 1 | P56: 2 | Q56: 2 | R56: 1 | S56: 2 | T56: 2 | U56: 1 | V56: 2 | W56: 0 | X56: 0
A57: 2.4.1 | B57: Stainless Steel | C57: =num_caustic_tanks -> 1 | D57: units | E57: =IF(C57=0,"NA",caustic_tank_vol) -> 20 | F57: =IF(C57=0,"","gal") -> gal | G57: =IF(C57=0,"NA",IF(curve=1,caustic_tank_vol,VLOOKUP(caustic_tank_vol,ss_cst_cost_cl,2))) -> 20 | H57: =IF(C57=0,"","gal") -> gal | I57: =IF(C57=0,"NA",IF(curve=1,ss_cst_eq_naoh,VLOOKUP(caustic_tank_vol,ss_cst_cost_cl,3))) -> 506.8897713 | J57: =IF(C57=0,0,IF(I57="contact vendor","--",C57*I57)) -> 506.8897713 | K57: =IF(C57=0,"NA",VLOOKUP(E57,ss_cst_cost_cl,IF(ss_cat="large",4,5))) -> 30 | L57: 0 | M57: Caustic Storage Tanks - Stainless Steel | N57: 3 | O57: 3 | P57: 1 | Q57: 3 | R57: 3 | S57: 1 | T57: 3 | U57: 3 | V57: 1 | W57: 0 | X57: 0
A58: 2.4.2 | B58: Heat Tracing | C58: =num_caustic_tanks -> 1 | D58: units | E58: =IF(C58=0,"NA",caustic_tank_vol) -> 20 | F58: =IF(C58=0,"","gal") -> gal | G58: =IF(C58=0,"NA",IF(curve=1,caustic_tank_vol,VLOOKUP(caustic_tank_vol,cst_heat_cost_cl,2))) -> 20 | H58: =IF(C58=0,"","gal") -> gal | I58: =IF(C58=0,"NA",IF(curve=1,cst_heat_eq_naoh,VLOOKUP(caustic_tank_vol,cst_heat_cost_cl,3))) -> 2167.428448 | J58: =IF(C58=0,0,IF(I58="contact vendor","--",C58*I58)) -> 2167.428448 | K58: =IF(C58=0,"NA",VLOOKUP(E58,cst_heat_cost_cl,IF(ss_cat="large",4,5))) -> 7 | L58: 1 | M58: Caustic Storage Tanks - Heat Tracing | N58: 1 | O58: 1 | P58: 1 | Q58: 1 | R58: 1 | S58: 1 | T58: 1 | U58: 1 | V58: 1 | W58: 1 | X58: 309.6326354
A59: 2.4.3 | B59: Insulation | C59: =num_caustic_tanks -> 1 | D59: units | E59: =IF(C59=0,"NA",caustic_tank_vol) -> 20 | F59: =IF(C59=0,"","gal") -> gal | G59: =IF(C59=0,"NA",IF(curve=1,caustic_tank_vol,VLOOKUP(caustic_tank_vol,cst_insul_cost_cl,2))) -> 20 | H59: =IF(C59=0,"","gal") -> gal | I59: =IF(C59=0,"NA",IF(curve=1,cst_insul_eq_naoh,VLOOKUP(caustic_tank_vol,cst_insul_cost_cl,3))) -> 144.6972996 | J59: =IF(C59=0,0,IF(I59="contact vendor","--",C59*I59)) -> 144.6972996 | K59: =IF(C59=0,"NA",VLOOKUP(E59,cst_insul_cost_cl,IF(ss_cat="large",4,5))) -> 7 | L59: 1 | M59: Caustic Storage Tanks - Insulation | N59: 1 | O59: 1 | P59: 1 | Q59: 1 | R59: 1 | S59: 1 | T59: 1 | U59: 1 | V59: 1 | W59: 1 | X59: 20.6710428
A60: 2.4.4 | B60: Secondary Containment - Concrete Curbing | C60: =IF(OR(include_sec_cont=0,num_caustic_tanks=0),0,caustic_st_curb_concrete) -> 1 | D60: cy | E60: NA | G60: NA | I60: =IF(C60=0,"NA",VLOOKUP(0,conc_basin_cost_cl,3)) -> 739.6055887 | J60: =IF(C60=0,"--",IF(I60="contact vendor","--",C60*I60)) -> 739.6055887 | K60: =IF(C60=0,"NA",VLOOKUP(0,conc_basin_cost_cl,IF(ss_cat="large",4,5))) -> 37 | L60: 1 | M60: Caustic Storage Tanks - Secondary Containment - Concrete Curbing | N60: 1 | O60: 1 | P60: 1 | Q60: 1 | R60: 1 | S60: 1 | T60: 1 | U60: 1 | V60: 1 | W60: 1 | X60: 19.98934024
A61: 2.4.5 | B61: Secondary Containment - Chemical Resistant Coating | C61: =IF(OR(include_sec_cont=0,num_caustic_tanks=0),0,caustic_st_coating_gal) -> 1 | D61: gal | E61: NA | G61: NA | I61: =IF(C61=0,"NA",VLOOKUP(0,conc_coating_cost_cl,3)) -> 389.13 | J61: =IF(C61=0,"--",IF(I61="contact vendor","--",C61*I61)) -> 389.13 | K61: =IF(C61=0,"NA",VLOOKUP(0,conc_coating_cost_cl,IF(ss_cat="large",4,5))) -> 10 | L61: 1 | M61: Caustic Storage Tanks - Secondary Containment - Chemical Resistant Coating | N61: 1 | O61: 1 | P61: 1 | Q61: 1 | R61: 1 | S61: 1 | T61: 1 | U61: 1 | V61: 1 | W61: 1 | X61: 38.913
A62: 2.5 | B62: Caustic Day Tanks | W62: 0 | X62: 0
A63: 2.5.1 | B63: Plastic/XLPE | C63: =day_tanks_caustic -> 0 | D63: units | E63: =IF(C63=0,"NA",day_tank_vol_caustic) -> NA | F63: =IF(C63=0,"","gal") ->  | G63: =IF(C63=0,"NA",IF(curve=1,day_tank_vol_caustic,VLOOKUP(day_tank_vol_caustic,pl_cst_cost_cl,2))) -> NA | H63: =IF(C63=0,"","gal") ->  | I63: =IF(C63=0,"NA",IF(curve=1,pl_day_eq_caustic,VLOOKUP(day_tank_vol_caustic,pl_cst_cost_cl,3))) -> NA | J63: =IF(C63=0,"--",IF(I63="contact vendor","--",C63*I63)) -> -- | K63: =IF(C63=0,"NA",VLOOKUP(day_tank_vol_caustic,pl_cst_cost_cl,IF(ss_cat="large",4,5))) -> NA | M63: =$B$62&" - "&B63 -> Caustic Day Tanks - Plastic/XLPE | N63: 1 | O63: 2 | P63: 3 | Q63: 1 | R63: 2 | S63: 3 | T63: 1 | U63: 2 | V63: 3 | W63: 0 | X63: 0
A64: 2.5.1 | B64: Fiberglass | C64: =day_tanks_caustic -> 0 | D64: units | E64: =IF(C64=0,"NA",day_tank_vol_caustic) -> NA | F64: =IF(C64=0,"","gal") ->  | G64: =IF(C64=0,"NA",IF(curve=1,day_tank_vol_caustic,VLOOKUP(day_tank_vol_caustic,fg_cst_cost_cl,2))) -> NA | H64: =IF(C64=0,"","gal") ->  | I64: =IF(C64=0,"NA",IF(curve=1,fg_day_eq_caustic,VLOOKUP(day_tank_vol_caustic,fg_cst_cost_cl,3))) -> NA | J64: -- | K64: =IF(C64=0,"NA",VLOOKUP(day_tank_vol_caustic,fg_cst_cost_cl,IF(ss_cat="large",4,5))) -> NA | M64: Caustic Day Tanks - Fiberglass | N64: 2 | O64: 1 | P64: 2 | Q64: 2 | R64: 1 | S64: 2 | T64: 2 | U64: 1 | V64: 2 | W64: 0 | X64: 0
A65: 2.5.1 | B65: Stainless Steel | C65: =day_tanks_caustic -> 0 | D65: units | E65: =IF(C65=0,"NA",day_tank_vol_caustic) -> NA | F65: =IF(C65=0,"","gal") ->  | G65: =IF(C65=0,"NA",IF(curve=1,day_tank_vol_caustic,VLOOKUP(day_tank_vol_caustic,ss_cst_cost_cl,2))) -> NA | H65: =IF(C65=0,"","gal") ->  | I65: =IF(C65=0,"NA",IF(curve=1,ss_day_eq_caustic,VLOOKUP(day_tank_vol_caustic,ss_cst_cost_cl,3))) -> NA | J65: -- | K65: =IF(C65=0,"NA",VLOOKUP(day_tank_vol_caustic,ss_cst_cost_cl,IF(ss_cat="large",4,5))) -> NA | M65: Caustic Day Tanks - Stainless Steel | N65: 3 | O65: 3 | P65: 1 | Q65: 3 | R65: 3 | S65: 1 | T65: 3 | U65: 3 | V65: 1 | W65: 0 | X65: 0
A66: 2.5.2 | B66: Heat Tracing | C66: =day_tanks_caustic -> 0 | D66: units | E66: =IF(C66=0,"NA",day_tank_vol_caustic) -> NA | F66: =IF(C66=0,"","gal") ->  | G66: =IF(C66=0,"NA",IF(curve=1,day_tank_vol_caustic,VLOOKUP(day_tank_vol_caustic,cst_heat_cost_cl,2))) -> NA | H66: =IF(C66=0,"","gal") ->  | I66: =IF(C66=0,"NA",IF(curve=1,cst_day_heat_eq_caustic,VLOOKUP(day_tank_vol_caustic,cst_heat_cost_cl,3))) -> NA | J66: -- | K66: =IF(C66=0,"NA",VLOOKUP(day_tank_vol_caustic,cst_heat_cost_cl,IF(ss_cat="large",4,5))) -> NA | M66: Caustic Day Tanks - Heat Tracing | N66: 1 | O66: 1 | P66: 1 | Q66: 1 | R66: 1 | S66: 1 | T66: 1 | U66: 1 | V66: 1 | W66: =IF(ISERROR(K66*L66),0,IF(K66<1,0,L66)) -> 0 | X66: =IF(W66,J66/K66,0) -> 0
A67: 2.5.3 | B67: Insulation | C67: =day_tanks_caustic -> 0 | D67: units | E67: =IF(C67=0,"NA",day_tank_vol_caustic) -> NA | F67: =IF(C67=0,"","gal") ->  | G67: =IF(C67=0,"NA",IF(curve=1,day_tank_vol_caustic,VLOOKUP(day_tank_vol_caustic,cst_insul_cost_cl,2))) -> NA | H67: =IF(C67=0,"","gal") ->  | I67: =IF(C67=0,"NA",IF(curve=1,cst_day_insul_eq_caustic,VLOOKUP(day_tank_vol_caustic,cst_insul_cost_cl,3))) -> NA | J67: -- | K67: =IF(C67=0,"NA",VLOOKUP(day_tank_vol_caustic,cst_insul_cost_cl,IF(ss_cat="large",4,5))) -> NA | M67: Caustic Day Tanks - Insulation | N67: 1 | O67: 1 | P67: 1 | Q67: 1 | R67: 1 | S67: 1 | T67: 1 | U67: 1 | V67: 1 | W67: 0 | X67: 0
A68: 2.5.4 | B68: Secondary Containment - Concrete Curbing | C68: =IF(OR(include_sec_cont=0,day_tanks_caustic=0),0,caustic_dt_curb_concrete) -> 0 | D68: cy | E68: NA | G68: NA | I68: =IF(C68=0,"NA",VLOOKUP(0,conc_basin_cost_cl,3)) -> NA | J68: -- | K68: =IF(C68=0,"NA",VLOOKUP(0,conc_basin_cost_cl,IF(ss_cat="large",4,5))) -> NA | M68: Caustic Day Tanks - Secondary Containment - Concrete Curbing | N68: 1 | O68: 1 | P68: 1 | Q68: 1 | R68: 1 | S68: 1 | T68: 1 | U68: 1 | V68: 1 | W68: 0 | X68: 0
A69: 2.5.5 | B69: Secondary Containment - Chemical Resistant Coating | C69: =IF(OR(include_sec_cont=0,day_tanks_caustic=0),0,caustic_dt_coating_gal) -> 0 | D69: gal | E69: NA | G69: NA | I69: =IF(C69=0,"NA",VLOOKUP(0,conc_coating_cost_cl,3)) -> NA | J69: -- | K69: =IF(C69=0,"NA",VLOOKUP(0,conc_coating_cost_cl,IF(ss_cat="large",4,5))) -> NA | M69: Caustic Day Tanks - Secondary Containment - Chemical Resistant Coating | N69: 1 | O69: 1 | P69: 1 | Q69: 1 | R69: 1 | S69: 1 | T69: 1 | U69: 1 | V69: 1 | W69: 0 | X69: 0
A70: 2.6 | B70: Neutralization Tanks | W70: 0 | X70: 0
A71: 2.6.1 | B71: Steel Tanks | C71: =num_neut_tanks -> 0 | D71: units | E71: =IF(throwaway=1,"NA",neut_tank_vol) -> NA | F71: =IF(throwaway=1,"","gal") ->  | G71: =IF(throwaway=1,"NA",IF(curve=1,neut_tank_vol,VLOOKUP(neut_tank_vol,st_bwt_cost_cl,2))) -> NA | H71: =IF(throwaway=1,"","gal") ->  | I71: =IF(throwaway=1,"NA",IF(curve=1,st_nt_eq,VLOOKUP(neut_tank_vol,st_bwt_cost_cl,3))) -> NA | J71: =IF(throwaway=1,0,IF(I71="contact vendor","--",C71*I71)) -> 0 | K71: =IF(C71=0,"NA",VLOOKUP(E71,st_bwt_cost_cl,IF(ss_cat="large",4,5))) -> NA | M71: =$B$70&" - "&B71 -> Neutralization Tanks - Steel Tanks | N71: 1 | O71: 2 | P71: 2 | Q71: 3 | R71: 3 | S71: 1 | T71: 3 | U71: 3 | V71: 1 | W71: 0 | X71: 0
A72: 2.6.1 | B72: Fiberglass Tanks | C72: =num_neut_tanks -> 0 | D72: units | E72: =IF(throwaway=1,"NA",neut_tank_vol) -> NA | F72: =IF(throwaway=1,"","gal") ->  | G72: =IF(throwaway=1,"NA",IF(curve=1,neut_tank_vol,VLOOKUP(neut_tank_vol,fg_bwt_cost_cl,2))) -> NA | H72: =IF(throwaway=1,"","gal") ->  | I72: =IF(throwaway=1,"NA",IF(curve=1,fg_nt_eq,VLOOKUP(neut_tank_vol,fg_bwt_cost_cl,3))) -> NA | J72: =IF(throwaway=1,0,IF(I72="contact vendor","--",C72*I72)) -> 0 | K72: =IF(C72=0,"NA",VLOOKUP(E72,fg_bwt_cost_cl,IF(ss_cat="large",4,5))) -> NA | M72: =$B$70&" - "&B72 -> Neutralization Tanks - Fiberglass Tanks | N72: 3 | O72: 3 | P72: 1 | Q72: 2 | R72: 1 | S72: 2 | T72: 2 | U72: 1 | V72: 2 | W72: 0 | X72: 0
A73: 2.6.1 | B73: Plastic/HDPE Tanks | C73: =num_neut_tanks -> 0 | D73: units | E73: =IF(throwaway=1,"NA",neut_tank_vol) -> NA | F73: =IF(throwaway=1,"","gal") ->  | G73: =IF(throwaway=1,"NA",IF(curve=1,neut_tank_vol,VLOOKUP(neut_tank_vol,hdpe_bwt_cost_cl,2))) -> NA | H73: =IF(throwaway=1,"","gal") ->  | I73: =IF(throwaway=1,"NA",IF(curve=1,pl_nt_eq,VLOOKUP(neut_tank_vol,hdpe_bwt_cost_cl,3))) -> NA | J73: =IF(throwaway=1,0,IF(I73="contact vendor","--",C73*I73)) -> 0 | K73: =IF(C73=0,"NA",VLOOKUP(E73,hdpe_bwt_cost_cl,IF(ss_cat="large",4,5))) -> NA | M73: =$B$70&" - "&B73 -> Neutralization Tanks - Plastic/HDPE Tanks | N73: 2 | O73: 1 | P73: 3 | Q73: 1 | R73: 2 | S73: 3 | T73: 1 | U73: 2 | V73: 3 | W73: 0 | X73: 0
A74: 2.7 | B74: Spent Backwash Holding Tanks | W74: 0 | X74: 0
A75: 2.7.1 | B75: Concrete Basins (incl. Excavation, Backfill, and Compaction) | C75: =hbasins -> 1 | D75: units | E75: =IF(hbasins=0,"NA",hbasin_vol) -> 1885 | F75: =IF(C75=0,"","gal") -> gal | G75: =IF(hbasins=0,"NA",hbasin_vol) -> 1885 | H75: =IF(C75=0,"","gal") -> gal | I75: =IF(hbasins=0,"NA",J75/hbasins) -> 15925.26863 | J75: =IF(hbasins=0,"--",hconc_vol*VLOOKUP(0,conc_basin_cost_cl,3)+hexcavation_vol*VLOOKUP(0,excavate_cost_cl,3)+hbackfill_vol*VLOOKUP(0,backfill_cost_cl,3)+hrailing*VLOOKUP("aluminum railing",metal_cost_cl,3)) -> 15925.26863 | K75: =IF(hbasins=0,"NA",VLOOKUP(0,conc_basin_cost_cl,IF(ss_cat="large",4,5))) -> 37 | L75: 0 | M75: =$B$74&" - "&B75 -> Spent Backwash Holding Tanks - Concrete Basins (incl. Excavation, Backfill, and Compaction) | N75: 3 | O75: 3 | P75: 2 | Q75: 3 | R75: 3 | S75: 2 | T75: 3 | U75: 3 | V75: 2 | W75: 0 | X75: 0
A76: 2.7.1 | B76: Steel Tanks | C76: =htanks -> 1 | D76: units | E76: =IF(C76=0,"NA",htank_vol) -> 980 | F76: =IF(C76=0,"","gal") -> gal | G76: =IF(htanks=0,"NA",IF(curve=1,htank_vol,VLOOKUP(htank_vol,st_bwt_cost_cl,2))) -> 980 | H76: =IF(C76=0,"","gal") -> gal | I76: =IF(htanks=0,"NA",IF(curve=1,st_ht_eq,VLOOKUP(htank_vol,st_bwt_cost_cl,3))) -> 9769.514537 | J76: =IF(OR(C76=0,I76="contact vendor"),"--",C76*I76) -> 9769.514537 | K76: =IF(C76=0,"NA",VLOOKUP(E76,st_bwt_cost_cl,IF(ss_cat="large",4,5))) -> 30 | L76: 0 | M76: =$B$74&" - "&B76 -> Spent Backwash Holding Tanks - Steel Tanks | N76: 4 | O76: 4 | P76: 1 | Q76: 4 | R76: 4 | S76: 1 | T76: 4 | U76: 4 | V76: 1 | W76: 0 | X76: 0
A77: 2.7.1 | B77: Fiberglass Tanks | C77: =htanks -> 1 | D77: units | E77: =IF(C77=0,"NA",htank_vol) -> 980 | F77: =IF(C77=0,"","gal") -> gal | G77: =IF(htanks=0,"NA",IF(curve=1,htank_vol,VLOOKUP(htank_vol,fg_bwt_cost_cl,2))) -> 980 | H77: =IF(C77=0,"","gal") -> gal | I77: =IF(htanks=0,"NA",IF(curve=1,fg_ht_eq,VLOOKUP(htank_vol,fg_bwt_cost_cl,3))) -> 12945.1712 | J77: =IF(OR(C77=0,I77="contact vendor"),"--",C77*I77) -> 12945.1712 | K77: =IF(C77=0,"NA",VLOOKUP(E77,fg_bwt_cost_cl,IF(ss_cat="large",4,5))) -> 20 | L77: 0 | M77: =$B$74&" - "&B77 -> Spent Backwash Holding Tanks - Fiberglass Tanks | N77: 2 | O77: 1 | P77: 3 | Q77: 2 | R77: 1 | S77: 3 | T77: 2 | U77: 1 | V77: 3 | W77: 0 | X77: 0
A78: 2.7.1 | B78: Plastic/HDPE Tanks | C78: =htanks -> 1 | D78: units | E78: =IF(C78=0,"NA",htank_vol) -> 980 | F78: =IF(C78=0,"","gal") -> gal | G78: =IF(htanks=0,"NA",IF(curve=1,htank_vol,VLOOKUP(htank_vol,hdpe_bwt_cost_cl,2))) -> 980 | H78: =IF(C78=0,"","gal") -> gal | I78: =IF(htanks=0,"NA",IF(curve=1,hdpe_ht_eq,VLOOKUP(htank_vol,hdpe_bwt_cost_cl,3))) -> 2449.349057 | J78: =IF(OR(C78=0,I78="contact vendor"),"--",C78*I78) -> 2449.349057 | K78: =IF(C78=0,"NA",VLOOKUP(E78,hdpe_bwt_cost_cl,IF(ss_cat="large",4,5))) -> 20 | L78: 1 | M78: =$B$74&" - "&B78 -> Spent Backwash Holding Tanks - Plastic/HDPE Tanks | N78: 1 | O78: 2 | P78: 4 | Q78: 1 | R78: 2 | S78: 4 | T78: 1 | U78: 2 | V78: 4 | W78: 1 | X78: 122.4674528
A79: 2.8 | B79: Ferric Chloride Storage Tanks | W79: 0 | X79: 0
A80: 2.8.1 | B80: Plastic/XLPE | C80: =coag_tanks -> 0 | D80: units | E80: =IF(C80=0,"NA",coag_tank_vol) -> NA | F80: =IF(C80=0,"","gal") ->  | G80: =IF(C80=0,"NA",IF(curve=1,coag_tank_vol,VLOOKUP(coag_tank_vol,pl_cst_cost_cl,2))) -> NA | H80: =IF(C80=0,"","gal") ->  | I80: =IF(C80=0,"NA",IF(curve=1,pl_coag_st_eq,VLOOKUP(coag_tank_vol,pl_cst_cost_cl,3))) -> NA | J80: =IF(OR(C80=0,I80="contact vendor"),"--",C80*I80) -> -- | K80: =IF(C80=0,"NA",VLOOKUP(coag_tank_vol,pl_cst_cost_cl,IF(ss_cat="large",4,5))) -> NA | M80: =$B$79&" - "&B80 -> Ferric Chloride Storage Tanks - Plastic/XLPE | N80: 1 | O80: 2 | P80: 2 | Q80: 1 | R80: 2 | S80: 2 | T80: 1 | U80: 2 | V80: 2 | W80: 0 | X80: 0
A81: 2.8.1 | B81: Fiberglass | C81: =coag_tanks -> 0 | D81: units | E81: =IF(C81=0,"NA",coag_tank_vol) -> NA | F81: =IF(C81=0,"","gal") ->  | G81: =IF(C81=0,"NA",IF(curve=1,coag_tank_vol,VLOOKUP(coag_tank_vol,fg_cst_cost_cl,2))) -> NA | H81: =IF(C81=0,"","gal") ->  | I81: =IF(C81=0,"NA",IF(curve=1,fg_coag_st_eq,VLOOKUP(coag_tank_vol,fg_cst_cost_cl,3))) -> NA | J81: =IF(OR(C81=0,I81="contact vendor"),"--",C81*I81) -> -- | K81: =IF(C81=0,"NA",VLOOKUP(coag_tank_vol,fg_cst_cost_cl,IF(ss_cat="large",4,5))) -> NA | M81: =$B$79&" - "&B81 -> Ferric Chloride Storage Tanks - Fiberglass | N81: 2 | O81: 1 | P81: 1 | Q81: 2 | R81: 1 | S81: 1 | T81: 2 | U81: 1 | V81: 1 | W81: 0 | X81: 0
A82: 2.8.2 | B82: Secondary Containment - Concrete Curbing | C82: =IF(OR(include_sec_cont=0,coag_tanks=0),0,coag_curb_concrete) -> 0 | D82: cy | E82: NA | G82: NA | I82: =IF(C82=0,"NA",VLOOKUP(0,conc_basin_cost_cl,3)) -> NA | J82: =IF(C82=0,"--",IF(I82="contact vendor","--",C82*I82)) -> -- | K82: =IF(C82=0,"NA",VLOOKUP(0,conc_basin_cost_cl,IF(ss_cat="large",4,5))) -> NA | M82: =$B$79&" - "&B82 -> Ferric Chloride Storage Tanks - Secondary Containment - Concrete Curbing | N82: 1 | O82: 1 | P82: 1 | Q82: 1 | R82: 1 | S82: 1 | T82: 1 | U82: 1 | V82: 1 | W82: 0 | X82: 0
A83: 2.8.3 | B83: Secondary Containment - Chemical Resistant Coating | C83: =IF(OR(include_sec_cont=0,coag_tanks=0),0,coag_coating_gal) -> 0 | D83: gal | E83: NA | G83: NA | I83: =IF(C83=0,"NA",VLOOKUP(0,conc_coating_cost_cl,3)) -> NA | J83: =IF(C83=0,"--",IF(I83="contact vendor","--",C83*I83)) -> -- | K83: =IF(C83=0,"NA",VLOOKUP(0,conc_coating_cost_cl,IF(ss_cat="large",4,5))) -> NA | M83: =$B$79&" - "&B83 -> Ferric Chloride Storage Tanks - Secondary Containment - Chemical Resistant Coating | N83: 1 | O83: 1 | P83: 1 | Q83: 1 | R83: 1 | S83: 1 | T83: 1 | U83: 1 | V83: 1 | W83: 0 | X83: 0
A84: 2.9 | B84: Polymer Storage Tanks | W84: 0 | X84: 0
A85: 2.9.1 | B85: Plastic/XLPE | C85: =polymer_tanks -> 0 | D85: units | E85: =IF(C85=0,"NA",polymer_tank_vol) -> NA | F85: =IF(C85=0,"","gal") ->  | G85: =IF(C85=0,"NA",IF(curve=1,polymer_tank_vol,VLOOKUP(polymer_tank_vol,pl_cst_cost_cl,2))) -> NA | H85: =IF(C85=0,"","gal") ->  | I85: =IF(C85=0,"NA",IF(curve=1,pl_polymer_st_eq,VLOOKUP(polymer_tank_vol,pl_cst_cost_cl,3))) -> NA | J85: =IF(OR(C85=0,I85="contact vendor"),"--",C85*I85) -> -- | K85: =IF(C85=0,"NA",VLOOKUP(polymer_tank_vol,pl_cst_cost_cl,IF(ss_cat="large",4,5))) -> NA | M85: =$B$84&" - "&B85 -> Polymer Storage Tanks - Plastic/XLPE | N85: 1 | O85: 2 | P85: 3 | Q85: 1 | R85: 2 | S85: 3 | T85: 1 | U85: 2 | V85: 2 | W85: 0 | X85: 0
A86: 2.9.1 | B86: Fiberglass | C86: =polymer_tanks -> 0 | D86: units | E86: =IF(C86=0,"NA",polymer_tank_vol) -> NA | F86: =IF(C86=0,"","gal") ->  | G86: =IF(C86=0,"NA",IF(curve=1,polymer_tank_vol,VLOOKUP(polymer_tank_vol,fg_cst_cost_cl,2))) -> NA | H86: =IF(C86=0,"","gal") ->  | I86: =IF(C86=0,"NA",IF(curve=1,fg_polymer_st_eq,VLOOKUP(polymer_tank_vol,fg_cst_cost_cl,3))) -> NA | J86: =IF(OR(C86=0,I86="contact vendor"),"--",C86*I86) -> -- | K86: =IF(C86=0,"NA",VLOOKUP(polymer_tank_vol,fg_cst_cost_cl,IF(ss_cat="large",4,5))) -> NA | M86: =$B$84&" - "&B86 -> Polymer Storage Tanks - Fiberglass | N86: 2 | O86: 1 | P86: 2 | Q86: 2 | R86: 1 | S86: 2 | T86: 2 | U86: 1 | V86: 2 | W86: 0 | X86: 0
A87: 2.9.1 | B87: Stainless Steel | C87: =polymer_tanks -> 0 | D87: units | E87: =IF(C87=0,"NA",polymer_tank_vol) -> NA | F87: =IF(C87=0,"","gal") ->  | G87: =IF(C87=0,"NA",IF(curve=1,polymer_tank_vol,VLOOKUP(polymer_tank_vol,ss_cst_cost_cl,2))) -> NA | H87: =IF(C87=0,"","gal") ->  | I87: =IF(C87=0,"NA",IF(curve=1,ss_polymer_st_eq,VLOOKUP(polymer_tank_vol,ss_cst_cost_cl,3))) -> NA | J87: =IF(OR(C87=0,I87="contact vendor"),"--",C87*I87) -> -- | K87: =IF(C87=0,"NA",VLOOKUP(polymer_tank_vol,ss_cst_cost_cl,IF(ss_cat="large",4,5))) -> NA | M87: =$B$84&" - "&B87 -> Polymer Storage Tanks - Stainless Steel | N87: 3 | O87: 3 | P87: 1 | Q87: 3 | R87: 3 | S87: 1 | T87: 3 | U87: 3 | V87: 1 | W87: 0 | X87: 0
A88: 3 | B88: Piping | W88: 0 | X88: 0
A89: 3.1 | B89: Process Piping | W89: 0 | X89: 0
A90: 3.1.1 | B90: Ductile Iron | C90: =proc_pipe_length -> 40 | D90: lf | E90: =proc_pipe_diam -> 2 | F90: in. diam | G90: =IF(curve=1,proc_pipe_diam,VLOOKUP(proc_pipe_diam,di_pipe_cost_cl,2)) -> 2 | H90: in. diam | I90: =IF(curve=1,di_pipe_eq_proc,VLOOKUP(proc_pipe_diam,di_pipe_cost_cl,3)) -> contact vendor | J90: =IF(I90="contact vendor","--",C90*I90) -> -- | K90: =IF(C90=0,"NA",VLOOKUP(E90,di_pipe_cost_cl,IF(ss_cat="large",4,5))) -> 35 | L90: 0 | M90: =$B$89&" - "&B90 -> Process Piping - Ductile Iron | N90: 3 | O90: 3 | P90: 3 | Q90: 3 | R90: 3 | S90: 3 | T90: 3 | U90: 3 | V90: 3 | W90: 0 | X90: 0
A91: 3.1.1 | B91: CPVC | C91: =proc_pipe_length -> 40 | D91: lf | E91: =proc_pipe_diam -> 2 | F91: in. diam | G91: =IF(curve=1,proc_pipe_diam,VLOOKUP(proc_pipe_diam,cpvc_pipe_cost_cl,2)) -> 2 | H91: in. diam | I91: =IF(curve=1,cpvc_pipe_eq_proc,VLOOKUP(proc_pipe_diam,cpvc_pipe_cost_cl,3)) -> 9.80088342 | J91: =IF(I91="contact vendor","--",C91*I91) -> 392.0353368 | K91: =IF(C91=0,"NA",VLOOKUP(E91,cpvc_pipe_cost_cl,IF(ss_cat="large",4,5))) -> 17 | L91: 0 | M91: =$B$89&" - "&B91 -> Process Piping - CPVC | N91: 2 | O91: 1 | P91: 4 | Q91: 2 | R91: 1 | S91: 4 | T91: 2 | U91: 1 | V91: 4 | W91: 0 | X91: 0
A92: 3.1.1 | B92: PVC | C92: =proc_pipe_length -> 40 | D92: lf | E92: =proc_pipe_diam -> 2 | F92: in. diam | G92: =IF(curve=1,proc_pipe_diam,VLOOKUP(proc_pipe_diam,pvc_pipe_cost_cl,2)) -> 2 | H92: in. diam | I92: =IF(curve=1,pvc_pipe_eq_proc,VLOOKUP(proc_pipe_diam,pvc_pipe_cost_cl,3)) -> 3.418102201 | J92: =IF(I92="contact vendor","--",C92*I92) -> 136.724088 | K92: =IF(C92=0,"NA",VLOOKUP(E92,pvc_pipe_cost_cl,IF(ss_cat="large",4,5))) -> 17 | L92: 1 | M92: =$B$89&" - "&B92 -> Process Piping - PVC | N92: 1 | O92: 2 | P92: 5 | Q92: 1 | R92: 2 | S92: 5 | T92: 1 | U92: 2 | V92: 5 | W92: 1 | X92: 8.042593414
A93: 3.1.1 | B93: Stainless Steel | C93: =proc_pipe_length -> 40 | D93: lf | E93: =proc_pipe_diam -> 2 | F93: in. diam | G93: =IF(curve=1,proc_pipe_diam,VLOOKUP(proc_pipe_diam,ss_pipe_cost_cl,2)) -> 2 | H93: in. diam | I93: =IF(curve=1,ss_pipe_eq_proc,VLOOKUP(proc_pipe_diam,ss_pipe_cost_cl,3)) -> 95.44119936 | J93: =IF(I93="contact vendor","--",C93*I93) -> 3817.647974 | K93: =IF(C93=0,"NA",VLOOKUP(E93,ss_pipe_cost_cl,IF(ss_cat="large",4,5))) -> 40 | L93: 0 | M93: =$B$89&" - "&B93 -> Process Piping - Stainless Steel | N93: 5 | O93: 5 | P93: 1 | Q93: 5 | R93: 5 | S93: 1 | T93: 5 | U93: 5 | V93: 1 | W93: 0 | X93: 0
A94: 3.1.1 | B94: Steel | C94: =proc_pipe_length -> 40 | D94: lf | E94: =proc_pipe_diam -> 2 | F94: in. diam | G94: =IF(curve=1,proc_pipe_diam,VLOOKUP(proc_pipe_diam,st_pipe_cost_cl,2)) -> 2 | H94: in. diam | I94: =IF(curve=1,st_pipe_eq_proc,VLOOKUP(proc_pipe_diam,st_pipe_cost_cl,3)) -> 39.40237895 | J94: =IF(I94="contact vendor","--",C94*I94) -> 1576.095158 | K94: =IF(C94=0,"NA",VLOOKUP(E94,st_pipe_cost_cl,IF(ss_cat="large",4,5))) -> 33 | L94: 0 | M94: =$B$89&" - "&B94 -> Process Piping - Steel | N94: 4 | O94: 4 | P94: 2 | Q94: 4 | R94: 4 | S94: 2 | T94: 4 | U94: 4 | V94: 2 | W94: 0 | X94: 0
A95: 3.2 | B95: Backwash Piping | W95: 0 | X95: 0
A96: 3.2.1 | B96: CPVC | C96: =back_pipe_length -> 50 | D96: lf | E96: =back_pipe_diam -> 2.5 | F96: in. diam | G96: =IF(curve=1,back_pipe_diam,VLOOKUP(back_pipe_diam,cpvc_pipe_cost_cl,2)) -> 2.5 | H96: in. diam | I96: =IF(curve=1,cpvc_pipe_eq_back,VLOOKUP(back_pipe_diam,cpvc_pipe_cost_cl,3)) -> 12.98002094 | J96: =IF(I96="contact vendor","--",C96*I96) -> 649.0010469 | K96: =IF(C96=0,"NA",VLOOKUP(E96,cpvc_pipe_cost_cl,IF(ss_cat="large",4,5))) -> 17 | L96: 0 | M96: =$B$95&" - "&B96 -> Backwash Piping - CPVC | N96: 2 | O96: 1 | P96: 3 | Q96: 2 | R96: 1 | S96: 3 | T96: 2 | U96: 1 | V96: 3 | W96: 0 | X96: 0
A97: 3.2.1 | B97: PVC | C97: =back_pipe_length -> 50 | D97: lf | E97: =back_pipe_diam -> 2.5 | F97: in. diam | G97: =IF(curve=1,back_pipe_diam,VLOOKUP(back_pipe_diam,pvc_pipe_cost_cl,2)) -> 2.5 | H97: in. diam | I97: =IF(curve=1,pvc_pipe_eq_back,VLOOKUP(back_pipe_diam,pvc_pipe_cost_cl,3)) -> 4.037081629 | J97: =IF(I97="contact vendor","--",C97*I97) -> 201.8540814 | K97: =IF(C97=0,"NA",VLOOKUP(E97,pvc_pipe_cost_cl,IF(ss_cat="large",4,5))) -> 17 | L97: 1 | M97: =$B$95&" - "&B97 -> Backwash Piping - PVC | N97: 1 | O97: 2 | P97: 4 | Q97: 1 | R97: 2 | S97: 4 | T97: 1 | U97: 2 | V97: 4 | W97: 1 | X97: 11.8737695
A98: 3.2.1 | B98: Stainless Steel | C98: =back_pipe_length -> 50 | D98: lf | E98: =back_pipe_diam -> 2.5 | F98: in. diam | G98: =IF(curve=1,back_pipe_diam,VLOOKUP(back_pipe_diam,ss_pipe_cost_cl,2)) -> 2.5 | H98: in. diam | I98: =IF(curve=1,ss_pipe_eq_back,VLOOKUP(back_pipe_diam,ss_pipe_cost_cl,3)) -> 119.4606423 | J98: =IF(I98="contact vendor","--",C98*I98) -> 5973.032117 | K98: =IF(C98=0,"NA",VLOOKUP(E98,ss_pipe_cost_cl,IF(ss_cat="large",4,5))) -> 40 | L98: 0 | M98: =$B$95&" - "&B98 -> Backwash Piping - Stainless Steel | N98: 4 | O98: 4 | P98: 1 | Q98: 4 | R98: 4 | S98: 1 | T98: 4 | U98: 4 | V98: 1 | W98: 0 | X98: 0
A99: 3.2.1 | B99: Steel | C99: =back_pipe_length -> 50 | D99: lf | E99: =back_pipe_diam -> 2.5 | F99: in. diam | G99: =IF(curve=1,back_pipe_diam,VLOOKUP(back_pipe_diam,st_pipe_cost_cl,2)) -> 2.5 | H99: in. diam | I99: =IF(curve=1,st_pipe_eq_back,VLOOKUP(back_pipe_diam,st_pipe_cost_cl,3)) -> 48.42281629 | J99: =IF(I99="contact vendor","--",C99*I99) -> 2421.140815 | K99: =IF(C99=0,"NA",VLOOKUP(E99,st_pipe_cost_cl,IF(ss_cat="large",4,5))) -> 33 | L99: 0 | M99: =$B$95&" - "&B99 -> Backwash Piping - Steel | N99: 3 | O99: 3 | P99: 2 | Q99: 3 | R99: 3 | S99: 2 | T99: 3 | U99: 3 | V99: 2 | W99: 0 | X99: 0
A100: 3.3 | B100: Acid Piping | W100: 0 | X100: 0
A101: 3.3.1 | B101: CPVC | C101: =acid_pipe_length -> 20 | D101: lf | E101: =IF(C101=0,"NA",acid_pipe_diam) -> 0.5 | F101: =IF(C101=0,"","in. diam") -> in. diam | G101: =IF(C101=0,"NA",IF(curve=1,acid_pipe_diam,VLOOKUP(acid_pipe_diam,cpvc_pipe_cost_cl,2))) -> 0.5 | H101: =IF(C101=0,"","in. diam") -> in. diam | I101: =IF(C101=0,"NA",IF(curve=1,cpvc_pipe_eq_acid,VLOOKUP(acid_pipe_diam,cpvc_pipe_cost_cl,3))) -> 2.593344082 | J101: =IF(C101=0,0,IF(I101="contact vendor","--",C101*I101)) -> 51.86688165 | K101: =IF(C101=0,"NA",VLOOKUP(E101,cpvc_pipe_cost_cl,IF(ss_cat="large",4,5))) -> 17 | L101: 0 | M101: =$B$100&" - "&B101 -> Acid Piping - CPVC | N101: 2 | O101: 1 | P101: 2 | Q101: 2 | R101: 1 | S101: 2 | T101: 2 | U101: 1 | V101: 2 | W101: 0 | X101: 0
A102: 3.3.1 | B102: PVC | C102: =acid_pipe_length -> 20 | D102: lf | E102: =IF(C102=0,"NA",acid_pipe_diam) -> 0.5 | F102: =IF(C102=0,"","in. diam") -> in. diam | G102: =IF(C102=0,"NA",IF(curve=1,acid_pipe_diam,VLOOKUP(acid_pipe_diam,pvc_pipe_cost_cl,2))) -> 0.5 | H102: =IF(C102=0,"","in. diam") -> in. diam | I102: =IF(C102=0,"NA",IF(curve=1,pvc_pipe_eq_acid,VLOOKUP(acid_pipe_diam,pvc_pipe_cost_cl,3))) -> 1.852484879 | J102: =IF(C102=0,0,IF(I102="contact vendor","--",C102*I102)) -> 37.04969758 | K102: =IF(C102=0,"NA",VLOOKUP(E102,pvc_pipe_cost_cl,IF(ss_cat="large",4,5))) -> 17 | L102: 1 | M102: =$B$100&" - "&B102 -> Acid Piping - PVC | N102: 1 | O102: 2 | P102: 3 | Q102: 1 | R102: 2 | S102: 3 | T102: 1 | U102: 2 | V102: 3 | W102: 1 | X102: 2.179393975
A103: 3.3.1 | B103: Stainless Steel | C103: =acid_pipe_length -> 20 | D103: lf | E103: =IF(C103=0,"NA",acid_pipe_diam) -> 0.5 | F103: =IF(C103=0,"","in. diam") -> in. diam | G103: =IF(C103=0,"NA",IF(curve=1,acid_pipe_diam,VLOOKUP(acid_pipe_diam,ss_pipe_cost_cl,2))) -> 0.5 | H103: =IF(C103=0,"","in. diam") -> in. diam | I103: =IF(C103=0,"NA",IF(curve=1,ss_pipe_eq_acid,VLOOKUP(acid_pipe_diam,ss_pipe_cost_cl,3))) -> 16.35807022 | J103: =IF(C103=0,0,IF(I103="contact vendor","--",C103*I103)) -> 327.1614043 | K103: =IF(C103=0,"NA",VLOOKUP(E103,ss_pipe_cost_cl,IF(ss_cat="large",4,5))) -> 40 | L103: 0 | M103: =$B$100&" - "&B103 -> Acid Piping - Stainless Steel | N103: 3 | O103: 3 | P103: 1 | Q103: 3 | R103: 3 | S103: 1 | T103: 3 | U103: 3 | V103: 1 | W103: =IF(ISERROR(K103*L103),0,IF(K103<1,0,L103)) -> 0 | X103: =IF(W103,J103/K103,0) -> 0
A104: 3.4 | B104: Caustic Piping | W104: 0 | X104: 0
A105: 3.4.1 | B105: CPVC | C105: =caust_pipe_length -> 20 | D105: lf | E105: =IF(C105=0,"NA",caustic_pipe_diam) -> 0.5 | F105: =IF(C105=0,"","in. diam") -> in. diam | G105: =IF(C105=0,"NA",IF(curve=1,caustic_pipe_diam,VLOOKUP(caustic_pipe_diam,cpvc_pipe_cost_cl,2))) -> 0.5 | H105: =IF(C105=0,"","in. diam") -> in. diam | I105: =IF(C105=0,"NA",IF(curve=1,cpvc_pipe_eq_caustic,VLOOKUP(caustic_pipe_diam,cpvc_pipe_cost_cl,3))) -> 2.593344082 | J105: =IF(C105=0,0,IF(I105="contact vendor","--",C105*I105)) -> 51.86688165 | K105: =IF(C105=0,"NA",VLOOKUP(E105,cpvc_pipe_cost_cl,IF(ss_cat="large",4,5))) -> 17 | L105: 0 | M105: =$B$104&" - "&B105 -> Caustic Piping - CPVC | N105: 2 | O105: 1 | P105: 2 | Q105: 2 | R105: 1 | S105: 2 | T105: 2 | U105: 1 | V105: 2 | W105: 0 | X105: 0
A106: 3.4.1 | B106: PVC | C106: =caust_pipe_length -> 20 | D106: lf | E106: =IF(C106=0,"NA",caustic_pipe_diam) -> 0.5 | F106: =IF(C106=0,"","in. diam") -> in. diam | G106: =IF(C106=0,"NA",IF(curve=1,caustic_pipe_diam,VLOOKUP(caustic_pipe_diam,pvc_pipe_cost_cl,2))) -> 0.5 | H106: =IF(C106=0,"","in. diam") -> in. diam | I106: =IF(C106=0,"NA",IF(curve=1,pvc_pipe_eq_caustic,VLOOKUP(caustic_pipe_diam,pvc_pipe_cost_cl,3))) -> 1.852484879 | J106: =IF(C106=0,0,IF(I106="contact vendor","--",C106*I106)) -> 37.04969758 | K106: =IF(C106=0,"NA",VLOOKUP(E106,pvc_pipe_cost_cl,IF(ss_cat="large",4,5))) -> 17 | L106: 1 | M106: =$B$104&" - "&B106 -> Caustic Piping - PVC | N106: 1 | O106: 2 | P106: 3 | Q106: 1 | R106: 2 | S106: 3 | T106: 1 | U106: 2 | V106: 3 | W106: 1 | X106: 2.179393975
A107: 3.4.1 | B107: Stainless Steel | C107: =caust_pipe_length -> 20 | D107: lf | E107: =IF(C107=0,"NA",caustic_pipe_diam) -> 0.5 | F107: =IF(C107=0,"","in. diam") -> in. diam | G107: =IF(C107=0,"NA",IF(curve=1,caustic_pipe_diam,VLOOKUP(caustic_pipe_diam,ss_pipe_cost_cl,2))) -> 0.5 | H107: =IF(C107=0,"","in. diam") -> in. diam | I107: =IF(C107=0,"NA",IF(curve=1,ss_pipe_eq_caustic,VLOOKUP(caustic_pipe_diam,ss_pipe_cost_cl,3))) -> 16.35807022 | J107: =IF(C107=0,0,IF(I107="contact vendor","--",C107*I107)) -> 327.1614043 | K107: =IF(C107=0,"NA",VLOOKUP(E107,ss_pipe_cost_cl,IF(ss_cat="large",4,5))) -> 40 | L107: 0 | M107: =$B$104&" - "&B107 -> Caustic Piping - Stainless Steel | N107: 3 | O107: 3 | P107: 1 | Q107: 3 | R107: 3 | S107: 1 | T107: 3 | U107: 3 | V107: 1 | W107: 0 | X107: 0
A108: 3.5 | B108: Influent and Treated Water Piping | W108: 0 | X108: 0
A109: 3.5.1 | B109: Ductile Iron | C109: =in_out_pipe_length -> 40 | D109: lf | E109: =in_out_pipe_diam -> 1.5 | F109: in. diam | G109: =IF(curve=1,in_out_pipe_diam,VLOOKUP(in_out_pipe_diam,di_pipe_cost_cl,2)) -> 1.5 | H109: in. diam | I109: =IF(curve=1,di_pipe_eq_in_out,VLOOKUP(in_out_pipe_diam,di_pipe_cost_cl,3)) -> contact vendor | J109: =IF(I109="contact vendor","--",C109*I109) -> -- | K109: =IF(C109=0,"NA",VLOOKUP(E109,di_pipe_cost_cl,IF(ss_cat="large",4,5))) -> 35 | L109: 0 | M109: =$B$108&" - "&B109 -> Influent and Treated Water Piping - Ductile Iron | N109: 3 | O109: 3 | P109: 3 | Q109: 3 | R109: 3 | S109: 3 | T109: 3 | U109: 3 | V109: 3 | W109: 0 | X109: 0
A110: 3.5.1 | B110: CPVC | C110: =in_out_pipe_length -> 40 | D110: lf | E110: =in_out_pipe_diam -> 1.5 | F110: in. diam | G110: =IF(curve=1,in_out_pipe_diam,VLOOKUP(in_out_pipe_diam,cpvc_pipe_cost_cl,2)) -> 1.5 | H110: in. diam | I110: =IF(curve=1,cpvc_pipe_eq_in_out,VLOOKUP(in_out_pipe_diam,cpvc_pipe_cost_cl,3)) -> 7.013311728 | J110: =IF(I110="contact vendor","--",C110*I110) -> 280.5324691 | K110: =IF(C110=0,"NA",VLOOKUP(E110,cpvc_pipe_cost_cl,IF(ss_cat="large",4,5))) -> 17 | L110: 0 | M110: =$B$108&" - "&B110 -> Influent and Treated Water Piping - CPVC | N110: 2 | O110: 1 | P110: 4 | Q110: 2 | R110: 1 | S110: 4 | T110: 2 | U110: 1 | V110: 4 | W110: 0 | X110: 0
A111: 3.5.1 | B111: PVC | C111: =in_out_pipe_length -> 40 | D111: lf | E111: =in_out_pipe_diam -> 1.5 | F111: in. diam | G111: =IF(curve=1,in_out_pipe_diam,VLOOKUP(in_out_pipe_diam,pvc_pipe_cost_cl,2)) -> 1.5 | H111: in. diam | I111: =IF(curve=1,pvc_pipe_eq_in_out,VLOOKUP(in_out_pipe_diam,pvc_pipe_cost_cl,3)) -> 2.847676267 | J111: =IF(I111="contact vendor","--",C111*I111) -> 113.9070507 | K111: =IF(C111=0,"NA",VLOOKUP(E111,pvc_pipe_cost_cl,IF(ss_cat="large",4,5))) -> 17 | L111: 1 | M111: =$B$108&" - "&B111 -> Influent and Treated Water Piping - PVC | N111: 1 | O111: 2 | P111: 5 | Q111: 1 | R111: 2 | S111: 5 | T111: 1 | U111: 2 | V111: 5 | W111: 1 | X111: 6.700414745
A112: 3.5.1 | B112: Stainless Steel | C112: =in_out_pipe_length -> 40 | D112: lf | E112: =in_out_pipe_diam -> 1.5 | F112: in. diam | G112: =IF(curve=1,in_out_pipe_diam,VLOOKUP(in_out_pipe_diam,ss_pipe_cost_cl,2)) -> 1.5 | H112: in. diam | I112: =IF(curve=1,ss_pipe_eq_in_out,VLOOKUP(in_out_pipe_diam,ss_pipe_cost_cl,3)) -> 70.2752489 | J112: =IF(I112="contact vendor","--",C112*I112) -> 2811.009956 | K112: =IF(C112=0,"NA",VLOOKUP(E112,ss_pipe_cost_cl,IF(ss_cat="large",4,5))) -> 40 | L112: 0 | M112: =$B$108&" - "&B112 -> Influent and Treated Water Piping - Stainless Steel | N112: 5 | O112: 5 | P112: 1 | Q112: 5 | R112: 5 | S112: 1 | T112: 5 | U112: 5 | V112: 1 | W112: 0 | X112: 0
A113: 3.5.1 | B113: Steel | C113: =in_out_pipe_length -> 40 | D113: lf | E113: =in_out_pipe_diam -> 1.5 | F113: in. diam | G113: =IF(curve=1,in_out_pipe_diam,VLOOKUP(in_out_pipe_diam,st_pipe_cost_cl,2)) -> 1.5 | H113: in. diam | I113: =IF(curve=1,st_pipe_eq_in_out,VLOOKUP(in_out_pipe_diam,st_pipe_cost_cl,3)) -> 30.20656151 | J113: =IF(I113="contact vendor","--",C113*I113) -> 1208.26246 | K113: =IF(C113=0,"NA",VLOOKUP(E113,st_pipe_cost_cl,IF(ss_cat="large",4,5))) -> 33 | L113: 0 | M113: =$B$108&" - "&B113 -> Influent and Treated Water Piping - Steel | N113: 4 | O113: 4 | P113: 2 | Q113: 4 | R113: 4 | S113: 2 | T113: 4 | U113: 4 | V113: 2 | W113: 0 | X113: 0
A114: 3.6 | B114: Residuals Piping | W114: 0 | X114: 0
A115: 3.6.1 | B115: CPVC | C115: =res_pipe_length -> 60 | D115: lf | E115: =res_pipe_diam -> 1 | F115: in. diam | G115: =IF(curve=1,res_pipe_diam,VLOOKUP(res_pipe_diam,cpvc_pipe_cost_cl,2)) -> 1 | H115: in. diam | I115: =IF(curve=1,cpvc_pipe_eq_res,VLOOKUP(res_pipe_diam,cpvc_pipe_cost_cl,3)) -> 4.612425428 | J115: =IF(I115="contact vendor","--",C115*I115) -> 276.7455257 | K115: =IF(C115=0,"NA",VLOOKUP(E115,cpvc_pipe_cost_cl,IF(ss_cat="large",4,5))) -> 17 | L115: 0 | M115: =$B$114&" - "&B115 -> Residuals Piping - CPVC | N115: 2 | O115: 1 | P115: 3 | Q115: 2 | R115: 1 | S115: 3 | T115: 2 | U115: 1 | V115: 3 | W115: 0 | X115: 0
A116: 3.6.1 | B116: PVC | C116: =res_pipe_length -> 60 | D116: lf | E116: =res_pipe_diam -> 1 | F116: in. diam | G116: =IF(curve=1,res_pipe_diam,VLOOKUP(res_pipe_diam,pvc_pipe_cost_cl,2)) -> 1 | H116: in. diam | I116: =IF(curve=1,pvc_pipe_eq_res,VLOOKUP(res_pipe_diam,pvc_pipe_cost_cl,3)) -> 2.325803826 | J116: =IF(I116="contact vendor","--",C116*I116) -> 139.5482296 | K116: =IF(C116=0,"NA",VLOOKUP(E116,pvc_pipe_cost_cl,IF(ss_cat="large",4,5))) -> 17 | L116: 1 | M116: Residuals Piping - PVC | N116: 1 | O116: 2 | P116: 4 | Q116: 1 | R116: 2 | S116: 4 | T116: 1 | U116: 2 | V116: 4 | W116: 1 | X116: 8.208719386
A117: 3.6.1 | B117: Stainless Steel | C117: =res_pipe_length -> 60 | D117: lf | E117: =res_pipe_diam -> 1 | F117: in. diam | G117: =IF(curve=1,res_pipe_diam,VLOOKUP(res_pipe_diam,ss_pipe_cost_cl,2)) -> 1 | H117: in. diam | I117: =IF(curve=1,ss_pipe_eq_res,VLOOKUP(res_pipe_diam,ss_pipe_cost_cl,3)) -> 43.92635213 | J117: =IF(I117="contact vendor","--",C117*I117) -> 2635.581128 | K117: =IF(C117=0,"NA",VLOOKUP(E117,ss_pipe_cost_cl,IF(ss_cat="large",4,5))) -> 40 | L117: 0 | M117: Residuals Piping - Stainless Steel | N117: 4 | O117: 4 | P117: 1 | Q117: 4 | R117: 4 | S117: 1 | T117: 4 | U117: 4 | V117: 1 | W117: 0 | X117: 0
A118: 3.6.1 | B118: Steel | C118: =res_pipe_length -> 60 | D118: lf | E118: =res_pipe_diam -> 1 | F118: in. diam | G118: =IF(curve=1,res_pipe_diam,VLOOKUP(res_pipe_diam,st_pipe_cost_cl,2)) -> 1 | H118: in. diam | I118: =IF(curve=1,st_pipe_eq_res,VLOOKUP(res_pipe_diam,st_pipe_cost_cl,3)) -> 20.76941738 | J118: =IF(I118="contact vendor","--",C118*I118) -> 1246.165043 | K118: =IF(C118=0,"NA",VLOOKUP(E118,st_pipe_cost_cl,IF(ss_cat="large",4,5))) -> 33 | L118: 0 | M118: Residuals Piping - Steel | N118: 3 | O118: 3 | P118: 2 | Q118: 3 | R118: 3 | S118: 2 | T118: 3 | U118: 3 | V118: 2 | W118: 0 | X118: 0
A119: 3.6.2 | B119: Excavation | C119: =res_trench_vol -> 0 | D119: cy | E119: NA | G119: NA | I119: =IF(C119=0,"NA",VLOOKUP(0,excavate_cost_cl,3)) -> NA | J119: =IF(OR(I119="contact vendor",C119=0),"--",C119*I119) -> -- | K119: =IF(I119="NA","N/A",IF(L115=1,K115,IF(L116=1,K116,IF(L117=1,K117,IF(L118=1,K118,"N/A"))))) -> N/A | M119: Residuals Piping - Excavation | N119: 1 | O119: 1 | P119: 1 | Q119: 1 | R119: 1 | S119: 1 | T119: 1 | U119: 1 | V119: 1 | W119: 0 | X119: 0
A120: 3.6.3 | B120: Bedding | C120: =res_pipe_bedding_vol -> 0 | D120: cy | E120: NA | G120: NA | I120: =IF(C120=0,"NA",VLOOKUP(0,bedding_cost_cl,3)) -> NA | J120: =IF(OR(I120="contact vendor",C120=0),"--",C120*I120) -> -- | K120: =IF(I120="NA","N/A",IF(L115=1,K115,IF(L116=1,K116,IF(L117=1,K117,IF(L118=1,K118,"N/A"))))) -> N/A | M120: Residuals Piping - Bedding | N120: 1 | O120: 1 | P120: 1 | Q120: 1 | R120: 1 | S120: 1 | T120: 1 | U120: 1 | V120: 1 | W120: 0 | X120: 0
A121: 3.6.4 | B121: Backfill and Compaction | C121: =res_trench_vol -> 0 | D121: cy | E121: NA | G121: NA | I121: =IF(C121=0,"NA",VLOOKUP(0,backfill_cost_cl,3)) -> NA | J121: =IF(OR(I121="contact vendor",C121=0),"--",C121*I121) -> -- | K121: =IF(I121="NA","N/A",IF(L115=1,K115,IF(L116=1,K116,IF(L117=1,K117,IF(L118=1,K118,"N/A"))))) -> N/A | M121: Residuals Piping - Backfill and Compaction | N121: 1 | O121: 1 | P121: 1 | Q121: 1 | R121: 1 | S121: 1 | T121: 1 | U121: 1 | V121: 1 | W121: 0 | X121: 0
A122: 3.6.5 | B122: Thrust Blocks | C122: =res_block_vol -> 0 | D122: cy | E122: NA | G122: NA | I122: =IF(C122=0,"NA",VLOOKUP(0,conc_basin_cost_cl,3)) -> NA | J122: =IF(OR(I122="contact vendor",C122=0),"--",C122*I122) -> -- | K122: =IF(I122="NA","N/A",IF(L115=1,K115,IF(L116=1,K116,IF(L117=1,K117,IF(L118=1,K118,"N/A"))))) -> N/A | M122: Residuals Piping - Thrust Blocks | N122: 1 | O122: 1 | P122: 1 | Q122: 1 | R122: 1 | S122: 1 | T122: 1 | U122: 1 | V122: 1 | W122: 0 | X122: 0
A123: 3.7 | B123: Ferric Chloride Piping | W123: 0 | X123: 0
A124: 3.7.1 | B124: CPVC | C124: =coag_pipe_length -> 0 | D124: lf | E124: =IF(C124=0,"NA",coag_pipe_diam) -> NA | F124: =IF(C124=0,"","in diam") ->  | G124: =IF(C124=0,"NA",IF(curve=1,coag_pipe_diam,VLOOKUP(coag_pipe_diam,cpvc_pipe_cost_cl,2))) -> NA | H124: =IF(C124=0,"","in diam") ->  | I124: =IF(C124=0,"NA",IF(curve=1,cpvc_pipe_eq_coag,VLOOKUP(coag_pipe_diam,cpvc_pipe_cost_cl,3))) -> NA | J124: =IF(OR(C124=0,I124="contact vendor"),"--",C124*I124) -> -- | K124: =IF(C124=0,"NA",VLOOKUP(coag_pipe_diam,cpvc_pipe_cost_cl,IF(ss_cat="large",4,5))) -> NA | M124: =$B$123&" "&" - "&B124 -> Ferric Chloride Piping - CPVC | N124: 2 | O124: 1 | P124: 1 | Q124: 2 | R124: 1 | S124: 1 | T124: 2 | U124: 1 | V124: 1 | W124: 0 | X124: 0
A125: 3.7.1 | B125: PVC | C125: =coag_pipe_length -> 0 | D125: lf | E125: =IF(C125=0,"NA",coag_pipe_diam) -> NA | F125: =IF(C125=0,"","in diam") ->  | G125: =IF(C125=0,"NA",IF(curve=1,coag_pipe_diam,VLOOKUP(coag_pipe_diam,pvc_pipe_cost_cl,2))) -> NA | H125: =IF(C125=0,"","in diam") ->  | I125: =IF(C125=0,"NA",IF(curve=1,pvc_pipe_eq_coag,VLOOKUP(coag_pipe_diam,pvc_pipe_cost_cl,3))) -> NA | J125: =IF(OR(C125=0,I125="contact vendor"),"--",C125*I125) -> -- | K125: =IF(C125=0,"NA",VLOOKUP(coag_pipe_diam,pvc_pipe_cost_cl,IF(ss_cat="large",4,5))) -> NA | M125: =$B$123&" "&" - "&B125 -> Ferric Chloride Piping - PVC | N125: 1 | O125: 2 | P125: 2 | Q125: 1 | R125: 2 | S125: 2 | T125: 1 | U125: 2 | V125: 2 | W125: 0 | X125: 0
A126: 3.8 | B126: Polymer Piping | W126: 0 | X126: 0
A127: 3.8.1 | B127: CPVC | C127: =polymer_pipe_length -> 0 | D127: lf | E127: =IF(C127=0,"NA",polymer_pipe_diam) -> NA | F127: =IF(C127=0,"","in diam") ->  | G127: =IF(C127=0,"NA",IF(curve=1,polymer_pipe_diam,VLOOKUP(polymer_pipe_diam,cpvc_pipe_cost_cl,2))) -> NA | H127: =IF(C127=0,"","in diam") ->  | I127: =IF(C127=0,"NA",IF(curve=1,cpvc_pipe_eq_polymer,VLOOKUP(polymer_pipe_diam,cpvc_pipe_cost_cl,3))) -> NA | J127: =IF(OR(C127=0,I127="contact vendor"),"--",C127*I127) -> -- | K127: =IF(C127=0,"NA",VLOOKUP(polymer_pipe_diam,cpvc_pipe_cost_cl,IF(ss_cat="large",4,5))) -> NA | M127: =$B$126&" "&" - "&B127 -> Polymer Piping - CPVC | N127: 2 | O127: 1 | P127: 3 | Q127: 2 | R127: 1 | S127: 3 | T127: 2 | U127: 1 | V127: 3 | W127: 0 | X127: 0
A128: 3.8.1 | B128: PVC | C128: =polymer_pipe_length -> 0 | D128: lf | E128: =IF(C128=0,"NA",polymer_pipe_diam) -> NA | F128: =IF(C128=0,"","in diam") ->  | G128: =IF(C128=0,"NA",IF(curve=1,polymer_pipe_diam,VLOOKUP(polymer_pipe_diam,pvc_pipe_cost_cl,2))) -> NA | H128: =IF(C128=0,"","in diam") ->  | I128: =IF(C128=0,"NA",IF(curve=1,pvc_pipe_eq_polymer,VLOOKUP(polymer_pipe_diam,pvc_pipe_cost_cl,3))) -> NA | J128: =IF(OR(C128=0,I128="contact vendor"),"--",C128*I128) -> -- | K128: =IF(C128=0,"NA",VLOOKUP(polymer_pipe_diam,pvc_pipe_cost_cl,IF(ss_cat="large",4,5))) -> NA | M128: =$B$126&" "&" - "&B128 -> Polymer Piping - PVC | N128: 1 | O128: 2 | P128: 4 | Q128: 1 | R128: 2 | S128: 4 | T128: 1 | U128: 2 | V128: 4 | W128: 0 | X128: 0
A129: 3.8.1 | B129: Stainless Steel | C129: =polymer_pipe_length -> 0 | D129: lf | E129: =IF(C129=0,"NA",polymer_pipe_diam) -> NA | F129: =IF(C129=0,"","in diam") ->  | G129: =IF(C129=0,"NA",IF(curve=1,polymer_pipe_diam,VLOOKUP(polymer_pipe_diam,ss_pipe_cost_cl,2))) -> NA | H129: =IF(C129=0,"","in diam") ->  | I129: =IF(C129=0,"NA",IF(curve=1,ss_pipe_eq_polymer,VLOOKUP(polymer_pipe_diam,ss_pipe_cost_cl,3))) -> NA | J129: =IF(OR(C129=0,I129="contact vendor"),"--",C129*I129) -> -- | K129: =IF(C129=0,"NA",VLOOKUP(polymer_pipe_diam,ss_pipe_cost_cl,IF(ss_cat="large",4,5))) -> NA | M129: =$B$126&" "&" - "&B129 -> Polymer Piping - Stainless Steel | N129: 4 | O129: 4 | P129: 1 | Q129: 4 | R129: 4 | S129: 1 | T129: 4 | U129: 4 | V129: 1 | W129: 0 | X129: 0
A130: 3.8.1 | B130: Steel | C130: =polymer_pipe_length -> 0 | D130: lf | E130: =IF(C130=0,"NA",polymer_pipe_diam) -> NA | F130: =IF(C130=0,"","in diam") ->  | G130: =IF(C130=0,"NA",IF(curve=1,polymer_pipe_diam,VLOOKUP(polymer_pipe_diam,st_pipe_cost_cl,2))) -> NA | H130: =IF(C130=0,"","in diam") ->  | I130: =IF(C130=0,"NA",IF(curve=1,st_pipe_eq_polymer,VLOOKUP(polymer_pipe_diam,st_pipe_cost_cl,3))) -> NA | J130: =IF(OR(C130=0,I130="contact vendor"),"--",C130*I130) -> -- | K130: =IF(C130=0,"NA",VLOOKUP(polymer_pipe_diam,st_pipe_cost_cl,IF(ss_cat="large",4,5))) -> NA | M130: =$B$126&" "&" - "&B130 -> Polymer Piping - Steel | N130: 3 | O130: 3 | P130: 2 | Q130: 3 | R130: 3 | S130: 2 | T130: 3 | U130: 3 | V130: 2 | W130: 0 | X130: 0
A131: 3.9 | B131: Bypass Piping | W131: 0 | X131: 0
A132: 3.9.1 | B132: CPVC | C132: =bp_pipe_length -> 0 | D132: lf | E132: =IF(bp_pct>0,bp_pipe_diam,"NA") -> NA | F132: =IF(bp_pct=0," ","in. diam") ->  | G132: =IF(bp_pct=0,"NA",IF(curve=1,bp_pipe_diam,VLOOKUP(bp_pipe_diam,cpvc_pipe_cost_cl,2))) -> NA | H132: =IF(bp_pct=0," ","in. diam") ->  | I132: =IF(bp_pct=0,"NA",IF(curve=1,cpvc_pipe_eq_bp,VLOOKUP(bp_pipe_diam,cpvc_pipe_cost_cl,3))) -> NA | J132: =IF(bp_pct=0,0,IF(I132="contact vendor","--",C132*I132)) -> 0 | K132: =IF(C132=0,"NA",VLOOKUP(E132,cpvc_pipe_cost_cl,IF(ss_cat="large",4,5))) -> NA | M132: =$B$131&" "&" - "&B132 -> Bypass Piping - CPVC | N132: 2 | O132: 1 | P132: 3 | Q132: 2 | R132: 1 | S132: 3 | T132: 2 | U132: 1 | V132: 3 | W132: 0 | X132: 0
A133: 3.9.1 | B133: PVC | C133: =bp_pipe_length -> 0 | D133: lf | E133: =IF(bp_pct>0,bp_pipe_diam,"NA") -> NA | F133: =IF(bp_pct=0," ","in. diam") ->  | G133: =IF(bp_pct=0,"NA",IF(curve=1,bp_pipe_diam,VLOOKUP(bp_pipe_diam,pvc_pipe_cost_cl,2))) -> NA | H133: =IF(bp_pct=0," ","in. diam") ->  | I133: =IF(bp_pct=0,"NA",IF(curve=1,pvc_pipe_eq_bp,VLOOKUP(bp_pipe_diam,pvc_pipe_cost_cl,3))) -> NA | J133: =IF(bp_pct=0,0,IF(I133="contact vendor","--",C133*I133)) -> 0 | K133: =IF(C133=0,"NA",VLOOKUP(E133,pvc_pipe_cost_cl,IF(ss_cat="large",4,5))) -> NA | M133: =$B$131&" "&" - "&B133 -> Bypass Piping - PVC | N133: 1 | O133: 2 | P133: 4 | Q133: 1 | R133: 2 | S133: 4 | T133: 1 | U133: 2 | V133: 4 | W133: 0 | X133: 0
A134: 3.9.1 | B134: Stainless Steel | C134: =bp_pipe_length -> 0 | D134: lf | E134: =IF(bp_pct>0,bp_pipe_diam,"NA") -> NA | F134: =IF(bp_pct=0," ","in. diam") ->  | G134: =IF(bp_pct=0,"NA",IF(curve=1,bp_pipe_diam,VLOOKUP(bp_pipe_diam,ss_pipe_cost_cl,2))) -> NA | H134: =IF(bp_pct=0," ","in. diam") ->  | I134: =IF(bp_pct=0,"NA",IF(curve=1,ss_pipe_eq_bp,VLOOKUP(bp_pipe_diam,ss_pipe_cost_cl,3))) -> NA | J134: =IF(bp_pct=0,0,IF(I134="contact vendor","--",C134*I134)) -> 0 | K134: =IF(C134=0,"NA",VLOOKUP(E134,ss_pipe_cost_cl,IF(ss_cat="large",4,5))) -> NA | M134: =$B$131&" "&" - "&B134 -> Bypass Piping - Stainless Steel | N134: 4 | O134: 4 | P134: 1 | Q134: 4 | R134: 4 | S134: 1 | T134: 4 | U134: 4 | V134: 1 | W134: 0 | X134: 0
A135: 3.9.1 | B135: Steel | C135: =bp_pipe_length -> 0 | D135: lf | E135: =IF(bp_pct>0,bp_pipe_diam,"NA") -> NA | F135: =IF(bp_pct=0," ","in. diam") ->  | G135: =IF(bp_pct=0,"NA",IF(curve=1,bp_pipe_diam,VLOOKUP(bp_pipe_diam,st_pipe_cost_cl,2))) -> NA | H135: =IF(bp_pct=0," ","in. diam") ->  | I135: =IF(bp_pct=0,"NA",IF(curve=1,st_pipe_eq_bp,VLOOKUP(bp_pipe_diam,st_pipe_cost_cl,3))) -> NA | J135: =IF(bp_pct=0,0,IF(I135="contact vendor","--",C135*I135)) -> 0 | K135: =IF(C135=0,"NA",VLOOKUP(E135,st_pipe_cost_cl,IF(ss_cat="large",4,5))) -> NA | M135: =$B$131&" "&" - "&B135 -> Bypass Piping - Steel | N135: 3 | O135: 3 | P135: 2 | Q135: 3 | R135: 3 | S135: 2 | T135: 3 | U135: 3 | V135: 2 | W135: 0 | X135: 0
A136: 4 | B136: Valves | W136: 0 | X136: 0
A137: 4.1 | B137: Motor/Air Operated (on/off) | W137: 0 | X137: 0
A138: 4.1.1 | B138: Process - Polypropylene/PVC | C138: =tot_proc_MOVs -> 0 | D138: units | E138: =tank_valve_size -> 2 | F138: in. diam | G138: =IF(curve=1,tank_valve_size,VLOOKUP(tank_valve_size,pp_mov_cost_cl,2)) -> 2 | H138: in. diam | I138: =IF(curve=1,pp_mov_eq_tank,VLOOKUP(tank_valve_size,pp_mov_cost_cl,3)) -> 861.9873313 | J138: =IF(OR(C138=0,I138="contact vendor"),"--",C138*I138) -> -- | K138: =IF(C138=0,"NA",VLOOKUP(E138,pp_mov_cost_cl,IF(ss_cat="large",4,5))) -> NA | M138: =$B$137&" "&$B$136&" - "&B138 -> Motor/Air Operated (on/off) Valves - Process - Polypropylene/PVC | N138: 1 | O138: 2 | P138: 3 | Q138: 1 | R138: 2 | S138: 3 | T138: 1 | U138: 2 | V138: 3 | W138: =IF(ISERROR(K138*L138),0,IF(K138<1,0,L138)) -> 0 | X138: =IF(W138,J138/K138,0) -> 0
A139: 4.1.1 | B139: Process - Stainless Steel | C139: =tot_proc_MOVs -> 0 | D139: units | E139: =tank_valve_size -> 2 | F139: in. diam | G139: =IF(curve=1,tank_valve_size,VLOOKUP(tank_valve_size,ss_mov_cost_cl,2)) -> 2 | H139: in. diam | I139: =IF(curve=1,ss_mov_eq_tank,VLOOKUP(tank_valve_size,ss_mov_cost_cl,3)) -> 1534.037501 | J139: -- | K139: =IF(C139=0,"NA",VLOOKUP(E139,ss_mov_cost_cl,IF(ss_cat="large",4,5))) -> NA | M139: Motor/Air Operated (on/off) Valves - Process - Stainless Steel | N139: 3 | O139: 3 | P139: 1 | Q139: 3 | R139: 3 | S139: 1 | T139: 3 | U139: 3 | V139: 1 | W139: 0 | X139: 0
A140: 4.1.1 | B140: Process - Cast Iron | C140: =tot_proc_MOVs -> 0 | D140: units | E140: =tank_valve_size -> 2 | F140: in. diam | G140: =IF(curve=1,tank_valve_size,VLOOKUP(tank_valve_size,ci_mov_cost_cl,2)) -> 2 | H140: in. diam | I140: =IF(curve=1,ci_mov_eq_tank,VLOOKUP(tank_valve_size,ci_mov_cost_cl,3)) -> 1444.175599 | J140: -- | K140: =IF(C140=0,"NA",VLOOKUP(E140,ci_mov_cost_cl,IF(ss_cat="large",4,5))) -> NA | M140: Motor/Air Operated (on/off) Valves - Process - Cast Iron | N140: 2 | O140: 1 | P140: 2 | Q140: 2 | R140: 1 | S140: 2 | T140: 2 | U140: 1 | V140: 2 | W140: 0 | X140: 0
A141: 4.1.2 | B141: Backwash - Polypropylene/PVC | C141: =tot_back_MOVs -> 0 | D141: units | E141: =back_valve_size -> 2.5 | F141: in. diam | G141: =IF(curve=1,back_valve_size,VLOOKUP(back_valve_size,pp_mov_cost_cl,2)) -> 2.5 | H141: in. diam | I141: =IF(curve=1,pp_mov_eq_back,VLOOKUP(back_valve_size,pp_mov_cost_cl,3)) -> 944.1028001 | J141: -- | K141: =IF(C141=0,"NA",VLOOKUP(E141,pp_mov_cost_cl,IF(ss_cat="large",4,5))) -> NA | M141: Motor/Air Operated (on/off) Valves - Backwash - Polypropylene/PVC | N141: 1 | O141: 2 | P141: 3 | Q141: 1 | R141: 2 | S141: 3 | T141: 1 | U141: 2 | V141: 3 | W141: 0 | X141: 0
A142: 4.1.2 | B142: Backwash - Stainless Steel | C142: =tot_back_MOVs -> 0 | D142: units | E142: =back_valve_size -> 2.5 | F142: in. diam | G142: =IF(curve=1,back_valve_size,VLOOKUP(back_valve_size,ss_mov_cost_cl,2)) -> 2.5 | H142: in. diam | I142: =IF(curve=1,ss_mov_eq_back,VLOOKUP(back_valve_size,ss_mov_cost_cl,3)) -> 1624.202903 | J142: -- | K142: =IF(C142=0,"NA",VLOOKUP(E142,ss_mov_cost_cl,IF(ss_cat="large",4,5))) -> NA | M142: Motor/Air Operated (on/off) Valves - Backwash - Stainless Steel | N142: 3 | O142: 3 | P142: 1 | Q142: 3 | R142: 3 | S142: 1 | T142: 3 | U142: 3 | V142: 1 | W142: 0 | X142: 0
A143: 4.1.2 | B143: Backwash - Cast Iron | C143: =tot_back_MOVs -> 0 | D143: units | E143: =back_valve_size -> 2.5 | F143: in. diam | G143: =IF(curve=1,back_valve_size,VLOOKUP(back_valve_size,ci_mov_cost_cl,2)) -> 2.5 | H143: in. diam | I143: =IF(curve=1,ci_mov_eq_back,VLOOKUP(back_valve_size,ci_mov_cost_cl,3)) -> 2096.48164 | J143: -- | K143: =IF(C143=0,"NA",VLOOKUP(E143,ci_mov_cost_cl,IF(ss_cat="large",4,5))) -> NA | M143: =$B$137&" "&$B$136&" - "&B143 -> Motor/Air Operated (on/off) Valves - Backwash - Cast Iron | N143: 2 | O143: 1 | P143: 2 | Q143: 2 | R143: 1 | S143: 2 | T143: 2 | U143: 1 | V143: 2 | W143: 0 | X143: 0
A144: 4.1.3 | B144: Acid line - Polypropylene/PVC | C144: =tot_acid_MOVs -> 0 | D144: units | E144: =IF(C144=0,"NA",acid_valve_size) -> NA | F144: =IF(C144=0,"","in. diam") ->  | G144: =IF(C144=0,"NA",IF(curve=1,acid_valve_size,VLOOKUP(acid_valve_size,pp_mov_cost_cl,2))) -> NA | H144: =IF(C144=0,"","in. diam") ->  | I144: =IF(C144=0,"NA",IF(curve=1,pp_mov_eq_acid,VLOOKUP(acid_valve_size,pp_mov_cost_cl,3))) -> NA | J144: -- | K144: =IF(C144=0,"NA",VLOOKUP(E144,pp_mov_cost_cl,IF(ss_cat="large",4,5))) -> NA | M144: Motor/Air Operated (on/off) Valves - Acid line - Polypropylene/PVC | N144: 1 | O144: 2 | P144: 2 | Q144: 1 | R144: 2 | S144: 2 | T144: 1 | U144: 2 | V144: 2 | W144: 0 | X144: 0
A145: 4.1.3 | B145: Acid line - Stainless Steel | C145: =tot_acid_MOVs -> 0 | D145: units | E145: =IF(C145=0,"NA",acid_valve_size) -> NA | F145: =IF(C145=0,"","in. diam") ->  | G145: =IF(C145=0,"NA",IF(curve=1,acid_valve_size,VLOOKUP(acid_valve_size,ss_mov_cost_cl,2))) -> NA | H145: =IF(C145=0,"","in. diam") ->  | I145: =IF(C145=0,"NA",IF(curve=1,ss_mov_eq_acid,VLOOKUP(acid_valve_size,ss_mov_cost_cl,3))) -> NA | J145: -- | K145: =IF(C145=0,"NA",VLOOKUP(E145,ss_mov_cost_cl,IF(ss_cat="large",4,5))) -> NA | M145: Motor/Air Operated (on/off) Valves - Acid line - Stainless Steel | N145: 2 | O145: 1 | P145: 1 | Q145: 2 | R145: 1 | S145: 1 | T145: 2 | U145: 1 | V145: 1 | W145: 0 | X145: 0
A146: 4.1.4 | B146: Caustic line - Polypropylene/PVC | C146: =tot_caustic_MOVs -> 0 | D146: units | E146: =IF(C146=0,"NA",caustic_valve_size) -> NA | F146: =IF(C146=0,"","in. diam") ->  | G146: =IF(C146=0,"NA",IF(curve=1,caustic_valve_size,VLOOKUP(caustic_valve_size,pp_mov_cost_cl,2))) -> NA | H146: =IF(C146=0,"","in. diam") ->  | I146: =IF(C146=0,"NA",IF(curve=1,pp_mov_eq_caustic,VLOOKUP(caustic_valve_size,pp_mov_cost_cl,3))) -> NA | J146: -- | K146: =IF(C146=0,"NA",VLOOKUP(E146,pp_mov_cost_cl,IF(ss_cat="large",4,5))) -> NA | M146: Motor/Air Operated (on/off) Valves - Caustic line - Polypropylene/PVC | N146: 1 | O146: 2 | P146: 2 | Q146: 1 | R146: 2 | S146: 2 | T146: 1 | U146: 2 | V146: 2 | W146: 0 | X146: 0
A147: 4.1.4 | B147: Caustic line - Stainless Steel | C147: =tot_caustic_MOVs -> 0 | D147: units | E147: =IF(C147=0,"NA",caustic_valve_size) -> NA | F147: =IF(C147=0,"","in. diam") ->  | G147: =IF(C147=0,"NA",IF(curve=1,caustic_valve_size,VLOOKUP(caustic_valve_size,ss_mov_cost_cl,2))) -> NA | H147: =IF(C147=0,"","in. diam") ->  | I147: =IF(C147=0,"NA",IF(curve=1,ss_mov_eq_caustic,VLOOKUP(caustic_valve_size,ss_mov_cost_cl,3))) -> NA | J147: -- | K147: =IF(C147=0,"NA",VLOOKUP(E147,ss_mov_cost_cl,IF(ss_cat="large",4,5))) -> NA | M147: Motor/Air Operated (on/off) Valves - Caustic line - Stainless Steel | N147: 2 | O147: 1 | P147: 1 | Q147: 2 | R147: 1 | S147: 1 | T147: 2 | U147: 1 | V147: 1 | W147: 0 | X147: 0
A148: 4.1.5 | B148: Residuals - Polypropylene/PVC | C148: =total_res_MOVs -> 0 | D148: units | E148: =IF(C148=0,"NA",res_valve_size) -> NA | F148: =IF(C148=0,"","in. diam") ->  | G148: =IF(C148=0,"NA",IF(curve=1,res_valve_size,VLOOKUP(res_valve_size,pp_mov_cost_cl,2))) -> NA | H148: =IF(C148=0,"","in. diam") ->  | I148: =IF(C148=0,"NA",IF(curve=1,pp_mov_eq_res,VLOOKUP(res_valve_size,pp_mov_cost_cl,3))) -> NA | J148: -- | K148: =IF(C148=0,"NA",VLOOKUP(E148,pp_mov_cost_cl,IF(ss_cat="large",4,5))) -> NA | M148: Motor/Air Operated (on/off) Valves - Residuals - Polypropylene/PVC | N148: 1 | O148: 2 | P148: 3 | Q148: 1 | R148: 2 | S148: 3 | T148: 1 | U148: 2 | V148: 3 | W148: 0 | X148: 0
A149: 4.1.5 | B149: Residuals - Stainless Steel | C149: =total_res_MOVs -> 0 | D149: units | E149: =IF(C149=0,"NA",res_valve_size) -> NA | G149: =IF(C149=0,"NA",IF(curve=1,res_valve_size,VLOOKUP(res_valve_size,ss_mov_cost_cl,2))) -> NA | I149: =IF(C149=0,"NA",IF(curve=1,ss_mov_eq_res,VLOOKUP(res_valve_size,ss_mov_cost_cl,3))) -> NA | J149: -- | K149: =IF(C149=0,"NA",VLOOKUP(E149,ss_mov_cost_cl,IF(ss_cat="large",4,5))) -> NA | M149: Motor/Air Operated (on/off) Valves - Residuals - Stainless Steel | N149: 3 | O149: 3 | P149: 1 | Q149: 3 | R149: 3 | S149: 1 | T149: 3 | U149: 3 | V149: 1 | W149: 0 | X149: 0
A150: 4.1.5 | B150: Residuals - Cast Iron | C150: =total_res_MOVs -> 0 | D150: units | E150: =IF(C150=0,"NA",res_valve_size) -> NA | G150: =IF(C150=0,"NA",IF(curve=1,res_valve_size,VLOOKUP(res_valve_size,ci_mov_cost_cl,2))) -> NA | I150: =IF(C150=0,"NA",IF(curve=1,ci_mov_eq_res,VLOOKUP(res_valve_size,ci_mov_cost_cl,3))) -> NA | J150: -- | K150: =IF(C150=0,"NA",VLOOKUP(E150,ci_mov_cost_cl,IF(ss_cat="large",4,5))) -> NA | M150: =$B$137&" "&$B$136&" - "&B150 -> Motor/Air Operated (on/off) Valves - Residuals - Cast Iron | N150: 2 | O150: 1 | P150: 2 | Q150: 2 | R150: 1 | S150: 2 | T150: 2 | U150: 1 | V150: 2 | W150: 0 | X150: 0
A151: 4.1.6 | B151: Ferric Chloride - Polypropylene/PVC | C151: =tot_coag_MOVs -> 0 | D151: units | E151: =IF(C151=0,"NA",coag_valve_size) -> NA | G151: =IF(C151=0,"NA",IF(curve=1,coag_valve_size,VLOOKUP(coag_valve_size,pp_mov_cost_cl,2))) -> NA | I151: =IF(C151=0,"NA",IF(curve=1,pp_mov_eq_coag,VLOOKUP(coag_valve_size,pp_mov_cost_cl,3))) -> NA | J151: =IF(OR(C151=0,I151="contact vendor"),"--",C151*I151) -> -- | K151: =IF(C151=0,"NA",VLOOKUP(coag_valve_size,pp_mov_cost_cl,IF(ss_cat="large",4,5))) -> NA | M151: =$B$137&" "&$B$136&" - "&B151 -> Motor/Air Operated (on/off) Valves - Ferric Chloride - Polypropylene/PVC | N151: 1 | O151: 1 | P151: 1 | Q151: 1 | R151: 1 | S151: 1 | T151: 1 | U151: 1 | V151: 1 | W151: 0 | X151: 0
A152: 4.1.7 | B152: Polymer- Polypropylene/PVC | C152: =tot_polymer_MOVs -> 0 | D152: units | E152: =IF(C152=0,"NA",polymer_valve_size) -> NA | G152: =IF(C152=0,"NA",IF(curve=1,polymer_valve_size,VLOOKUP(polymer_valve_size,pp_mov_cost_cl,2))) -> NA | I152: =IF(C152=0,"NA",IF(curve=1,pp_mov_eq_polymer,VLOOKUP(polymer_valve_size,pp_mov_cost_cl,3))) -> NA | J152: =IF(OR(C152=0,I152="contact vendor"),"--",C152*I152) -> -- | K152: =IF(C152=0,"NA",VLOOKUP(polymer_valve_size,pp_mov_cost_cl,IF(ss_cat="large",4,5))) -> NA | M152: =$B$137&" "&$B$136&" - "&B152 -> Motor/Air Operated (on/off) Valves - Polymer- Polypropylene/PVC | N152: 1 | O152: 2 | P152: 3 | Q152: 1 | R152: 2 | S152: 3 | T152: 1 | U152: 2 | V152: 3 | W152: 0 | X152: 0
A153: 4.1.7 | B153: Polymer- Stainless Steel | C153: =tot_polymer_MOVs -> 0 | D153: units | E153: =IF(C153=0,"NA",polymer_valve_size) -> NA | G153: =IF(C153=0,"NA",IF(curve=1,polymer_valve_size,VLOOKUP(polymer_valve_size,ss_mov_cost_cl,2))) -> NA | I153: =IF(C153=0,"NA",IF(curve=1,ss_mov_eq_polymer,VLOOKUP(polymer_valve_size,ss_mov_cost_cl,3))) -> NA | J153: -- | K153: =IF(C153=0,"NA",VLOOKUP(polymer_valve_size,ss_mov_cost_cl,IF(ss_cat="large",4,5))) -> NA | M153: =$B$137&" "&$B$136&" - "&B153 -> Motor/Air Operated (on/off) Valves - Polymer- Stainless Steel | N153: 3 | O153: 3 | P153: 1 | Q153: 3 | R153: 3 | S153: 1 | T153: 3 | U153: 3 | V153: 1 | W153: 0 | X153: 0
A154: 4.1.7 | B154: Polymer- Cast Iron | C154: =tot_polymer_MOVs -> 0 | D154: units | E154: =IF(C154=0,"NA",polymer_valve_size) -> NA | G154: =IF(C154=0,"NA",IF(curve=1,polymer_valve_size,VLOOKUP(polymer_valve_size,ci_mov_cost_cl,2))) -> NA | I154: =IF(C154=0,"NA",IF(curve=1,ci_mov_eq_polymer,VLOOKUP(polymer_valve_size,ci_mov_cost_cl,3))) -> NA | J154: -- | K154: =IF(C154=0,"NA",VLOOKUP(polymer_valve_size,ci_mov_cost_cl,IF(ss_cat="large",4,5))) -> NA | M154: =$B$137&" "&$B$136&" - "&B154 -> Motor/Air Operated (on/off) Valves - Polymer- Cast Iron | N154: 2 | O154: 1 | P154: 2 | Q154: 2 | R154: 1 | S154: 2 | T154: 2 | U154: 1 | V154: 2 | W154: 0 | X154: 0
A155: 4.1.8 | B155: Bypass - Polypropylene/PVC | C155: =IF(bp_pct>0,tot_bp_MOVs,0) -> 0 | D155: units | E155: =IF(bp_pct=0,"NA",bypass_valve_size) -> NA | F155: =IF(bp_pct=0," ","in. diam") ->  | G155: =IF(bp_pct=0,"NA",(IF(curve=1,bypass_valve_size,VLOOKUP(bypass_valve_size,pp_mov_cost_cl,2)))) -> NA | H155: =IF(bp_pct=0," ","in. diam") ->  | I155: =IF(bp_pct=0,"NA",(IF(curve=1,pp_mov_eq_bp,VLOOKUP(bypass_valve_size,pp_mov_cost_cl,3)))) -> NA | J155: -- | K155: =IF(C155=0,"NA",VLOOKUP(E155,pp_mov_cost_cl,IF(ss_cat="large",4,5))) -> NA | M155: Motor/Air Operated (on/off) Valves - Bypass - Polypropylene/PVC | N155: 1 | O155: 2 | P155: 3 | Q155: 1 | R155: 2 | S155: 3 | T155: 1 | U155: 2 | V155: 3 | W155: 0 | X155: 0
A156: 4.1.8 | B156: Bypass - Stainless Steel | C156: =IF(bp_pct>0,tot_bp_MOVs,0) -> 0 | D156: units | E156: =IF(bp_pct=0,"NA",bypass_valve_size) -> NA | F156: =IF(bp_pct=0," ","in. diam") ->  | G156: =IF(bp_pct=0,"NA",(IF(curve=1,bypass_valve_size,VLOOKUP(bypass_valve_size,ss_mov_cost_cl,2)))) -> NA | H156: =IF(bp_pct=0," ","in. diam") ->  | I156: =IF(bp_pct=0,"NA",(IF(curve=1,ss_mov_eq_bp,VLOOKUP(bypass_valve_size,ss_mov_cost_cl,3)))) -> NA | J156: -- | K156: =IF(C156=0,"NA",VLOOKUP(E156,ss_mov_cost_cl,IF(ss_cat="large",4,5))) -> NA | M156: Motor/Air Operated (on/off) Valves - Bypass - Stainless Steel | N156: 3 | O156: 3 | P156: 1 | Q156: 3 | R156: 3 | S156: 1 | T156: 3 | U156: 3 | V156: 1 | W156: 0 | X156: 0
A157: 4.1.8 | B157: Bypass - Cast Iron | C157: =IF(bp_pct>0,tot_bp_MOVs,0) -> 0 | D157: units | E157: =IF(bp_pct=0,"NA",bypass_valve_size) -> NA | F157: =IF(bp_pct=0," ","in. diam") ->  | G157: =IF(bp_pct=0,"NA",(IF(curve=1,bypass_valve_size,VLOOKUP(bypass_valve_size,ci_mov_cost_cl,2)))) -> NA | H157: =IF(bp_pct=0," ","in. diam") ->  | I157: =IF(bp_pct=0,"NA",(IF(curve=1,ci_mov_eq_bp,VLOOKUP(bypass_valve_size,ci_mov_cost_cl,3)))) -> NA | J157: -- | K157: =IF(C157=0,"NA",VLOOKUP(E157,ci_mov_cost_cl,IF(ss_cat="large",4,5))) -> NA | M157: Motor/Air Operated (on/off) Valves - Bypass - Cast Iron | N157: 2 | O157: 1 | P157: 2 | Q157: 2 | R157: 1 | S157: 2 | T157: 2 | U157: 1 | V157: 2 | W157: 0 | X157: 0
A158: 4.2 | B158: Manual | W158: 0 | X158: 0
A159: 4.2.1 | B159: Influent and treated water - Polypropylene/PVC | C159: =tot_man_valves -> 2 | D159: units | E159: =in_valve_size -> 1.5 | F159: in. diam | G159: =IF(curve=1,in_valve_size,VLOOKUP(in_valve_size,pp_man_cost_cl,2)) -> 1.5 | H159: in. diam | I159: =IF(curve=1,pp_man_eq,VLOOKUP(in_valve_size,pp_man_cost_cl,3)) -> 207.8491463 | J159: =IF(I159="contact vendor","--",C159*I159) -> 415.6982927 | K159: =IF(C159=0,"NA",VLOOKUP(E159,pp_man_cost_cl,IF(ss_cat="large",4,5))) -> 20 | L159: 1 | M159: =$B$158&" "&$B$136&" - "&B159 -> Manual Valves - Influent and treated water - Polypropylene/PVC | N159: 1 | O159: 2 | P159: 3 | Q159: 1 | R159: 2 | S159: 3 | T159: 1 | U159: 2 | V159: 3 | W159: 1 | X159: 20.78491463
A160: 4.2.1 | B160: Influent and treated water - Stainless Steel | C160: =tot_man_valves -> 2 | D160: units | E160: =in_valve_size -> 1.5 | F160: in. diam | G160: =IF(curve=1,in_valve_size,VLOOKUP(in_valve_size,ss_man_cost_cl,2)) -> 1.5 | H160: in. diam | I160: =IF(curve=1,ss_man_eq,VLOOKUP(in_valve_size,ss_man_cost_cl,3)) -> 395.8808732 | J160: 791.7617464 | K160: =IF(C160=0,"NA",VLOOKUP(E160,ss_man_cost_cl,IF(ss_cat="large",4,5))) -> 20 | L160: 0 | M160: =$B$158&" "&$B$136&" - "&B160 -> Manual Valves - Influent and treated water - Stainless Steel | N160: 3 | O160: 3 | P160: 1 | Q160: 3 | R160: 3 | S160: 1 | T160: 3 | U160: 3 | V160: 1 | W160: 0 | X160: 0
A161: 4.2.1 | B161: Influent and treated water - Cast Iron | C161: =tot_man_valves -> 2 | D161: units | E161: =in_valve_size -> 1.5 | F161: in. diam | G161: =IF(curve=1,in_valve_size,VLOOKUP(in_valve_size,ci_bfv_cost_cl,2)) -> 1.5 | H161: in. diam | I161: =IF(curve=1,ci_bfv_eq,VLOOKUP(in_valve_size,ci_bfv_cost_cl,3)) -> 338.9786776 | J161: 677.9573551 | K161: =IF(C161=0,"NA",VLOOKUP(E161,ci_bfv_cost_cl,IF(ss_cat="large",4,5))) -> 20 | L161: 0 | M161: Manual Valves - Influent and treated water - Cast Iron | N161: 2 | O161: 1 | P161: 2 | Q161: 2 | R161: 1 | S161: 2 | T161: 2 | U161: 1 | V161: 2 | W161: 0 | X161: 0
A162: 4.2.2 | B162: Process - Polypropylene/PVC | C162: =tot_proc_man -> 8 | D162: units | E162: =tank_valve_size -> 2 | F162: in. diam | G162: =IF(curve=1,tank_valve_size,VLOOKUP(tank_valve_size,pp_man_cost_cl,2)) -> 2 | H162: in. diam | I162: =IF(curve=1,pp_man_eq_proc,VLOOKUP(tank_valve_size,pp_man_cost_cl,3)) -> 251.584202 | J162: 2012.673616 | K162: =IF(C162=0,"NA",VLOOKUP(E162,pp_man_cost_cl,IF(ss_cat="large",4,5))) -> 20 | L162: 1 | M162: Manual Valves - Process - Polypropylene/PVC | N162: 1 | O162: 2 | P162: 3 | Q162: 1 | R162: 2 | S162: 3 | T162: 1 | U162: 2 | V162: 3 | W162: 1 | X162: 100.6336808
A163: 4.2.2 | B163: Process - Stainless Steel | C163: =tot_proc_man -> 8 | D163: units | E163: =tank_valve_size -> 2 | F163: in. diam | G163: =IF(curve=1,tank_valve_size,VLOOKUP(tank_valve_size,ss_man_cost_cl,2)) -> 2 | H163: in. diam | I163: =IF(curve=1,ss_man_eq_proc,VLOOKUP(tank_valve_size,ss_man_cost_cl,3)) -> 516.6909108 | J163: 4133.527286 | K163: =IF(C163=0,"NA",VLOOKUP(E163,ss_man_cost_cl,IF(ss_cat="large",4,5))) -> 20 | L163: 0 | M163: Manual Valves - Process - Stainless Steel | N163: 3 | O163: 3 | P163: 1 | Q163: 3 | R163: 3 | S163: 1 | T163: 3 | U163: 3 | V163: 1 | W163: 0 | X163: 0
A164: 4.2.2 | B164: Process - Cast Iron | C164: =tot_proc_man -> 8 | D164: units | E164: =tank_valve_size -> 2 | F164: in. diam | G164: =IF(curve=1,tank_valve_size,VLOOKUP(tank_valve_size,ci_bfv_cost_cl,2)) -> 2 | H164: in. diam | I164: =IF(curve=1,ci_bfv_eq_proc,VLOOKUP(tank_valve_size,ci_bfv_cost_cl,3)) -> 458.0413185 | J164: 3664.330548 | K164: =IF(C164=0,"NA",VLOOKUP(E164,ci_bfv_cost_cl,IF(ss_cat="large",4,5))) -> 20 | L164: 0 | M164: Manual Valves - Process - Cast Iron | N164: 2 | O164: 1 | P164: 2 | Q164: 2 | R164: 1 | S164: 2 | T164: 2 | U164: 1 | V164: 2 | W164: 0 | X164: 0
A165: 4.2.3 | B165: Backwash - Polypropylene/PVC | C165: =tot_back_man -> 5 | D165: units | E165: =back_valve_size -> 2.5 | F165: in. diam | G165: =IF(curve=1,back_valve_size,VLOOKUP(back_valve_size,pp_man_cost_cl,2)) -> 2.5 | H165: in. diam | I165: =IF(curve=1,pp_man_eq_back,VLOOKUP(back_valve_size,pp_man_cost_cl,3)) -> 301.3781694 | J165: =IF(I165="contact vendor","--",C165*I165) -> 1506.890847 | K165: =IF(C165=0,"NA",VLOOKUP(E165,pp_man_cost_cl,IF(ss_cat="large",4,5))) -> 20 | L165: 1 | M165: Manual Valves - Backwash - Polypropylene/PVC | N165: 1 | O165: 2 | P165: 3 | Q165: 1 | R165: 2 | S165: 3 | T165: 1 | U165: 2 | V165: 3 | W165: 1 | X165: 75.34454236
A166: 4.2.3 | B166: Backwash - Stainless Steel | C166: =tot_back_man -> 5 | D166: units | E166: =back_valve_size -> 2.5 | F166: in. diam | G166: =IF(curve=1,back_valve_size,VLOOKUP(back_valve_size,ss_man_cost_cl,2)) -> 2.5 | H166: in. diam | I166: =IF(curve=1,ss_man_eq_back,VLOOKUP(back_valve_size,ss_man_cost_cl,3)) -> 635.255708 | J166: =IF(I166="contact vendor","--",C166*I166) -> 3176.27854 | K166: =IF(C166=0,"NA",VLOOKUP(E166,ss_man_cost_cl,IF(ss_cat="large",4,5))) -> 20 | L166: 0 | M166: Manual Valves - Backwash - Stainless Steel | N166: 3 | O166: 3 | P166: 1 | Q166: 3 | R166: 3 | S166: 1 | T166: 3 | U166: 3 | V166: 1 | W166: 0 | X166: 0
A167: 4.2.3 | B167: Backwash - Cast Iron | C167: =tot_back_man -> 5 | D167: units | E167: =back_valve_size -> 2.5 | F167: in. diam | G167: =IF(curve=1,back_valve_size,VLOOKUP(back_valve_size,ci_bfv_cost_cl,2)) -> 2.5 | H167: in. diam | I167: =IF(curve=1,ci_bfv_eq_back,VLOOKUP(back_valve_size,ci_bfv_cost_cl,3)) -> 578.5068245 | J167: =IF(I167="contact vendor","--",C167*I167) -> 2892.534123 | K167: =IF(C167=0,"NA",VLOOKUP(E167,ci_bfv_cost_cl,IF(ss_cat="large",4,5))) -> 20 | L167: 0 | M167: Manual Valves - Backwash - Cast Iron | N167: 2 | O167: 1 | P167: 2 | Q167: 2 | R167: 1 | S167: 2 | T167: 2 | U167: 1 | V167: 2 | W167: 0 | X167: 0
A168: 4.2.4 | B168: Acid line - Polypropylene/PVC | C168: =tot_acid_man -> 5 | D168: units | E168: =IF(C168=0,"NA",acid_valve_size) -> 0.5 | F168: =IF(C168=0,"","in. diam") -> in. diam | G168: =IF(C168=0,"NA",IF(curve=1,acid_valve_size,VLOOKUP(acid_valve_size,pp_man_cost_cl,2))) -> 0.5 | H168: =IF(C168=0,"","in. diam") -> in. diam | I168: =IF(C168=0,"NA",IF(curve=1,pp_man_eq_acid,VLOOKUP(acid_valve_size,pp_man_cost_cl,3))) -> 138.5557703 | J168: =IF(C168=0,0,IF(I168="contact vendor","--",C168*I168)) -> 692.7788515 | K168: =IF(C168=0,"NA",VLOOKUP(E168,pp_man_cost_cl,IF(ss_cat="large",4,5))) -> 20 | L168: 1 | M168: Manual Valves - Acid line - Polypropylene/PVC | N168: 1 | O168: 2 | P168: 2 | Q168: 1 | R168: 2 | S168: 2 | T168: 1 | U168: 2 | V168: 2 | W168: 1 | X168: 34.63894257
A169: 4.2.4 | B169: Acid line - Stainless Steel | C169: =tot_acid_man -> 5 | D169: units | E169: =IF(C169=0,"NA",acid_valve_size) -> 0.5 | F169: =IF(C169=0,"","in. diam") -> in. diam | G169: =IF(C169=0,"NA",IF(curve=1,acid_valve_size,VLOOKUP(acid_valve_size,ss_man_cost_cl,2))) -> 0.5 | H169: =IF(C169=0,"","in. diam") -> in. diam | I169: =IF(C169=0,"NA",IF(curve=1,ss_man_eq_acid,VLOOKUP(acid_valve_size,ss_man_cost_cl,3))) -> 143.1703951 | J169: =IF(C169=0,0,IF(I169="contact vendor","--",C169*I169)) -> 715.8519753 | K169: =IF(C169=0,"NA",VLOOKUP(E169,ss_man_cost_cl,IF(ss_cat="large",4,5))) -> 20 | L169: 0 | M169: Manual Valves - Acid line - Stainless Steel | N169: 2 | O169: 1 | P169: 1 | Q169: 2 | R169: 1 | S169: 1 | T169: 2 | U169: 1 | V169: 1 | W169: 0 | X169: 0
A170: 4.2.5 | B170: Caustic line - Polypropylene/PVC | C170: =tot_caustic_man -> 4 | D170: units | E170: =IF(C170=0,"NA",caustic_valve_size) -> 0.5 | F170: =IF(C170=0,"","in. diam") -> in. diam | G170: =IF(C170=0,"NA",IF(curve=1,caustic_valve_size,VLOOKUP(caustic_valve_size,pp_man_cost_cl,2))) -> 0.5 | H170: =IF(C170=0,"","in. diam") -> in. diam | I170: =IF(C170=0,"NA",IF(curve=1,pp_man_eq_caustic,VLOOKUP(caustic_valve_size,pp_man_cost_cl,3))) -> 138.5557703 | J170: =IF(C170=0,0,IF(I170="contact vendor","--",C170*I170)) -> 554.2230812 | K170: =IF(C170=0,"NA",VLOOKUP(E170,pp_man_cost_cl,IF(ss_cat="large",4,5))) -> 20 | L170: 1 | M170: Manual Valves - Caustic line - Polypropylene/PVC | N170: 1 | O170: 2 | P170: 2 | Q170: 1 | R170: 2 | S170: 2 | T170: 1 | U170: 2 | V170: 2 | W170: 1 | X170: 27.71115406
A171: 4.2.5 | B171: Caustic line - Stainless Steel | C171: =tot_caustic_man -> 4 | D171: units | E171: =IF(C171=0,"NA",caustic_valve_size) -> 0.5 | F171: =IF(C171=0,"","in. diam") -> in. diam | G171: =IF(C171=0,"NA",IF(curve=1,caustic_valve_size,VLOOKUP(caustic_valve_size,ss_man_cost_cl,2))) -> 0.5 | H171: =IF(C171=0,"","in. diam") -> in. diam | I171: =IF(C171=0,"NA",IF(curve=1,ss_man_eq_caustic,VLOOKUP(caustic_valve_size,ss_man_cost_cl,3))) -> 143.1703951 | J171: =IF(C171=0,0,IF(I171="contact vendor","--",C171*I171)) -> 572.6815802 | K171: =IF(C171=0,"NA",VLOOKUP(E171,ss_man_cost_cl,IF(ss_cat="large",4,5))) -> 20 | L171: 0 | M171: Manual Valves - Caustic line - Stainless Steel | N171: 2 | O171: 1 | P171: 1 | Q171: 2 | R171: 1 | S171: 1 | T171: 2 | U171: 1 | V171: 1 | W171: 0 | X171: =IF(W171,J171/K171,0) -> 0
A172: 4.2.6 | B172: Residuals - Polypropylene/PVC | C172: =total_res_man -> 3 | D172: units | E172: =IF(C172=0,"NA",res_valve_size) -> 1 | F172: =IF(C172=0,"","in. diam") -> in. diam | G172: =IF(C172=0,"NA",IF(curve=1,res_valve_size,VLOOKUP(res_valve_size,pp_man_cost_cl,2))) -> 1 | H172: =IF(C172=0,"","in. diam") -> in. diam | I172: =IF(C172=0,0,IF(curve=1,pp_man_eq_res,VLOOKUP(res_valve_size,pp_man_cost_cl,3))) -> 170.1730024 | J172: =IF(I172="contact vendor","--",C172*I172) -> 510.5190073 | K172: =IF(C172=0,"NA",VLOOKUP(E172,pp_man_cost_cl,IF(ss_cat="large",4,5))) -> 20 | L172: 1 | M172: Manual Valves - Residuals - Polypropylene/PVC | N172: 1 | O172: 2 | P172: 3 | Q172: 1 | R172: 2 | S172: 3 | T172: 1 | U172: 2 | V172: 3 | W172: 1 | X172: 25.52595036
A173: 4.2.6 | B173: Residuals - Stainless Steel | C173: =total_res_man -> 3 | D173: units | E173: =IF(C173=0,"NA",res_valve_size) -> 1 | F173: in. diam | G173: =IF(C173=0,"NA",IF(curve=1,res_valve_size,VLOOKUP(res_valve_size,ss_man_cost_cl,2))) -> 1 | H173: in. diam | I173: =IF(C173=0,0,IF(curve=1,ss_man_eq_res,VLOOKUP(res_valve_size,ss_man_cost_cl,3))) -> 271.9831646 | J173: =IF(I173="contact vendor","--",C173*I173) -> 815.9494938 | K173: =IF(C173=0,"NA",VLOOKUP(E173,ss_man_cost_cl,IF(ss_cat="large",4,5))) -> 20 | L173: 0 | M173: Manual Valves - Residuals - Stainless Steel | N173: 3 | O173: 3 | P173: 1 | Q173: 3 | R173: 3 | S173: 1 | T173: 3 | U173: 3 | V173: 1 | W173: 0 | X173: 0
A174: 4.2.6 | B174: Residuals - Cast Iron | C174: =total_res_man -> 3 | D174: units | E174: =IF(C174=0,"NA",res_valve_size) -> 1 | F174: in. diam | G174: =IF(C174=0,"NA",IF(curve=1,res_valve_size,VLOOKUP(res_valve_size,ci_bfv_cost_cl,2))) -> 1 | H174: in. diam | I174: =IF(C174=0,0,IF(curve=1,ci_bfv_eq_res,VLOOKUP(res_valve_size,ci_bfv_cost_cl,3))) -> 221.7765322 | J174: =IF(I174="contact vendor","--",C174*I174) -> 665.3295965 | K174: =IF(C174=0,"NA",VLOOKUP(E174,ci_bfv_cost_cl,IF(ss_cat="large",4,5))) -> 20 | L174: 0 | M174: =$B$158&" "&$B$136&" - "&B174 -> Manual Valves - Residuals - Cast Iron | N174: 2 | O174: 1 | P174: 2 | Q174: 2 | R174: 1 | S174: 2 | T174: 2 | U174: 1 | V174: 2 | W174: 0 | X174: 0
A175: 4.2.7 | B175: Ferric Chloride - Polypropylene/PVC | C175: =tot_coag_man -> 0 | D175: units | E175: =IF(C175=0,"NA",coag_valve_size) -> NA | G175: =IF(C175=0,"NA",IF(curve=1,coag_valve_size,VLOOKUP(coag_valve_size,pp_man_cost_cl,2))) -> NA | I175: =IF(C175=0,"NA",IF(curve=1,pp_man_eq_coag,VLOOKUP(coag_valve_size,pp_man_cost_cl,3))) -> NA | J175: =IF(OR(C175=0,I175="contact vendor"),"--",C175*I175) -> -- | K175: =IF(C175=0,"NA",VLOOKUP(coag_valve_size,pp_man_cost_cl,IF(ss_cat="large",4,5))) -> NA | M175: Manual Valves - Ferric Chloride - Polypropylene/PVC | N175: 1 | O175: 1 | P175: 1 | Q175: 1 | R175: 1 | S175: 1 | T175: 1 | U175: 1 | V175: 1 | W175: 0 | X175: 0
A176: 4.2.8 | B176: Polymer- Polypropylene/PVC | C176: =tot_polymer_man -> 0 | D176: units | E176: =IF(C176=0,"NA",polymer_valve_size) -> NA | G176: =IF(C176=0,"NA",IF(curve=1,polymer_valve_size,VLOOKUP(polymer_valve_size,pp_man_cost_cl,2))) -> NA | I176: =IF(C176=0,"NA",IF(curve=1,pp_man_eq_polymer,VLOOKUP(polymer_valve_size,pp_man_cost_cl,3))) -> NA | J176: =IF(OR(C176=0,I176="contact vendor"),"--",C176*I176) -> -- | K176: =IF(C176=0,"NA",VLOOKUP(polymer_valve_size,pp_man_cost_cl,IF(ss_cat="large",4,5))) -> NA | M176: Manual Valves - Polymer- Polypropylene/PVC | N176: 1 | O176: 2 | P176: 3 | Q176: 1 | R176: 2 | S176: 3 | T176: 1 | U176: 2 | V176: 3 | W176: =IF(ISERROR(K176*L176),0,IF(K176<1,0,L176)) -> 0 | X176: 0
A177: 4.2.8 | B177: Polymer- Stainless Steel | C177: =tot_polymer_man -> 0 | D177: units | E177: =IF(C177=0,"NA",polymer_valve_size) -> NA | G177: =IF(C177=0,"NA",IF(curve=1,polymer_valve_size,VLOOKUP(polymer_valve_size,ss_man_cost_cl,2))) -> NA | I177: =IF(C177=0,"NA",IF(curve=1,ss_man_eq_polymer,VLOOKUP(polymer_valve_size,ss_man_cost_cl,3))) -> NA | J177: -- | K177: =IF(C177=0,"NA",VLOOKUP(polymer_valve_size,ss_man_cost_cl,IF(ss_cat="large",4,5))) -> NA | M177: Manual Valves - Polymer- Stainless Steel | N177: 3 | O177: 3 | P177: 1 | Q177: 3 | R177: 3 | S177: 1 | T177: 3 | U177: 3 | V177: 1 | W177: =IF(ISERROR(K177*L177),0,IF(K177<1,0,L177)) -> 0 | X177: 0
A178: 4.2.8 | B178: Polymer- Cast Iron | C178: =tot_polymer_man -> 0 | D178: units | E178: =IF(C178=0,"NA",polymer_valve_size) -> NA | G178: =IF(C178=0,"NA",IF(curve=1,polymer_valve_size,VLOOKUP(polymer_valve_size,ci_bfv_cost_cl,2))) -> NA | I178: =IF(C178=0,"NA",IF(curve=1,ci_man_eq_polymer,VLOOKUP(polymer_valve_size,ci_bfv_cost_cl,3))) -> NA | J178: -- | K178: =IF(C178=0,"NA",VLOOKUP(polymer_valve_size,ci_bfv_cost_cl,IF(ss_cat="large",4,5))) -> NA | M178: Manual Valves - Polymer- Cast Iron | N178: 2 | O178: 1 | P178: 2 | Q178: 2 | R178: 1 | S178: 2 | T178: 2 | U178: 1 | V178: 2 | W178: =IF(ISERROR(K178*L178),0,IF(K178<1,0,L178)) -> 0 | X178: 0
A179: 4.2.9 | B179: Bypass - Polypropylene/PVC | C179: =IF(bp_pct>0,tot_bp_man,0) -> 0 | D179: units | E179: =IF(bp_pct=0,"NA",bypass_valve_size) -> NA | F179: =IF(bp_pct=0," ","in. diam") ->  | G179: =IF(bp_pct=0,"NA",(IF(curve=1,bypass_valve_size,VLOOKUP(bypass_valve_size,pp_man_cost_cl,2)))) -> NA | H179: =IF(bp_pct=0," ","in. diam") ->  | I179: =IF(bp_pct=0,"NA",(IF(curve=1,pp_man_eq_bp,VLOOKUP(bypass_valve_size,pp_man_cost_cl,3)))) -> NA | J179: -- | K179: =IF(C179=0,"NA",VLOOKUP(E179,pp_man_cost_cl,IF(ss_cat="large",4,5))) -> NA | M179: Manual Valves - Bypass - Polypropylene/PVC | N179: 1 | O179: 2 | P179: 3 | Q179: 1 | R179: 2 | S179: 3 | T179: 1 | U179: 2 | V179: 3 | W179: =IF(ISERROR(K179*L179),0,IF(K179<1,0,L179)) -> 0 | X179: =IF(W179,J179/K179,0) -> 0
A180: 4.2.9 | B180: Bypass - Stainless Steel | C180: =IF(bp_pct>0,tot_bp_man,0) -> 0 | D180: units | E180: =IF(bp_pct=0,"NA",bypass_valve_size) -> NA | F180: =IF(bp_pct=0," ","in. diam") ->  | G180: =IF(bp_pct=0,"NA",(IF(curve=1,bypass_valve_size,VLOOKUP(bypass_valve_size,ss_man_cost_cl,2)))) -> NA | H180: =IF(bp_pct=0," ","in. diam") ->  | I180: =IF(bp_pct=0,"NA",(IF(curve=1,ss_man_eq_bp,VLOOKUP(bypass_valve_size,ss_man_cost_cl,3)))) -> NA | J180: -- | K180: =IF(C180=0,"NA",VLOOKUP(E180,ss_man_cost_cl,IF(ss_cat="large",4,5))) -> NA | M180: Manual Valves - Bypass - Stainless Steel | N180: 3 | O180: 3 | P180: 1 | Q180: 3 | R180: 3 | S180: 1 | T180: 3 | U180: 3 | V180: 1 | W180: 0 | X180: 0
A181: 4.2.9 | B181: Bypass - Cast Iron | C181: =IF(bp_pct>0,tot_bp_man,0) -> 0 | D181: units | E181: =IF(bp_pct=0,"NA",bypass_valve_size) -> NA | F181: =IF(bp_pct=0," ","in. diam") ->  | G181: =IF(bp_pct=0,"NA",(IF(curve=1,bypass_valve_size,VLOOKUP(bypass_valve_size,ci_bfv_cost_cl,2)))) -> NA | H181: =IF(bp_pct=0," ","in. diam") ->  | I181: =IF(bp_pct=0,"NA",(IF(curve=1,ci_man_eq_bp,VLOOKUP(bypass_valve_size,ci_bfv_cost_cl,3)))) -> NA | J181: -- | K181: =IF(C181=0,"NA",VLOOKUP(E181,ci_bfv_cost_cl,IF(ss_cat="large",4,5))) -> NA | M181: Manual Valves - Bypass - Cast Iron | N181: 2 | O181: 1 | P181: 2 | Q181: 2 | R181: 1 | S181: 2 | T181: 2 | U181: 1 | V181: 2 | W181: 0 | X181: 0
A182: 4.3 | B182: Check Valves | W182: 0 | X182: 0
A183: 4.3.1 | B183: Backwash - Polypropylene/PVC | C183: =tot_back_chv -> 1 | D183: units | E183: =IF(C183=0,"NA",back_valve_size) -> 2.5 | F183: =IF(C183=0,"","in. diam") -> in. diam | G183: =IF(C183=0,"NA",IF(curve=1,back_valve_size,VLOOKUP(back_valve_size,pp_chv_cost_cl,2))) -> 2.5 | H183: =IF(C183=0,"","in. diam") -> in. diam | I183: =IF(C183=0,"NA",IF(curve=1,pp_chv_eq_back,VLOOKUP(back_valve_size,pp_chv_cost_cl,3))) -> 327.2703519 | J183: =IF(C183=0,0,IF(I183="contact vendor","--",C183*I183)) -> 327.2703519 | K183: =IF(C183=0,"NA",VLOOKUP(E183,pp_chv_cost_cl,IF(ss_cat="large",4,5))) -> 20 | L183: 1 | M183: =$B$182&" - "&B183 -> Check Valves - Backwash - Polypropylene/PVC | N183: 1 | O183: 2 | P183: 3 | Q183: 1 | R183: 2 | S183: 3 | T183: 1 | U183: 2 | V183: 3 | W183: 1 | X183: 16.36351759
A184: 4.3.1 | B184: Backwash - Stainless Steel | C184: =tot_back_chv -> 1 | D184: units | E184: =IF(C184=0,"NA",back_valve_size) -> 2.5 | F184: in. diam | G184: =IF(C184=0,"NA",IF(curve=1,back_valve_size,VLOOKUP(back_valve_size,ss_chv_cost_cl,2))) -> 2.5 | H184: in. diam | I184: =IF(C184=0,"NA",IF(curve=1,ss_chv_eq_back,VLOOKUP(back_valve_size,ss_chv_cost_cl,3))) -> 854.4219715 | J184: 854.4219715 | K184: =IF(C184=0,"NA",VLOOKUP(E184,ss_chv_cost_cl,IF(ss_cat="large",4,5))) -> 20 | L184: 0 | M184: Check Valves - Backwash - Stainless Steel | N184: 3 | O184: 3 | P184: 1 | Q184: 3 | R184: 3 | S184: 1 | T184: 3 | U184: 3 | V184: 1 | W184: 0 | X184: 0
A185: 4.3.1 | B185: Backwash - Cast Iron | C185: =tot_back_chv -> 1 | D185: units | E185: =IF(C185=0,"NA",back_valve_size) -> 2.5 | F185: in. diam | G185: =IF(C185=0,"NA",IF(curve=1,back_valve_size,VLOOKUP(back_valve_size,ci_bfv_cost_cl,2))) -> 2.5 | H185: in. diam | I185: =IF(C185=0,"NA",IF(curve=1,ci_chv_eq_back,VLOOKUP(back_valve_size,ci_bfv_cost_cl,3))) -> 836.145396 | J185: 836.145396 | K185: =IF(C185=0,"NA",VLOOKUP(E185,ci_chv_cost_cl,IF(ss_cat="large",4,5))) -> 20 | L185: 0 | M185: Check Valves - Backwash - Cast Iron | N185: 2 | O185: 1 | P185: 2 | Q185: 2 | R185: 1 | S185: 2 | T185: 2 | U185: 1 | V185: 2 | W185: 0 | X185: 0
A186: 4.3.2 | B186: Acid line - Polypropylene/PVC | C186: =tot_acid_chv -> 4 | D186: units | E186: =IF(C186=0,"NA",acid_valve_size) -> 0.5 | F186: in. diam | G186: =IF(C186=0,"NA",IF(curve=1,acid_valve_size,VLOOKUP(acid_valve_size,pp_chv_cost_cl,2))) -> 0.5 | H186: in. diam | I186: =IF(C186=0,"NA",IF(curve=1,pp_chv_eq_acid,VLOOKUP(acid_valve_size,pp_chv_cost_cl,3))) -> 76.11900968 | J186: 304.4760387 | K186: =IF(C186=0,"NA",VLOOKUP(E186,pp_chv_cost_cl,IF(ss_cat="large",4,5))) -> 20 | L186: 1 | M186: Check Valves - Acid line - Polypropylene/PVC | N186: 1 | O186: 2 | P186: 2 | Q186: 1 | R186: 2 | S186: 2 | T186: 1 | U186: 2 | V186: 2 | W186: 1 | X186: 15.22380194
A187: 4.3.2 | B187: Acid line - Stainless Steel | C187: =tot_acid_chv -> 4 | D187: units | E187: =IF(C187=0,"NA",acid_valve_size) -> 0.5 | F187: in. diam | G187: =IF(C187=0,"NA",IF(curve=1,acid_valve_size,VLOOKUP(acid_valve_size,ss_chv_cost_cl,2))) -> 0.5 | H187: in. diam | I187: =IF(C187=0,"NA",IF(curve=1,ss_chv_eq_acid,VLOOKUP(acid_valve_size,ss_chv_cost_cl,3))) -> 218.4037498 | J187: 873.614999 | K187: =IF(C187=0,"NA",VLOOKUP(E187,ss_chv_cost_cl,IF(ss_cat="large",4,5))) -> 20 | L187: 0 | M187: Check Valves - Acid line - Stainless Steel | N187: 2 | O187: 1 | P187: 1 | Q187: 2 | R187: 1 | S187: 1 | T187: 2 | U187: 1 | V187: 1 | W187: 0 | X187: 0
A188: 4.3.3 | B188: Caustic line - Polypropylene/PVC | C188: =tot_caustic_chv -> 4 | D188: units | E188: =IF(C188=0,"NA",caustic_valve_size) -> 0.5 | F188: in. diam | G188: =IF(C188=0,"NA",IF(caustic_valve_size=0,0,IF(curve=1,caustic_valve_size,VLOOKUP(caustic_valve_size,pp_chv_cost_cl,2)))) -> 0.5 | H188: in. diam | I188: =IF(C188=0,"NA",IF(curve=1,pp_chv_eq_caustic,VLOOKUP(caustic_valve_size,pp_chv_cost_cl,3))) -> 76.11900968 | J188: 304.4760387 | K188: =IF(C188=0,"NA",VLOOKUP(E188,pp_chv_cost_cl,IF(ss_cat="large",4,5))) -> 20 | L188: 1 | M188: Check Valves - Caustic line - Polypropylene/PVC | N188: 1 | O188: 2 | P188: 2 | Q188: 1 | R188: 2 | S188: 2 | T188: 1 | U188: 2 | V188: 2 | W188: 1 | X188: 15.22380194
A189: 4.3.3 | B189: Caustic line - Stainless Steel | C189: =tot_caustic_chv -> 4 | D189: units | E189: =IF(C189=0,"NA",caustic_valve_size) -> 0.5 | F189: in. diam | G189: =IF(C189=0,"NA",IF(curve=1,caustic_valve_size,VLOOKUP(caustic_valve_size,ss_chv_cost_cl,2))) -> 0.5 | H189: in. diam | I189: =IF(C189=0,"NA",IF(curve=1,ss_chv_eq_caustic,VLOOKUP(caustic_valve_size,ss_chv_cost_cl,3))) -> 218.4037498 | J189: 873.614999 | K189: =IF(C189=0,"NA",VLOOKUP(E189,ss_chv_cost_cl,IF(ss_cat="large",4,5))) -> 20 | L189: 0 | M189: Check Valves - Caustic line - Stainless Steel | N189: 2 | O189: 1 | P189: 1 | Q189: 2 | R189: 1 | S189: 1 | T189: 2 | U189: 1 | V189: 1 | W189: 0 | X189: 0
A190: 4.3.4 | B190: Residuals - Polypropylene/PVC | C190: =tot_res_chv -> 2 | D190: units | E190: =IF(C190=0,"NA",res_valve_size) -> 1 | F190: in. diam | G190: =IF(C190=0,"NA",IF(curve=1,res_valve_size,VLOOKUP(res_valve_size,pp_chv_cost_cl,2))) -> 1 | H190: in. diam | I190: =IF(C190=0,0,IF(curve=1,pp_chv_eq_res,VLOOKUP(res_valve_size,pp_chv_cost_cl,3))) -> 121.0064592 | J190: =IF(I190=0,0,IF(I190="contact vendor","--",C190*I190)) -> 242.0129185 | K190: =IF(C190=0,"NA",VLOOKUP(E190,pp_chv_cost_cl,IF(ss_cat="large",4,5))) -> 20 | L190: 1 | M190: Check Valves - Residuals - Polypropylene/PVC | N190: 1 | O190: 2 | P190: 3 | Q190: 1 | R190: 2 | S190: 3 | T190: 1 | U190: 2 | V190: 3 | W190: 1 | X190: 12.10064592
A191: 4.3.4 | B191: Residuals - Stainless Steel | C191: =tot_res_chv -> 2 | D191: units | E191: =IF(C191=0,"NA",res_valve_size) -> 1 | F191: in. diam | G191: =IF(C191=0,"NA",IF(curve=1,res_valve_size,VLOOKUP(res_valve_size,ss_chv_cost_cl,2))) -> 1 | H191: in. diam | I191: =IF(C191=0,0,IF(curve=1,ss_chv_eq_res,VLOOKUP(res_valve_size,ss_chv_cost_cl,3))) -> 344.6037771 | J191: =IF(I191=0,0,IF(I191="contact vendor","--",C191*I191)) -> 689.2075543 | K191: =IF(C191=0,"NA",VLOOKUP(E191,ss_chv_cost_cl,IF(ss_cat="large",4,5))) -> 20 | L191: 0 | M191: Check Valves - Residuals - Stainless Steel | N191: 3 | O191: 3 | P191: 1 | Q191: 3 | R191: 3 | S191: 1 | T191: 3 | U191: 3 | V191: 1 | W191: 0 | X191: 0
A192: 4.3.4 | B192: Residuals - Cast Iron | C192: =tot_res_chv -> 2 | D192: units | E192: =IF(C192=0,"NA",res_valve_size) -> 1 | F192: in. diam | G192: =IF(C192=0,"NA",IF(curve=1,res_valve_size,VLOOKUP(res_valve_size,ci_chv_cost_cl,2))) -> 1 | H192: in. diam | I192: =IF(C192=0,0,IF(curve=1,ci_chv_eq_res,VLOOKUP(res_valve_size,ci_chv_cost_cl,3))) -> contact vendor | J192: =IF(I192=0,0,IF(I192="contact vendor","--",C192*I192)) -> -- | K192: =IF(C192=0,"NA",VLOOKUP(E192,ci_chv_cost_cl,IF(ss_cat="large",4,5))) -> 20 | L192: 0 | M192: Check Valves - Residuals - Cast Iron | N192: 2 | O192: 1 | P192: 2 | Q192: 2 | R192: 1 | S192: 2 | T192: 2 | U192: 1 | V192: 2 | W192: 0 | X192: 0
A193: 4.3.5 | B193: Influent - Polypropylene/PVC | C193: =tot_in_chv -> 1 | D193: units | E193: =in_valve_size -> 1.5 | F193: in. diam | G193: =IF(curve=1,in_valve_size,VLOOKUP(in_valve_size,pp_chv_cost_cl,2)) -> 1.5 | H193: in. diam | I193: =IF(curve=1,pp_chv_eq_in,VLOOKUP(in_valve_size,pp_chv_cost_cl,3)) -> 177.8274995 | J193: =IF(I193="contact vendor","--",C193*I193) -> 177.8274995 | K193: =IF(C193=0,"NA",VLOOKUP(E193,pp_chv_cost_cl,IF(ss_cat="large",4,5))) -> 20 | L193: 1 | M193: Check Valves - Influent - Polypropylene/PVC | N193: 1 | O193: 2 | P193: 3 | Q193: 1 | R193: 2 | S193: 3 | T193: 1 | U193: 2 | V193: 3 | W193: 1 | X193: 8.891374973
A194: 4.3.5 | B194: Influent - Stainless Steel | C194: =tot_in_chv -> 1 | D194: units | E194: =in_valve_size -> 1.5 | F194: in. diam | G194: =IF(curve=1,in_valve_size,VLOOKUP(in_valve_size,ss_chv_cost_cl,2)) -> 1.5 | H194: in. diam | I194: =IF(curve=1,ss_chv_eq_in,VLOOKUP(in_valve_size,ss_chv_cost_cl,3)) -> 492.6734899 | J194: =IF(I194="contact vendor","--",C194*I194) -> 492.6734899 | K194: =IF(C194=0,"NA",VLOOKUP(E194,ss_chv_cost_cl,IF(ss_cat="large",4,5))) -> 20 | L194: 0 | M194: Check Valves - Influent - Stainless Steel | N194: 3 | O194: 3 | P194: 1 | Q194: 3 | R194: 3 | S194: 1 | T194: 3 | U194: 3 | V194: 1 | W194: 0 | X194: 0
A195: 4.3.5 | B195: Influent - Cast Iron | C195: =tot_in_chv -> 1 | D195: units | E195: =in_valve_size -> 1.5 | F195: in. diam | G195: =IF(curve=1,in_valve_size,VLOOKUP(in_valve_size,ci_chv_cost_cl,2)) -> 1.5 | H195: in. diam | I195: =IF(curve=1,ci_chv_eq_in,VLOOKUP(in_valve_size,ci_chv_cost_cl,3)) -> contact vendor | J195: =IF(I195="contact vendor","--",C195*I195) -> -- | K195: =IF(C195=0,"NA",VLOOKUP(E195,ci_chv_cost_cl,IF(ss_cat="large",4,5))) -> 20 | L195: 0 | M195: Check Valves - Influent - Cast Iron | N195: 2 | O195: 1 | P195: 2 | Q195: 2 | R195: 1 | S195: 2 | T195: 2 | U195: 1 | V195: 2 | W195: 0 | X195: 0
A196: 4.3.6 | B196: Ferric Chloride - Polypropylene/PVC | C196: =tot_coag_chv -> 0 | D196: units | E196: =IF(C196=0,"NA",coag_valve_size) -> NA | F196: =IF(C196=0,"","in. diam") ->  | G196: =IF(C196=0,"NA",IF(curve=1,coag_valve_size,VLOOKUP(coag_valve_size,pp_chv_cost_cl,2))) -> NA | H196: =IF(C196=0,"","in. diam") ->  | I196: =IF(C196=0,"NA",IF(curve=1,pp_chv_eq_coag,VLOOKUP(coag_valve_size,pp_chv_cost_cl,3))) -> NA | J196: =IF(OR(C196=0,I196="contact vendor"),"--",C196*I196) -> -- | K196: =IF(C196=0,"NA",VLOOKUP(coag_valve_size,pp_chv_cost_cl,IF(ss_cat="large",4,5))) -> NA | M196: Check Valves - Ferric Chloride - Polypropylene/PVC | N196: 1 | O196: 1 | P196: 1 | Q196: 1 | R196: 1 | S196: 1 | T196: 1 | U196: 1 | V196: 1 | W196: 0 | X196: 0
A197: 4.3.7 | B197: Polymer - Polypropylene/PVC | C197: =tot_polymer_chv -> 0 | D197: units | E197: =IF(C197=0,"NA",polymer_valve_size) -> NA | F197: =IF(C197=0,"","in. diam") ->  | G197: =IF(C197=0,"NA",IF(curve=1,polymer_valve_size,VLOOKUP(polymer_valve_size,pp_chv_cost_cl,2))) -> NA | H197: =IF(C197=0,"","in. diam") ->  | I197: =IF(C197=0,"NA",IF(curve=1,pp_chv_eq_polymer,VLOOKUP(polymer_valve_size,pp_chv_cost_cl,3))) -> NA | J197: =IF(OR(C197=0,I197="contact vendor"),"--",C197*I197) -> -- | K197: =IF(C197=0,"NA",VLOOKUP(polymer_valve_size,pp_chv_cost_cl,IF(ss_cat="large",4,5))) -> NA | M197: Check Valves - Polymer - Polypropylene/PVC | N197: 1 | O197: 2 | P197: 3 | Q197: 1 | R197: 2 | S197: 3 | T197: 1 | U197: 2 | V197: 3 | W197: 0 | X197: 0
A198: 4.3.7 | B198: Polymer - Stainless Steel | C198: =tot_polymer_chv -> 0 | D198: units | E198: =IF(C198=0,"NA",polymer_valve_size) -> NA | F198: =IF(C198=0,"","in. diam") ->  | G198: =IF(C198=0,"NA",IF(curve=1,polymer_valve_size,VLOOKUP(polymer_valve_size,ss_chv_cost_cl,2))) -> NA | H198: =IF(C198=0,"","in. diam") ->  | I198: =IF(C198=0,"NA",IF(curve=1,ss_chv_eq_polymer,VLOOKUP(polymer_valve_size,ss_chv_cost_cl,3))) -> NA | J198: -- | K198: =IF(C198=0,"NA",VLOOKUP(polymer_valve_size,ss_chv_cost_cl,IF(ss_cat="large",4,5))) -> NA | M198: Check Valves - Polymer - Stainless Steel | N198: 3 | O198: 3 | P198: 1 | Q198: 3 | R198: 3 | S198: 1 | T198: 3 | U198: 3 | V198: 1 | W198: 0 | X198: 0
A199: 4.3.7 | B199: Polymer - Cast Iron | C199: =tot_polymer_chv -> 0 | D199: units | E199: =IF(C199=0,"NA",polymer_valve_size) -> NA | F199: =IF(C199=0,"","in. diam") ->  | G199: =IF(C199=0,"NA",IF(curve=1,polymer_valve_size,VLOOKUP(polymer_valve_size,ci_chv_cost_cl,2))) -> NA | H199: =IF(C199=0,"","in. diam") ->  | I199: =IF(C199=0,"NA",IF(curve=1,ci_chv_eq_polymer,VLOOKUP(polymer_valve_size,ci_chv_cost_cl,3))) -> NA | J199: -- | K199: =IF(C199=0,"NA",VLOOKUP(polymer_valve_size,ci_chv_cost_cl,IF(ss_cat="large",4,5))) -> NA | M199: Check Valves - Polymer - Cast Iron | N199: 2 | O199: 1 | P199: 2 | Q199: 2 | R199: 1 | S199: 2 | T199: 2 | U199: 1 | V199: 2 | W199: 0 | X199: 0
A200: 4.3.8 | B200: Bypass - Polypropylene/PVC | C200: =IF(bp_pct>0,tot_bp_chv,0) -> 0 | D200: units | E200: =IF(bp_pct=0,"NA",bypass_valve_size) -> NA | F200: =IF(bp_pct=0," ","in. diam") ->  | G200: =IF(bp_pct=0,"NA",(IF(curve=1,bypass_valve_size,VLOOKUP(bypass_valve_size,pp_chv_cost_cl,2)))) -> NA | H200: =IF(bp_pct=0," ","in. diam") ->  | I200: =IF(bp_pct=0,"NA",(IF(curve=1,pp_chv_eq_bp,VLOOKUP(bypass_valve_size,pp_chv_cost_cl,3)))) -> NA | J200: -- | K200: =IF(C200=0,"NA",VLOOKUP(E200,pp_chv_cost_cl,IF(ss_cat="large",4,5))) -> NA | M200: Check Valves - Bypass - Polypropylene/PVC | N200: 1 | O200: 2 | P200: 3 | Q200: 1 | R200: 2 | S200: 3 | T200: 1 | U200: 2 | V200: 3 | W200: 0 | X200: 0
A201: 4.3.8 | B201: Bypass - Stainless Steel | C201: =IF(bp_pct>0,tot_bp_chv,0) -> 0 | D201: units | E201: =IF(bp_pct=0,"NA",bypass_valve_size) -> NA | F201: =IF(bp_pct=0," ","in. diam") ->  | G201: =IF(bp_pct=0,"NA",(IF(curve=1,bypass_valve_size,VLOOKUP(bypass_valve_size,ss_chv_cost_cl,2)))) -> NA | H201: =IF(bp_pct=0," ","in. diam") ->  | I201: =IF(bp_pct=0,"NA",(IF(curve=1,ss_chv_eq_bp,VLOOKUP(bypass_valve_size,ss_chv_cost_cl,3)))) -> NA | J201: -- | K201: =IF(C201=0,"NA",VLOOKUP(E201,ss_chv_cost_cl,IF(ss_cat="large",4,5))) -> NA | M201: Check Valves - Bypass - Stainless Steel | N201: 3 | O201: 3 | P201: 1 | Q201: 3 | R201: 3 | S201: 1 | T201: 3 | U201: 3 | V201: 1 | W201: 0 | X201: 0
... 285 more rows

Sheet Adsorptive Media Assumptions
A1: Media-Specific Assumptions
A2: Users may change any of the shaded cells in the tables below; cells in gold are most important and may vary based on contaminant treated and site-specific conditions
C4: Specific Media
A5: Vessel Design Constraints | B5: Lookup name | C5: AA | D5: AAFS-50 | E5: G2 | F5: GFO | G5: GFH | H5: AA for F | I5: User | J5: Units | K5: ="Guidance for Selected Media: "&INDEX(media_list,media_type) -> Guidance for Selected Media: Activated Alumina (AA) for Arsenic Removal
A6: Media unit cost | B6: media_unit_cost | C6: see database | D6: see database | E6: see database | F6: see database | G6: see database | H6: see database | J6: $/cubic ft | K6: Input required for user defined alternative media only
A7: Surface loading rate minimum | B7: load_min | C7: 2 | D7: 2 | E7: 2 | F7: 2 | G7: 2 | H7: 4 | J7: gpm/square ft | K7: =VLOOKUP("load_min",guidance_table,media_type+1,FALSE) -> Guidance: Surface loading rate is between 2 gpm/ft2 and 7.5 gpm/ft2
A8: Surface loading rate maximum | B8: load_max | C8: 7.5 | D8: 7.5 | E8: 4 | F8: 8 | G8: 8 | H8: 8 | J8: gpm/square ft
A9: Add a redundant unit per x parallel lines | B9: redund_freq | C9: 10 | D9: 10 | E9: 10 | F9: 10 | G9: 10 | H9: 10 | J9: parallel lines per redundant unit | K9: Guidance: redundant unit every 10 parallel lines
A10: Bed expansion during backwash | B10: bed_expansion | C10: 0.5 | D10: 0.4 | E10: 0.45 | F10: 0.4 | G10: 0.5 | H10: 0.5 | K10: =VLOOKUP("bed_expansion",guidance_table,media_type+1,FALSE) -> Guidance: Generally, AA bed expansion can range between 50 and 75 percent. Ask the supplier for bed expansion information.
A11: Minimum bed depth | B11: min_bed_depth | C11: 2.5 | D11: 2.5 | E11: 3 | F11: 2.5 | G11: 2 | H11: 3 | J11: ft
A12: Maximum bed depth | B12: max_bed_depth | C12: 5 | D12: 5 | E12: 4 | F12: 4.5 | G12: 5 | H12: 5 | J12: ft
A13: Target Bed Depth (Designs < 1MGD) | B13: target_bed_depth_under | C13: 3.8 | D13: 2.6 | E13: 3 | F13: 3 | G13: 2.5 | H13: 3.8 | J13: ft | K13: Used only for autosize procedure
A14: Target Bed Depth (Vertical Designs > 1 MGD) | B14: target_bed_depth_over | C14: 4.1 | D14: 2.7 | E14: 3.4 | F14: 3 | G14: 2.7 | H14: 4.1 | J14: ft | K14: Used only for autosize procedure
A15: Target Bed Depth (Horizontal Designs) | B15: target_bed_depth_horiz | C15: 4.8 | D15: 2.9 | E15: 3.7 | F15: 3 | G15: 2.9 | H15: 4.8 | J15: ft | K15: Used only for autosize procedure
A16: Pilot study cost | B16: pilot_cost | C16: see database | D16: see database | E16: see database | F16: see database | G16: see database | H16: see database | J16: $ | K16: Used only for autosize procedure
A17: Backwash and Regeneration
A18: Water backwash rate | B18: h2oflush_backwash_rate | C18: 10 | D18: 8 | E18: 4.5 | F18: 9.2 | G18: 10 | H18: 7.4 | J18: gpm/square ft | K18: =VLOOKUP("h2oflush_backwash_rate",guidance_table,media_type+1,FALSE) -> 
A19: Backwash time | B19: backwash_time | C19: 10 | D19: 15 | E19: 12.5 | F19: 20 | G19: 10 | H19: 20 | J19: minutes | K19: =VLOOKUP("backwash_time",guidance_table,media_type+1,FALSE) -> 
A20: Final rinse quantity | B20: finalrinse_flow | C20: 2 | D20: 21 | E20: 0 | F20: 0 | G20: 0 | H20: 7 | J20: bed volumes | K20: =VLOOKUP("finalrinse_flow",guidance_table,media_type+1,FALSE) -> Final rinse is used if regeneration occurs to remove residual caustic
A21: Final rinse time | B21: finalrinse_time | C21: 15 | D21: 44 | E21: 0 | F21: 0 | G21: 0 | H21: 90 | J21: minutes | K21: =VLOOKUP("finalrinse_time",guidance_table,media_type+1,FALSE) -> 
A22: Regeneration calculation type | B22: regen_calc_type | C22: lbs/cubic ft | D22: bed volumes | E22: bed volumes | F22: NA | G22: NA | H22: lbs/cubic ft | K22: =VLOOKUP("regen_calc_type",guidance_table,media_type+1,FALSE) -> Choose: lbs of 100% chemical per cu. ft. of media or bed volumes of dilute solution.
A23: HCl required for regeneration | B23: acid_regen_need_HCl | C23: 7 | D23: 15 | E23: 1 | F23: NA | G23: NA | H23: =4.9*2 -> 9.8 | J23: lbs/cubic ft or bed volumes | K23: =VLOOKUP("acid_regen_need_HCl",guidance_table,media_type+1,FALSE) -> Dependent on acid type (7 lbs/cu ft. for HCl, 3.5 lbs/cu ft. for H2SO4)
A24: H2SO4 required for regeneration | B24: acid_regen_need_H2SO4 | C24: 3.5 | D24: 15 | E24: 1 | F24: NA | G24: NA | H24: 4.9 | J24: lbs/cubic ft or bed volumes | K24: =VLOOKUP("acid_regen_need_H2SO4",guidance_table,media_type+1,FALSE) -> Dependent on acid type (7 lbs/cu ft. for HCl, 3.5 lbs/cu ft. for H2SO4)
A25: NaOH required for regeneration | B25: caustic_regen_need | C25: 7.5 | D25: 60 | E25: 4 | F25: NA | G25: NA | H25: 4.3 | J25: lbs/cubic ft or bed volumes | K25: =VLOOKUP("caustic_regen_need",guidance_table,media_type+1,FALSE) -> 
A26: Caustic regeneration treatment time | B26: caustic_time | C26: 88 | D26: 177 | E26: 60 | F26: NA | G26: NA | H26: 75 | J26: minutes | K26: =VLOOKUP("h2oflush_backwash_rate",guidance_table,media_type+1,FALSE) -> 
A27: Acid regeneration treatment time | B27: acid_time | C27: 84 | D27: 44 | E27: 30 | F27: NA | G27: NA | H27: 40 | J27: minutes | K27: =VLOOKUP("acid_time",guidance_table,media_type+1,FALSE) -> 
A28: Acid concentration in percent for HCl | B28: acid_strength_HCl | C28: 0.36 | D28: 0.36 | E28: 0.36 | F28: 0.36 | G28: 0.36 | H28: 0.36 | K28: Price data are for 36% HCl
A29: Acid concentration in percent for H2SO4 | B29: acid_strength_H2SO4 | C29: 0.7767 | D29: 0.7767 | E29: 0.7767 | F29: 0.7767 | G29: 0.7767 | H29: 0.78 | K29: Price data are for 78% H2SO4
A30: Caustic concentration in percent | B30: caustic_strength | C30: 0.5 | D30: 0.5 | E30: 0.5 | F30: 0.5 | G30: 0.5 | H30: 0.5 | K30: Price data are available for 50% and 25% solutions only
A31: Dilute HCl concentration in percent | B31: acid_dilute_HCl | C31: 0.02 | D31: 0.01 | E31: 0.01 | F31: NA | G31: NA | H31: 0.02 | K31: =VLOOKUP("acid_dilute_HCl",guidance_table,media_type+1,FALSE) -> 
A32: Dilute H2SO4 concentration in percent | B32: acid_dilute_H2SO4 | C32: 0.02 | D32: 0.02 | E32: 0.02 | F32: NA | G32: NA | H32: 0.02 | K32: =VLOOKUP("acid_dilute_H2SO4",guidance_table,media_type+1,FALSE) -> 
A33: Dilute caustic concentration in percent | B33: caustic_dilute | C33: 0.02 | D33: 0.02 | E33: 0.02 | F33: NA | G33: NA | H33: 0.02 | K33: =VLOOKUP("caustic_dilute",guidance_table,media_type+1,FALSE) -> 
A34: Target pH for treatment (when pH adjustment is used) | B34: pHf_selected | C34: 5.5 | D34: 6.5 | E34: 6.5 | F34: 7 | G34: 7 | H34: 5.5 | K34: =VLOOKUP("pHf_selected",guidance_table,media_type+1,FALSE) -> This is the selected pH level needed to improve contaminant removal; 5.5-6 for As and F removal (Water Treatment Principles and Applications. Canada: Canadian Water and Wastewaer Association, 1993. Pp. 88 Figure 3.24).
A35: Adsorptive media bulk density | B35: media_density | C35: 50 | D35: 57 | E35: 47 | F35: 30 | G35: 78.5 | H35: 50 | J35: lbs/cubic ft | K35: =VLOOKUP("media_density",guidance_table,media_type+1,FALSE) -> 
A36: Annual media loss | B36: media_loss_annual | C36: 0.045 | D36: 0.045 | E36: 0.045 | F36: NA | G36: NA | H36: 0.1 | K36: =VLOOKUP("media_loss_annual",guidance_table,media_type+1,FALSE) -> Relevant for regenerated systems only, assume 4 to 5%
A37: Media useful life when regenerated (if expressed in number of regenerations) | B37: max_regen | C37: NA | D37: 10 | E37: 5 | F37: NA | G37: NA | H37: NA | J37: regenerations | K37: =VLOOKUP("max_regen",guidance_table,media_type+1,FALSE) -> Media life expressed in years for this media
A38: Media useful life when regenerated (if expressed in years) | B38: media_life | C38: 5 | D38: NA | E38: NA | F38: NA | G38: NA | H38: 5 | J38: years | K38: =VLOOKUP("media_life",guidance_table,media_type+1,FALSE) -> Even if regenerated, media eventually will reach permanent exhaustion.
A40: Design Assumption Reference Table | C40: Specific Media
B41: Lookup name | C41: AA | D41: AAFS-50 | E41: G2 | F41: GFO | G41: GFH | H41: AA for F | I41: User
A42: Loading rate minimum | B42: load_min | C42: Guidance: Surface loading rate is between 2 gpm/ft2 and 7.5 gpm/ft2 | D42: Guidance: Surface loading rate is between 2 gpm/ft2 and 7.5 gpm/ft2 | E42: Vendor specifies loading from 2.5 to 3 gpm/sf when EBCT is 10 minutes. Vendor designs correspond to loadings between 2 and 4 gpm/sf, with EBCTs from 7 to 10 minutes. | F42: According to vendor, design surface loading rate is between 6 gpm/ft2 and 8 gpm/ft2. | G42: Guidance: Surface loading rate is between 2 gpm/ft2 and 8 gpm/ft2 | H42: Guidance literature recommends utilizing a minimum loading rate of 4 gpm/ft2 and a maximum loading rate of 8 gpm/ft2 (AWWA, 1999)
A43: Loading rate maximum | B43: load_max
A44: Add a redundant unit per x parallel lines | B44: redund_freq | C44: Guidance: redundant unit every 1-5 parallel lines | D44: Guidance: redundant unit every 1-5 parallel lines | E44: Guidance: redundant unit every 1-5 parallel lines | F44: Guidance: redundant unit every 1-5 parallel lines | G44: Guidance: redundant unit every 1-5 parallel lines | H44: Guidance: redundant unit every 1-5 parallel lines
A45: Bed expansion during backwash | B45: bed_expansion | C45: Guidance: Generally, AA bed expansion can range between 50 and 75 percent. Ask the supplier for bed expansion information. | E45: Guidance: Generally, G2 bed expansion can range between 40 and 50 percent, per vendor. | G45: Guidance: Generally, GFH bed expansion range between 40 and 50 percent, per vendor. | H45: Guidance literature recommends allowing for a 50% bed expansion during backwash operations (U.S. EPA, 1984 and AWWA, 2004)
A46: Water backwash rate | B46: h2oflush_backwash_rate | D46: Vendor recommends backwash rate 8 gpm/square foot. | F46: Vendor Pilot Test Protocol. Backwash at 7-8 gpm/ft2 or the rate that gives 40% bed expansion. | G46: Guidance: 10 to 11 gpm/ft2
A47: Backwash time | B47: backwash_time | D47: Guidance: backwash time recommended 10 to 15 minutes, per vendor | E47: Backwashing carried out for 10 to 20 minutes per vendor | F47: Vendor Pilot Test Protocol. Backwash with about 10 bed volumes. At 3 ft bed depth and 7.5 gpm/sf, this requires 30 minutes.
A48: Regeneration calculation type | B48: regen_calc_type | C48: Choose: lbs of 100% chemical per cu. ft. of media or bed volumes of dilute solution. | D48: Choose: lbs of 100% chemical per cu. ft. of media or bed volumes of dilute solution. | E48: Choose: lbs of 100% chemical per cu. ft. of media or bed volumes of dilute solution. | F48: Media not typically regenerated | G48: Media not typically regenerated | H48: Choose: lbs of 100% chemical per cu. ft. of media or bed volumes of dilute solution.
A49: HCl required for regeneration | B49: acid_regen_need_HCl | C49: Dependent on acid type (7 lbs/cu ft. for HCl, 3.5 lbs/cu ft. for H2SO4) | D49: Regeneration protocol: 10-15 BV of 0.1% HCl, per vendor | E49: Caustic wash is followed by a rinse with mild acid solution (ph 3.5-4.0) to reneutralize the pH of the media, per vendor | F49: Media not typically regenerated | G49: Media not typically regenerated | H49: Guidance literature recommends the use of H2SO4 in media neutralization (AWWA, 1999 and AWWA, 2004)
A50: H2SO4 required for regeneration | B50: acid_regen_need_H2SO4 | C50: Dependent on acid type (7 lbs/cu ft. for HCl, 3.5 lbs/cu ft. for H2SO4) | D50: Regeneration protocol: 10-15 BV of 0.1% HCl, per vendor. Assumes similar quantity if H2SOO4 is used. | E50: Caustic wash is followed by a rinse with mild acid solution (ph 3.5-4.0) to reneutralize the pH of the media, per vendor | F50: Media not typically regenerated | G50: Media not typically regenerated | H50: Existing wter treatment plant uses an acid rinse of 4.9 lbs of H2SO4 per cubic foot of media for 40 minutes for media neutralization
A51: NaOH required for regeneration | B51: caustic_regen_need | D51: Regeneration protocol: 50-60 BV of 0.5% NaOH, per vendor. | E51: Regenerate by rinsing with 3 - 4 bed volumes of 1% sodium hydroxide solution, per vendor. Value used corresponds to 4 bed volumes of 1% solution. | F51: Media not typically regenerated | G51: Media not typically regenerated | H51: Recommended caustic regeneration rinse of 4.3 lbs of NaOH per cubic foot of media for 75 minutes for media regeneration
A52: Caustic regeneration treatment time | B52: caustic_time | E52: Caustic rinsing is carried out for approximately 60 minutes | F52: Media not typically regenerated | G52: Media not typically regenerated | H52: Recommended caustic regeneration rinse of 4.3 lbs of NaOH per cubic foot of media for 75 minutes for media regeneration. Other guidance literature recommends 60 to 75 minutes (AWWA, 1999; AWWA, 2004; U.S. EPA, 1984).
A53: Acid regeneration treatment time | B53: acid_time | E53: Assumes similar loading rate as caustic, while accounting for smaller quantity of rinsate. | F53: Media not typically regenerated | G53: Media not typically regenerated | H53: Existing wter treatment plant uses an acid rinse of 4.9 lbs of H2SO4 per cubic foot of media for 40 minutes for media neutralization
A54: Dilute HCl concentration in percent | B54: acid_dilute_HCl | D54: Regeneration protocol: 10-15 BV of 0.1% HCl, per vendor. 1% is used here because chemical data are not available for 0.1% HCl | E54: Rinse with a mild acid solution (pH 3.5 to 4.0) re-neutralize the pH of the media, per vendor | F54: Media not typically regenerated | G54: Media not typically regenerated
A55: Dilute H2SO4 concentration in percent | B55: acid_dilute_H2SO4 | D55: Regeneration protocol: 10-15 BV of 0.1% HCl, per vendor. Assumes similar percentage dilution if H2SOO4 is used. 2% is lowest H2SO4 concentration for which chemical data are available. | E55: Rinse with a mild acid solution (pH 3.5 to 4.0) re-neutralize the pH of the media, per vendor | F55: Media not typically regenerated | G55: Media not typically regenerated
A56: Dilute caustic concentration in percent | B56: caustic_dilute | D56: Regeneration protocol: 50-60 BV of 0.5% NaOH, per vendor. 1% is used here because chemical data are not available for 0.5% NaOH. | E56: Regeneration by washing with 1% sodium hydroxide solution, per vendor | F56: Media not typically regenerated | G56: Media not typically regenerated
A57: Target pH for treatment (when pH adjustment is used) | B57: pHf_selected | C57: This is the selected pH level needed to improve contaminant removal; 5.5-6 for As and F removal (Water Treatment Principles and Applications. Canada: Canadian Water and Wastewaer Association, 1993. Pp. 88 Figure 3.24). | D57: When pH adjustment is used, target is 6.5, per vendor | E57: Optimum pH is 7 or less, per vendor. Favorable pH range 5.0 to 7.0. | F57: Vendor bids incorporate pH adjustment to 7.0 for waters above 8.0 to 8.3 | G57: pH adjustment not needed | H57: This is the selected pH level needed to improve contaminant removal; 5.5-6 for As and F removal (Water Treatment Principles and Applications. Canada: Canadian Water and Wastewaer Association, 1993. Pp. 88 Figure 3.24).
A58: Final rinse quantity | B58: finalrinse_flow | C58: Final rinse is used if regeneration occurs to remove residual caustic | D58: If regeneration occurs, two optional water rinses may be part of the protocol: 15-20 bed volumes between caustic and acid washes and one rinse after the acid wash. Number shown here assumes both rinses are used (20 BV intermediate + 1 BV final). Change to zero if these optional washes are not included. | E58: No final rinse, according to vendor. | F58: Media not typically regenerated | G58: Media not typically regenerated | H58: Guidance literature recommends using a 60 minute upflow rinse and a 30 minute downflow rinse (AWWA, 2004). Existing water treatment plant utilizes these recommendations, resulting in approximately 48 BV of water used (29 Palms, 2010).
A59: Final rinse time | B59: finalrinse_time | D59: Vendor recommends intermediate rinse between caustic and acid washes. Change to zero if no water rinse is used with regeneration. | F59: Media not typically regenerated | G59: Media not typically regenerated | H59: Guidance literature recommends using a 60 minute upflow rinse and a 30 minute downflow rinse (AWWA, 2004)
A60: Adsorptive media bulk density | B60: media_density | G60: 76 to 81 lb/cf. Capital Costs of Arsenic Removal Technologies. U.S. EPA Arsenic Removal Technology Demonstration Program Round 1. 2004.
A61: Annual media loss | B61: media_loss_annual | C61: Relevant for regenerated systems only, assume 4 to 5% | D61: Relevant for regenerated systems only, assume 4 to 5% | E61: Relevant for regenerated systems only, assume 4 to 5% | F61: Media not typically regenerated | G61: Media not typically regenerated | H61: Existing water treatment plant replaces 52% of its AA annually. U.S. EPA (1980) estimates that 10% annual media replacement would be necessary for the pilot-scale test.
A62: Media useful life when regenerated (if expressed in number of regenerations) | B62: max_regen | C62: Media life expressed in years for this media | D62: Vendor estimates that AAFS-50 could be regenerated only 10-20 times total. | E62: Media G2 can be regenerated up to five times before disposal (Bench scale test by National Research Council of Canada and On Tap Magazine, Winter 2003). | F62: Media not typically regenerated | G62: Media not typically regenerated | H62: Media life expressed in years for this media
A63: Media useful life when regenerated (if expressed in years) | B63: media_life | C63: Even if regenerated, media eventually will reach permanent exhaustion. | D63: Media life expressed in maximum regenerations for this media | E63: Media life expressed in maximum regenerations for this media | F63: Media not typically regenerated | G63: Media not typically regenerated | H63: Even if regenerated, media eventually will reach permanent exhaustion.
A65: Input Guidance Reference Table | C65: Specific Media
B66: Lookup name | C66: AA | D66: AAFS-50 | E66: G2 | F66: GFO | G66: GFH | H66: AA for F | I66: User
A67: Number of bed volumes before regeneration/throwaway | B67: BV_regen_I | C67: Guidance: Greater than 23,000 BV are reported in the literature with inflow levels of 0.1 mg/L [As (V)]. | D67: Guidance: Capacities range from 2,300 to 26,000 BV, with a theoretical design value of 25,086 BV | E67: Guidance: Capacities reported by vendor correspond to 13,500 to 17,600 BV, with 10% capacity loss typical over five regeneration events, if regenerated. | F67: Guidance: Capacities reported by vendor range from 6 months to 2 years, or 66,000 to 166,000 BV | G67: Guidance: Values reported in the literature range from 40,000 to 250,000 BV. | H67: Guidance: AWWA (1999) reports 1,000 to 1,300 BV when influent F concentration is 3.0 to 6.0 mg/L
A68: Minimum number of vessels in series | B68: Num_tanks | C68: Guidance: The two vessels are set in series: the first is a roughing vessel and the second is a polishing vessel. The polishing vessel, for all practical purposes, serves as a redundant vessel. Having two vessels in series serves the purpose of treating more water volume than one vessel with similar bed volume. | D68: Guidance: The two vessels are set in series: the first is a roughing vessel and the second is a polishing vessel. The polishing vessel, for all practical purposes, serves as a redundant vessel. Having two vessels in series serves the purpose of treating more water volume than one vessel with similar bed volume. All Kinetco systems using this media use this lead/lag configuration. | E68: Full scale designs have been in both parallel and series operation. Default here (1 vessel in series) assumes parallel operation, consistent with designs provided by vendor. | F68: Typical designs for this media are in parallel operation, although series operations have been used. | G68: Typical designs for this media are in parallel operation, although series operations have been used. | H68: Literature indicates that AA deflluoridation can use vessels in series or parallel. Identified full- and pilot-scale designs use two vessels in series.
A69: Theoretical total empty bed contact time (EBCT) | B69: EBCT | C69: For optimal arsenic absorption, vendor recommends a minimum 6 minute EBCT. Pilot tests use EBCT of 5 minutes. Additional vendor suggests 5 to 8 minutes. | D69: For optimal arsenic absorption, vendor recommends a minimum 6 minute EBCT. Pilot tests use EBCT of 5 minutes. Additional vendor suggests 5 to 8 minutes. | E69: EBCT of 10 minutes used in bench scale testing by National Research Council of Canada. Designs provided by vendor correspond to EBCTs of 7 to 10 minutes. | F69: Vendor package designs use EBCT of 3.5 minutes for parallel systems, 3 minutes per vessel for series systems. EBCTs reported in bids ranged from 3 to 7.5 minutes. Typical systems use EBCT of 3 to 5 minutes. | G69: Field data show a range between 2.4 to 5.8 minutes. Criteria from literature puts the range between 2 min and 8 minutes. GFH functions primarily as a filter, so surface area and loading rate are the critical design elements. | H69: Guidance: literature recommends 10 minutes (AWWA, 1999; AWWA, 2004); full-scale facilies use 12.2 to 16 minutes.
A70: Bed depth | B70: bed_depth | C70: Guidance: typically bed depth ranges between 3 - 5 ft and should not go below 2.5 ft | D70: Guidance: typically bed depth ranges between 2.5 - 5 ft and should not go below 2.5 ft | E70: Guidance: Typically, bed depth ranges between 3 - 4 ft. | F70: Guidance: Bed depth in vendor designs is 3 to 4.5 feet | G70: Guidance: bed depths reported in the literature range from 2 to 5 feet | H70: Guidance: literature recommends 3 to 5 feet (AWWA, 1999; AWWA, 2004; U.S. EPA, 1984)
A71: Influent pH Adjustment? | B71: pH_adj | G71: According to vendor, pH adjustment is not usually necessary
A72: Vessel diameter | B72: comm_diam | C72: =IF(tank_geom=1,"Guidance: 2 - 7 feet for flows <300 gpm; 5 - 10 feet for flows between 300 gpm and 750 gpm; 7 - 12 feet for flows >=750 gpm.",IF(tank_geom=2,"Guidance: 10 - 12 feet for flows greater than 2000 gpm","")) -> Guidance: 2 - 7 feet for flows <300 gpm; 5 - 10 feet for flows between 300 gpm and 750 gpm; 7 - 12 feet for flows >=750 gpm. | D72: Guidance: 2 - 7 feet for flows <300 gpm; 5 - 10 feet for flows between 300 gpm and 750 gpm; 7 - 12 feet for flows >=750 gpm. | E72: Guidance: 2 - 7 feet for flows <300 gpm; 5 - 10 feet for flows between 300 gpm and 750 gpm; 7 - 12 feet for flows >=750 gpm. | F72: Guidance: 2 - 7 feet for flows <300 gpm; 5 - 10 feet for flows between 300 gpm and 750 gpm; 7 - 12 feet for flows >=750 gpm. | G72: Guidance: 2 - 7 feet for flows <300 gpm; 5 - 10 feet for flows between 300 gpm and 750 gpm; 7 - 12 feet for flows >=750 gpm. | H72: Guidance: 2 - 7 feet for flows <300 gpm; 5 - 10 feet for flows between 300 gpm and 750 gpm; 7 - 12 feet for flows >=750 gpm.
A73: Media regeneration or throwaway operation? | B73: throwaway | D73: =IF(throwaway<>1,"Regeneration is very rare for this media. If regeneration is selected, review regeneration parameters on adsorptive media assumptions page for validity.","") ->  | E73: =IF(throwaway<>1,"Regeneration is very rare for this media. If regeneration is selected, review regeneration parameters on adsorptive media assumptions page for validity.","") ->  | F73: =IF(throwaway<>1,"Regeneration is very rare for this media. If regenerated, appropriate parameters must be entered on the adsorptive media assumptions page.","") ->  | G73: =IF(throwaway<>1,"Regeneration is very rare for this media. If regenerated, appropriate parameters must be entered on the adsorptive media assumptions page.","") -> 

Sheet Critical Design Assumptions
A1: Default Critical Design Assumptions
A2: See Adsorptive Media Assumptions Page for media-specific assumptions
A3: Users may change any of the cells in the Value column; cells in gold are most important and may vary based on contaminant treated and site-specific conditions
A5: Assumption | B5: Range Name | C5: Value | D5: Units | E5: Guidance
A6: Cost estimating method | B6: curve | C6: 1 | D6: <-- enter 1 to use cost equations, leave blank to use lookup tables for component costs | E6: Keeping this assumption with a value of 1 is strongly recommended; the cost equations method is more appropriate for national cost estimating and will be more accurate for nearly all user-specified designs
A7: Minimum average flow as percentage of design | B7: min_avg_flow | C7: 0.1 | E7: The minimum ratio of average flow to design flow. If the ratio falls below this value, it will trigger a warning on the INPUT sheet. If this value is zero, no minimum is enforced.
A9: Vessel Design
A10: Number of redundant vessels for small systems with only one vessel | B10: NRD_small_1 | C10: 1 | D10: units | E10: If a design includes only one operating vessel, there should be at least one additional vessel
A11: Number of redundant vessels for small systems with multiple vessels | B11: NRD_small | C11: 0 | D11: units | E11: Small systems can operate at reduced capacity while one vessel is down for backwash, if there are multiple vessels
A12: Maximum vessel height (vertical vessels) | B12: max_height | C12: 14 | D12: feet | E12: Systems have used vessels up to 14' diam and height in practice (AWWA Inorganic Contaminants Workshop 2006)
A13: Maximum vessel diameter | B13: max_diam_override | D13: feet | E13: Maximum vessel diameter will be chosen from a table of conventional sizes for commercial vessels, unless entered here. Systems have used vessels up to 14' diam and height in practice (AWWA Inorganic Contaminants Workshop 2006)
A14: Maximum vessel length (longitudinal vessels) | B14: max_length | C14: 53 | D14: feet | E14: Limitation on transportation is 53 feet in length
A15: Free board above media at full expansion | B15: free_board | C15: 0.5 | D15: feet
A16: Underdrain space for horizontal vessels | B16: horiz_underdrain | C16: 1.5 | D16: feet | E16: 1.5 feet is a conservative value for a 10' tank. Bob Dvorin, 5/16/05.
A17: Thickness of vessel walls | B17: Vessel_thickness | C17: 0 | D17: feet | E17: Set to zero because vendor designs and quotes are usually expressed in inside diameter. Increase if user desires to input outside diameter.
A18: Ratio of length to diameter for horizontal vessels | B18: length_diam_ratio | C18: 2.5 | E18: Used only for autosize procedure
A19: Volume Tolerance, vertical vessels <1 mgd | B19: vol_tol_vert_small | C19: 0.5 | E19: Used to check size compatibility of sepecified volume with required volume
A20: Volume Tolerance, vertical vessels >1 mgd | B20: vol_tol_vert_med | C20: 0.4
A21: Volume Tolerance, horizontal vessels | B21: vol_tol_horiz | C21: 0.4
A23: Pumping
A24: Safety factor for pumps | B24: pump_safety_factor | C24: 0.25
A25: Redundant booster pumps | B25: NRD_pumps | C25: 0 | D25: pump | E25: Multiple pump approach eliminates need for redundant pumps.
A26: Redundant backwash pumps | B26: NRD_back_pumps | C26: 1 | D26: pump
A27: Redundant pumps for HCl metering (if pH adjustment) | B27: NRD_pump_chem_acid | C27: 1 | D27: pump
A28: Redundant pumps for NaOH metering (if pH adjustment) | B28: NRD_pump_chem_caustic | C28: 1 | D28: pump
A29: Redundant pumps for HCl delivery (if pH regneration) | B29: NRD_acid_pumps | C29: 1 | D29: pump
A30: Redundant pumps for NaOH delivery (if regeneration) | B30: NRD_caustic_pumps | C30: 1 | D30: pump
A31: Number of redundant chemical metering pumps | B31: NRD_cm_pump | C31: 1 | D31: pumps
A32: Minimum chemical feed pump size | B32: min_chem_flow | C32: 0.13 | D32: gph | E32: Metering pumps will be designed to meet this minimum
A33: Number of redundant eductors | B33: NRD_eductors | C33: 1 | D33: eductors
A35: Bypass Flow
A36: Percent of Total Flow that is Bypassed | B36: bp_pct | C36: 0 | E36: Typically, bypass flow ranges between 0% and 50% of inflow. Enter zero to remove bypass piping and components. 0% is default consistent with the type of cost curves that EPA will need for its national cost simulation model.
A38: Backwash, Regeneration and pH Adjustment
A39: HCl molecular weight | B39: molwt_HCl | C39: 36.5 | D39: g/mol | E39: Dependent on acid type (36.5 for HCl, 98.1 for H2SO4)
A40: H2SO4 molecular weight | B40: molwt_H2SO4 | C40: 98.1 | D40: g/mol | E40: Dependent on acid type (36.5 for HCl, 98.1 for H2SO4)
A41: Time to empty media bed | B41: transfer_time | C41: 4 | D41: hrs | E41: Target for systems using mechanical transfer. For systems with manual transfer, calcuated based on media volume.
A42: Time to empty holding tank/basin soilds | B42: htransfer_time | C42: 4 | D42: hrs | E42: Target for systems using mechanical transfer. For systems with manual transfer, calcuated based on media volume.
A43: Days of chemical storage | B43: cstore_days | C43: 30 | D43: days
A44: Include a separate day tank if daily volume is x or greater | B44: day_tank_needed | C44: 5 | D44: gal
A45: Include mixers for chemical tanks | B45: include_cmix | C45: 0 | D45: <--- enter 1 for yes, 0 for no
A46: Chemical tank mixer horsepower | B46: cmix_hp_per | C46: 0.25 | D46: hp per 1000 gal
A47: Minimum chemical tank mixer horsepower | B47: min_cmix_hp | C47: =1/3 -> 0.3333333333 | D47: hp
A49: Influent water total dissolved solids | B49: TDS_I | C49: 200 | D49: mg/L
A50: Influent water temperature | B50: t_I | C50: 10 | D50: degrees centigrade
A52: Secondary Containment Requirements
A53: Include secondary containment | B53: include_sec_cont | C53: 1 | D53: <--- enter 1 for yes, 0 for no
A54: Volume required as a percentage of the largest tank | B54: sec_cont_pct_of_largest | C54: 1.1
A55: Volume required as a percentage of total storage | B55: sec_cont_pct_of_total | C55: 0.1
A56: Additional freeboard | B56: sec_cont_freeboard | C56: 6 | D56: inches | E56: Additional freeboard is typically required to contain precipitation when storage is outside; we also include freeboard indoors to ensure a minimum reasonable curb height
A57: Maximum curb thickness | B57: sec_cont_max_thick | C57: 1 | D57: foot | E57: Calculations assume thickness equal to height, up to this maximum
A58: Chemical resistant coating coverage | B58: sec_cont_coating_cvg | C58: 125 | D58: square feet/gallon
A60: Pipe Length Multipliers
A61: Influent and treated water pipe length multiplier | B61: in_out_pipe_mult | C61: 2 | D61: times facility length
A62: Process pipe length multiplier | B62: proc_pipe_mult | C62: 2 | D62: times facility length
A63: Bypass pipe length multiplier | B63: bp_pipe_mult | C63: 2.5 | D63: times facility length
A64: Backwash pipe length multiplier | B64: back_pipe_mult | C64: 2.5 | D64: times facility length
A65: Chemical pipe length multiplier | B65: chem_pipe_mult | C65: 1 | D65: times facility length
A67: Valves and Instrumentation
A68: See the Valve Table at the bottom of this page for additional assumptions relating to valves
A69: Number of manual valves on influent and treated water line | B69: tot_man_valves | C69: 2 | D69: valves | E69: For emergency shut off
A70: Number of manual valves on process line per vessel | B70: proc_man_vessel | C70: 1 | D70: valve/vessel | E70: For filter to waste
A72: Number of check valves on backwash line if no backwash pumps | B72: back_chv_no_back | C72: 1 | D72: valves
A73: Number of check valves on backwash line per backwash pump | B73: back_chv_pump | C73: 1 | D73: valves/pump
A74: Number of check valves on acid line per chemical pump | B74: acid_chv_pump | C74: 2 | D74: valves/pump
A75: Number of check valves on caustic line per chemical pump | B75: caustic_chv_pump | C75: 2 | D75: valves/pump
A76: Number of check valves on ferric chloride line per metering pump | B76: coag_chv_pump | C76: 1 | D76: valves/pump | E76: Applies only with ferric addition
A77: Number of check valves on polymer line per metering pump | B77: polymer_chv_pump | C77: 1 | D77: valves/pump | E77: Applies only with polymer addition to residuals
A78: Number of check valves on influent line | B78: tot_in_chv | C78: 1 | D78: valves
A79: Number of check valves on bypass line | B79: tot_bp_chv | C79: 1 | D79: valves
A81: Flow meters for influent and treated water line | B81: tot_fm_in | C81: 1 | D81: units | E81: Flow meter assemblies include pressure gauges
A82: Flow meters for process line per vessel | B82: fm_proc | C82: 0 | D82: units/vessel
A83: Flow meters for backwash line | B83: tot_fm_back | C83: 1 | D83: units | E83: At backwash discharge outlet
A84: Level switch/alarms per vessel | B84: level_switch | C84: 0 | D84: units/vessel
A85: Level switch/alarms per vessel for small systems | B85: level_switch_small | C85: 0 | D85: units/vessel
A86: High/Low alarms per backwash tank | B86: alarm_back | C86: 1 | D86: units/tank
A87: High/Low alarms per caustic/acid tank | B87: alarm_chem | C87: 1 | D87: units/tank
A88: pH meters per vessel | B88: pH_control_vessel | C88: 0 | D88: units/vessel | E88: Optional, only if pH adjustment and/or regeneration
A89: Additional pH meters | B89: add_pH_controls | C89: 2 | D89: units | E89: One for influent line, one for treated water line
A90: Additional pH meters for small systems | B90: add_pH_controls_small | C90: 0 | D90: units
A91: Temperature meters | B91: temp_meters | C91: 2 | D91: units | E91: One for influent line, one for treated water line
A92: Temperature meters for small systems | B92: temp_meters_small | C92: 0 | D92: units
A93: Turbitity meters per vessel | B93: turb_tank | C93: 0 | D93: units/vessel
A94: Turbitity meters per vessel for small systems | B94: turb_tank_small | C94: 0 | D94: units/vessel
A95: Additional turbitidy meters | B95: add_turb | C95: 2 | D95: units | E95: One for influent line, one for treated water line
A96: Additional turbitidy meters for small systems | B96: add_turb_small | C96: 0 | D96: units
A97: Head loss sensors per vessel | B97: head_tank | C97: 1 | D97: units/vessel
A98: Head loss sensors per vessel for small systems | B98: head_tank_small | C98: 0 | D98: units/vessel
A99: Sampling ports per vessel | B99: ports_tank | C99: 1 | D99: units/vessel
A100: Sampling ports for blended treated water | B100: ports_bp | C100: 1 | D100: units | E100: Not used if system chooses not to bypass
A101: Additional sampling ports | B101: add_ports | C101: 3 | D101: units | E101: One for influent line, one for treated water line, one on residual side of backwash line
A102: Number of electrical enclosures | B102: elec_encl | C102: 0 | D102: units | E102: Required only for technologies with significant electric-powered equipment outside a building.
A104: Number of inline mixers for initial pH adjustment | B104: num_in_mix | C104: 1 | D104: units | E104: For small systems with pH adjustment. Large systems with pH adjustment provide enough time for mixing.
A105: Number of inline mixers for post-treatment corrosion control | B105: num_in_mix_post | C105: 1 | D105: units | E105: For small systems with corrosion control. Large systems provide enough time for mixing.
A107: System Controls
A108: See the I/O Port Table at the bottom of this page for additional assumptions relating to system controls
A109: Controllers are used only under full automation
A110: To change the degree of automation, change the number of controllers to zero for the appropriate items.
A111: Drive controllers per booster pump | B111: S_booster_pump | C111: 1 | D111: units
A112: Drive controllers per backwash pump | B112: S_back_pump | C112: 1 | D112: units
A113: Drive controllers per chemical metering pump (acid and caustic) | B113: S_cm_pump | C113: 1 | D113: units
A114: Drive controllers per chemical pump for regeneration (acid and caustic) | B114: S_chem_pump | C114: 1 | D114: units
A115: Drive controllers per mixer | B115: S_mixer | C115: 1 | D115: units
A116: Drive controllers per eductor | B116: S_eductor | C116: 1 | D116: units
A117: Drive controllers per slurry pump system | B117: S_slurry | C117: 1 | D117: units
A119: Number of CPUs | B119: plc_cpu | C119: 2 | D119: units | E119: One CPU is needed to run the local and expansion bases and modules (max 8192 I/O); using two to provide redundancy
A120: Ethernet modules | B120: plc_ethernet | C120: 2 | D120: units | E120: One ethernet module is needed; using two to provide redundancy
A121: Operator interfaces | B121: plc_interface | C121: 2 | D121: units | E121: Two to provide redundancy in the event of SCADA node failure
A122: UPSs | B122: ups | C122: 1 | D122: unit | E122: UPS protects the PLC system from undesired outages and surges that can adversely affect the performance of the PLC unit
A123: Computer workstations per x operators | B123: workstation_ratio | C123: 1 | D123: operator/workstation | E123: Minimum will always be one, but larger systems will have multiple workstations to control the system
A124: Number of shifts | B124: shifts_day | C124: 3 | D124: shifts/day | E124: Used to determine number of workstations
A125: Printers per x computer workstations | B125: printer_ratio | C125: 4 | D125: workstations/printer | E125: Minimum will always be one, but larger systems will have multiple printers
A127: Structure/Floorplan
A128: Maximum access space per vessel or tank for custom designed systems | B128: max_space_vessels_cust | C128: 6 | D128: feet | E128: This is the MAXIMUM; space between vessels and tanks defaults to vessel or tank diameter, up to this maximum. Maximum provides space for sandblasting and painting for large vessels (5-8 feet per Richard E. Hubel, Peter Keenan, American Water Works Service Company).
A129: Maximum access space per vessel or tank for pre-engineered systems | B129: max_space_vessels_pre | C129: 1 | D129: feet | E129: Assumes skid-mounting with minimal access space
A130: Access space per pump for custom designed systems | B130: space_pumps_cust | C130: 4 | D130: feet | E130: Provide a minimum of 3 ft (1 m) of clear space around each item of equipment (American Water Works Association and American Society of Civil Engineers. Water Treatment Plant Design. Third Edition. New York: McGraw Hill, 1998. Pp. 695).
A131: Access space per pump for pre-engineered packages | B131: space_pumps_pre | C131: 0 | D131: feet | E131: Pumps on skid for pre-engineered packages, no additional access space
A132: Non fire Buffer for buildings | B132: non_fire_buffer | C132: 10 | D132: feet
A133: Fire Buffer for Buildings | B133: fire_buffer | C133: 40 | D133: feet
A134: Top and bottom dished vessel sections height and access space | B134: Top_bottom_Vessel_space | C134: 6 | D134: feet | E134: This is used to determine the building height for purposes of heating and cooling cost.
A135: Office space per employee | B135: space_office | C135: 100 | D135: square ft
A136: Office space per employee | B136: space_office_small | C136: 0 | D136: square ft | E136: Small systems do not require office space
A137: Concrete pad thickness | B137: pad_thick | C137: =6/12 -> 0.5 | D137: feet
A138: Concrete pad thickness for small systems | B138: pad_thick_small | C138: =4/12 -> 0.3333333333 | D138: feet
A139: Clearance space beneath the ceiling | B139: ceiling_clearance | C139: 3 | D139: feet
A140: Additional building after… | B140: add_2nd_building | C140: 10000 | D140: sf
A142: Residuals Discharge
A143: Contaminant concentration | B143: cont_conc | C143: 50 | D143: ug/L | E143: For reference and calculation of concentration on residuals only, does not affect design or cost.
A144: Add coagulant to holding tank/basin? | B144: coag_res | C144: 0 | D144: <-- 1 for yes, 0 for no | E144: For additional TSS removal, if desired
A145: Type of coagulant added | B145: coag_type | C145: 1 | D145: <-- 1 for polymer, 2 for ferric chloride, 3 for both polymer & ferric chloride
A146: Minimum settling time when coagulant is used | B146: res_coag_settle_time | C146: 90 | D146: minutes | E146: When coagulant is used, holding tanks will be sized so that residuals are present for at least this long. Based on 90-120 minute settling time in sedimentation basins (Water Treatment Plant Design, 4th ed.)
A147: Polymer dosage | B147: polymer_dose | C147: 100 | D147: mg/L
A148: Polymer solution density | B148: polymer_density | C148: 9.6 | D148: lb/gal
A149: Polymer sludge production factor | B149: polymer_spf | C149: 1 | D149: lbs accumulated per pound added
A150: Add ferric chloride to neutralization tank? | B150: coag_res_n | C150: 0 | D150: <-- 1 for yes, 0 for no | E150: For additional TSS removal, if desired
A151: Ferric chloride dosage for holding tank/basin | B151: coag_dose | C151: 10 | D151: mg/L
A152: Ferric chloride dosage for neutralization tank | B152: coag_dose_n | C152: 10 | D152: mg/L
A153: Ferric chloride solution density | B153: coag_density | C153: 11.85 | D153: lb/gal
A154: Ferric chloride solution concentration | B154: coag_pct | C154: 0.4
A155: Ferric chloride sludge production factor for holding tank/basin | B155: coag_spf | C155: 0.99 | D155: lbs accumulated per pound added
A156: Ferric chloride sludge production factor for neutralization tank | B156: coag_spf_n | C156: 0.99 | D156: lbs accumulated per pound added
A157: Residual solids storage height (for drying pad) | B157: solids_storage_height | C157: 2 | D157: ft
A158: Holding tank/basin solids density | B158: ht_solids_density | C158: 25 | D158: lb/ft3
A159: Holding tank/basin suspended solids removal efficiency without coagulant | B159: htank_TSSrem | C159: 0.25
A160: Holding tank/basin suspended solids removal efficiency with coagulant | B160: coag_TSSrem | C160: 0.5
A161: Clean holding tank/basin when solids accumulation =x% of capacity | B161: htank_clean_pct | C161: 0.1
A162: Neutralization tank solids density | B162: nt_solids_density | C162: 25 | D162: lb/ft3
A163: Neutralization tank suspended solids removal efficiency without coagulant | B163: ntank_TSSrem | C163: 0.25
A164: Neutralization tank suspended solids removal efficiency with coagulant | B164: coag_TSSrem_n | C164: 0.5
A165: Clean neutralization tanks when solids accumulation =x% of capacity | B165: ntank_clean_pct | C165: 0.1
A166: Holding tank/basin capacity safety factor | B166: res_cap_factor | C166: 2 | E166: Holding tank/basins are designed with a capacity of one generation event, multiplied by this safety factor. This multiplier accounts for less than perfect staggering of generation events and provides for solids accumulation (i.e., it provides excess capacity)
A167: Neutralization tank capacity safety factor | B167: res_cap_factor_n | C167: 1.25 | E167: Neutralization tanks are designed with a capacity of one generation event, multiplied by this safety factor. This multiplier accounts for less than perfect staggering of generation events and provides for solids accumulation (i.e., it provides excess capacity)
A168: Default number of residuals basins | B168: hbasins_default | C168: 1 | E168: This assumption applies if concrete basins are used. Additonal basins are used, however, if needed to achieve minimum holding time. If tanks are used, number calculated on design sheet.
A169: Holding basin depth to volume ratio | B169: holding_ratio | C169: =3/5 -> 0.6 | E169: This assumption used only if concrete basins are used.
A170: Holding basin freeboard | B170: holding_freeboard | C170: 3 | D170: feet | E170: This assumption used only if concrete basins are used.
A171: Overexcavation for storage basins | B171: overexcavate | C171: 4 | D171: ft | E171: 2 feet each side in each dimension. This assumption used only if concrete basins are used.
A172: Concrete thickness for holding basins | B172: conc_thick | C172: 1 | D172: ft | E172: This assumption used only if concrete basins are used.
A173: Holding tank/basin mixer horsepower (if coagulant is used) | B173: hmix_hp_per | C173: 0.25 | D173: hp per 1,000 gallons
A174: Neutralization tank mixer horsepower | B174: nmix_hp_per | C174: 0.25 | D174: hp per 1,000 gallons
A175: Minimum holding tank mixer horsepower | B175: min_hmix_hp | C175: =1/3 -> 0.3333333333 | D175: hp | E175: Also applies to neutralization tanks
A176: Residual solids transfer method | B176: res_transfer_method | C176: 3 | D176: <-- 1 for slurry pumps, 2 for eductors, 3 for manual trabsfer
A177: Redundant residuals pumps | B177: NRD_res_pump | C177: 1 | D177: units | E177: Applies only if pumping is included
A178: Residuals pipe length multiplier | B178: res_pipe_mult | C178: 1 | D178: times facility length
A179: Distance to discharge or recycle point | B179: add_res_pipe_length | C179: 40 | D179: ft
A180: Additional distance to discharge or recycle point if backwash and regenerant managed differently | B180: add_res_pipe_length2 | C180: 0 | D180: ft
A181: Number of check valves on residuals line per residuals pump | B181: res_chv_pump | C181: 1 | D181: valves/pump
A182: Number of check valves on residuals line if no pumping | B182: res_chv_no_pump | C182: 1 | D182: valves
A183: Drive controllers per residuals pump | B183: S_res_pump | C183: 1
A184: Minimum residuals pipe diameter | B184: min_res_pipe_size | C184: 1 | D184: in. diam.
A185: Flow meters for residuals line | B185: tot_fm_res | C185: 1 | D185: units
A186: High/Low alarms per holding tank/basin | B186: alarm_res | C186: 1 | D186: units/tank
A187: TSS in system influent | B187: influent_TSS | C187: 2 | D187: ppm | E187: This is INFLUENT TSS. Backwash TSS is calculated and will be higher, as TSS removed are concentrated.
A188: TSS in treated water | B188: effluent_TSS | C188: 0.5 | D188: ppm
A189: POTW rate structure | B189: POTW_rate_type | C189: 1 | D189: <-- for national average rate, 2 for a specific rate structure
A190: Apply POTW discharge base charge (i.e., $/month) | B190: POTW_base_fee | C190: 1 | D190: <-- 1 for yes, 2 for no
A191: Apply POTW discharge volume charge (i.e., $/1000 gallons) | B191: POTW_volume_fee | C191: 1 | D191: <-- 1 for yes, 2 for no
A192: Apply POTW discharge TSS charge (i.e., $/lb of TSS over limit below) | B192: POTW_TSS_fee | C192: 1 | D192: <-- 1 for yes, 2 for no
A193: POTW TSS discharge limit (over which fee would be imposed) | B193: POTW_TSS_limit | C193: 250 | D193: ppm | E193: Most common limit for cities with a limit.
A194: Disposal method for non-hazardous secondary solids | B194: solids_method | C194: 1 | D194: <-- 1 for landfill, 2 for land application | E194: Ignored if solids are hazardous or radioactive
A195: Maximum hazardous waste shipment size | B195: max_haz_ship | C195: 18 | D195: tons
A196: Maximum radioactive (non-hazardous) waste shipment size | B196: max_rad_ship | C196: 18 | D196: tons
A197: Maximum radioactive hazardous waste shipment size | B197: max_hazrad_ship | C197: 18 | D197: tons
A198: Maximum liquid hazardous waste shipment size | B198: max_lhaz_ship | C198: 6000 | D198: gal
A199: Miles to non-hazardous solid waste disposal site | B199: non_haz_miles | C199: 10 | D199: miles
A200: Miles to hazardous solid waste disposal site | B200: haz_miles | C200: 200 | D200: miles
A201: Miles to radioactive (non-hazardous) waste disposal site | B201: rad_miles | C201: 700 | D201: miles
A202: Miles to radioactive hazardous waste disposal site | B202: hazrad_miles | C202: 700 | D202: miles
A203: Minimum septic tank discharge time | B203: min_sept_disch_time | C203: 2 | D203: days | E203: Typical of state/local regulations
A204: Minimum septic tank volume | B204: min_sept_tank_vol | C204: 1000 | D204: gal | E204: State/local regulations dictate a minimum of 750 to 1000 gallons; 1000 is the minimum size for which costs are available
A205: Septic tank volume safety factor | B205: sept_tank_sf | C205: 1.5 | E205: Allow for tank freeboard & effluent other than residuals
A206: Long term acceptance rate | B206: sept_LTAR | C206: 0.5 | D206: gpd/sq ft | E206: Used by states/localities to dermine the minimum trench infiltration area; varies based on soil type
A207: Septic drain field trench width | B207: sept_trench_w | C207: 4 | D207: feet | E207: State/local regulations require 2 to 4 feet; RS Means costs based on 4' trenches
A208: Septic drain field trench depth | B208: sept_trench_d | C208: 4 | D208: feet | E208: State/local regulations require 2 to 4 feet; RS Means costs based on 4' trenches
A209: Septic drain field trench gravel depth below distribution pipe | B209: sept_gravel_d_below | C209: 1 | D209: feet | E209: Typical designs are 8 to 24 inches; 12 inches common
A210: Minimum number of septic drain field trenches | B210: sept_min_trenches | C210: 2 | E210: Typical of state/local regulations
A211: Maximum septic drain field trench length | B211: sept_max_trench_l | C211: 100 | D211: feet | E211: Typical of state/local regulations
A212: Distance between drain field trenches | B212: sept_trench_dist | C212: 8 | D212: feet | E212: State/local regulations typically require 2x width or depth
A213: Septic drain field trench total gravel depth | B213: sept_gravel_d | C213: =28/12 -> 2.333333333 | D213: feet | E213: Assumes 1 foot below, 1 foot above, 4 inches sides of distribution pipe
A214: Septic drain field buffer distance | B214: sept_buffer | C214: 10 | D214: feet | E214: State/local regulations typically require minimum 10 feet offset from property lines and structures, with greater offset for wells, watercourses, etc; the latter would be site-specific
A215: Septic tank overexcavation depth | B215: sept_overexcav | C215: 1 | D215: feet | E215: Distance above and each side
A216: Maximum distribution pipe connections per distribution box | B216: sept_dist_connections | C216: 7 | E216: Using cost for a 7 outlet distribution box
... 65 more rows

Sheet O&M Assumptions
A1: Default O&M Assumptions
A2: Users may change any of the cells in the Value column
A4: Assumption | B4: Range Name | C4: Value | D4: Units | E4: Guidance
A5: Materials
A6: Cost for parts & maintenance for booster pumps | B6: booster_pump_maintenance | C6: 0.01 | D6: of capital cost | E6: For calculating cost of actual maintenance materials; not to be confused with depreciation. Initial proposed estimate of 5% seems high (Richard E. Hubel, Peter Keenan, American Water Works Service Company, Inc)
A8: Labor
A9: Mangerial LOE as a percent of average technical labor | B9: Manager_percent | C9: 0.1
A10: Administrative LOE as a percent of average technical labor | B10: Clerical_percent | C10: 0.1
A12: Operating LOE assumptions
A13: Minutes per instrument per day | B13: uloe_inst | C13: 5 | D13: min/day | E13: For manual systems only
A14: Recording operating paramenters for automated systems | B14: uloe_inst_auto | C14: 5 | D14: min/day | E14: For semiautomated and automated systems
A15: Minutes per pump per day | B15: uloe_pump | C15: 5 | D15: min/day | E15: For manual and semiautomated systems
A16: Minutes per valve per week | B16: uloe_valve | C16: 5 | D16: min/week | E16: For manual and semiautomated systems
A17: Minutes per 100 sf per day | B17: uloe_fp | C17: 1 | D17: min/100 sf/day
A18: Minutes per backwash for automated systems | B18: uloe_autoback | C18: 1 | D18: min/event | E18: Manual and semiautomated systems use 2x actual backwash time
A19: Minutes per regeneration for automated systems | B19: uloe_autoregen | C19: 10 | D19: min/event | E19: Manual and semiautomated systems use actual regeneration time
A20: Hours per manual media changeout | B20: uloe_throwaway | C20: =8/(20*27) -> 0.01481481481 | D20: hours/cubic foot | E20: Based on 20 cubic yards per day, applied separately to removal and replacement.
A22: Maintenance LOE assumptions
A23: For instruments (includes calibration) | B23: uloe_inst_maint | C23: 10 | D23: min/month
A24: For pumps | B24: uloe_pump_maint | C24: 30.25 | D24: hours/year | E24: Based on vendor recommended maintenance activities; applied to large, frequently operated pumps only
A25: For valves | B25: uloe_valve_maint | C25: 5 | D25: min/year | E25: Applied to main process valves only
A26: For chemical supply systems | B26: uloe_chem_maint | C26: 120 | D26: min/month
A28: Pump Energy
A29: Pump head for booster pumps | B29: booster_pump_head | C29: 25 | D29: psi | E29: Von Huben, Harry. Operator's Companion, 4th Edition. USABluebook, 2000. Pp. 17 25 psi creates a head of 60 feet
A30: Residuals pump head | B30: res_pump_psi | C30: 25 | D30: psi
A31: Pump efficiency | B31: booster_pump_efficiency | C31: 0.75
A33: Lighting and HVAC
A34: Lighting power per sf, low-quality buildings and sheds | B34: lighting_power_low | C34: 0.3 | D34: W/sf | E34: 0.3, 0.6, and 1.2 W/sf are the assumptions used for building capital costs
A35: Lighting power per sf, mid-quality buildings | B35: lighting_power_mid | C35: 0.6 | D35: W/sf
A36: Lighting power per sf, high-quality buildings | B36: lighting_power_high | C36: 1.2 | D36: W/sf
A38: Ventilation air change rate for contactor | B38: Air_changes_contactor | C38: 3 | D38: air changes/hr
A39: Ventilation air change rate for pump room | B39: Air_changes_pump | C39: 20 | D39: air changes/hr | E39: Could be lower (annual average 3 changes/hr) in a northern climate
A40: Ventilation air change rate for chemical storage | B40: Air_changes_chem_storage | C40: 2 | D40: air changes/hr
A41: Ventilation air change rate for offices | B41: Air_changes_office | C41: 2 | D41: air changes/hr
A42: Pressure drop across the fan | B42: Fan_pressure_drop | C42: 0.25 | D42: lbs/ft2
A43: Number of mechanical ventilation days per year first building (small system) | B43: fan_days_build1_small | C43: 90 | D43: days/year | E43: Number of days per year where natural ventilation is applicable cannot be greater than 365 days
A44: Number of mechanical ventilation days per year 2nd building (small system) | B44: fan_days_build2_small | C44: 90 | D44: days/year | E44: For small systems (<1 MGD)
A45: Number of mechanical ventilation days per year first building (medium system) | B45: fan_days_build1_medium | C45: 120 | D45: days/year | E45: For medium systems (1 - 10 MGD)
A46: Number of mechanical ventilation days per year 2nd building (medium system) | B46: fan_days_build2_medium | C46: 120 | D46: days/year
A47: Number of mechanical ventilation days per year first building (large system) | B47: fan_days_build1_large | C47: 185 | D47: days/year | E47: For large systems (> 10 MGD)
A48: Number of mechanical ventilation days per year 2nd building (large system) | B48: fan_days_build2_large | C48: 185 | D48: days/year
A50: R-value for walls | B50: R_wall | C50: 25 | D50: hr-sf-degF/BTU | E50: See Appendix E. If higher R-value materials are desired, user may also need to adjust the cost of building materials in cl.xls
A51: R-value for ceilings | B51: R_ceiling | C51: 49 | D51: hr-sf-degF/BTU | E51: See Appendix E. If higher R-value materials are desired, user may also need to adjust the cost of building materials in cl.xls
A52: Annual heating degree days | B52: heat_DD | C52: 4260 | D52: degree days | E52: Heating and cooling assumptions should be consistent with one another. Assumed values are for a climate that results in a total energy usage for heating and cooling equal to the national median.
A53: Annual cooling degree days | B53: cool_DD | C53: 1415 | D53: degree days | E53: Heating and cooling assumptions should be consistent with one another. Assumed values are for a climate that results in a total energy usage for heating and cooling equal to the national median.
A54: Heating ventilation/infiltration load | B54: heat_viload | C54: 168679 | D54: BTU/cfm | E54: Heating and cooling assumptions should be consistent with one another. Assumed values are for a climate that results in a total energy usage for heating and cooling equal to the national median.
A55: Cooling ventilation/infiltration load | B55: cool_viload | C55: 51771 | D55: BTU/cfm | E55: Heating and cooling assumptions should be consistent with one another. Assumed values are for a climate that results in a total energy usage for heating and cooling equal to the national median.
A56: Electric resistance heating efficiency | B56: resist_eff | C56: 0.98 | E56: See Appendix E
A57: Heat pump heating coefficient of performance | B57: COP | C57: 3.3 | E57: See Appendix E
A58: Natural gas non-condensing furnace efficiency | B58: gas_non_eff | C58: 0.85 | E58: See Appendix E
A59: Natural gas condensing furnace efficiency | B59: gas_eff | C59: 0.9 | E59: See Appendix E
A60: Standard oil furnace efficiency | B60: diesel_non_eff | C60: 0.82 | E60: See Appendix E
A61: Mid-efficiency oil furnace efficiency | B61: diesel_eff | C61: 0.9 | E61: See Appendix E
A62: Air conditioning EER | B62: EER | C62: 11.8 | D62: BTU/Whr | E62: See Appendix E
A63: Heat pump cooling mode EER | B63: hp_EER | C63: 11.8 | D63: BTU/Whr | E63: See Appendix E
A65: Heating Oil Heat Content | B65: diesel_heat_content | C65: 139000 | D65: BTU/gal | E65: U.S. DOE, Energy Information Administration.

Sheet Indirect Assumptions
A1: Default Assumptions for Indirect and Add-On Costs
A2: Users may change any of the cells in the Value column
A4: Assumption | B4: Range Name | C4: Value | D4: Units | E4: Guidance
A5: Concrete Pad
A6: Include concrete pad in total capital cost? | B6: include_pad | C6: 1 | D6: <--- enter 1 for yes, 0 for no
A8: Permits
A9: Include permit costs? | B9: include_permits | C9: 1 | D9: <--- enter 1 for yes, 0 for no
A10: Always include NEPA compliance costs? | B10: include_NEPA | C10: 1 | D10: <--- enter 1 for default, enter 2 for yes, 3 for no | E10: Default of 1 means NEPA compliance is included only for systems that discharge to surface water. Selecting 2 means NEPA compliance will be included in all estimates. Selecting 3 means NEPA compliance will never be included.
A11: HCl strength to trigger RMP requirement | B11: HCl_strength_RMP | C11: 0.37
A12: HCl quantity to trigger RMP requirement | B12: HCl_quant_RMP | C12: 15000 | D12: lbs
A14: Pilot Study
A15: Include pilot study costs? | B15: include_pilot | C15: 1 | D15: <--- enter 1 for yes, 0 for no
A17: Mobilization and Demobilization
A18: Mobilization percentage for small systems | B18: mob_pct_small | C18: 0 | D18: of direct capital cost | E18: Typically 2-5% of the estimated construction cost. Enter 0% to exclude. Excluded by default for pre-engineered packages
A19: Mobilization percentage for medium systems | B19: mob_pct_medium | C19: 0.04 | D19: of direct capital cost
A20: Mobilization percentage for large systems | B20: mob_pct_large | C20: 0.02 | D20: of direct capital cost
A22: Architectural Fees for Treatment Building
A23: Include architectural fee? | B23: include_arch | C23: 1 | D23: <--- enter 1 for yes, 0 for no | E23: Must be added to building cost. Change for special considerations. Includes structural, mechanical, and electrical engineering for building only.
A24: Include architectural fee for small systems? | B24: include_arch_small | C24: 0 | D24: <--- enter 1 for yes, 0 for no
A26: Installation, Transportatation, and O&P
A27: Installation, Transportatation, and O&P percentage | B27: inst_pct | C27: 0 | D27: of direct capital cost | E27: Included in line item unit costs. Add a percentage for special considerations such as a remote site or high cost location.
A29: Sitework
A30: Include sitework costs? | B30: include_sitework | C30: 1 | D30: <--- enter 1 for yes, 0 for no
A32: Yard Piping
A33: Include yard piping costs? | B33: include_yardpipe | C33: 1 | D33: <--- enter 1 for yes, 0 for no
A34: Frost depth | B34: frost | C34: 38 | D34: inches | E34: Should be consistent with (reflect same climate as) heating and cooling assumptions on O&M assumptions page. Assumptions are for St. Louis, Missouri.
A35: Minimum trench depth to top of pipe | B35: min_trench_depth | C35: 36 | D35: inches | E35: US Army Corps of Engineers recommended minimum cover for distribution pipes of 2.5 ft in grassed areas, 3 ft if buried under pavement or roadways but not less than frost penetration depth (USACOE 1984)
A36: Soil density | B36: soil_dens | C36: 97 | D36: lb/cubic ft. | E36: Based on soil density of loamy sand (1.55 gm/cc)
A37: Coefficient of passive pressure | B37: Coeff_Kp | C37: 3
A38: Reduction factor | B38: Reduction | C38: 0.467
A39: Bedding depth below pipe | B39: bedding_depth | C39: 6 | D39: inches
A40: Bedding depth surrounding the pipe | B40: bedding_pct | C40: 0.25 | D40: of pipe diameter
A41: Trench inside angle | B41: trench_angle | C41: =RADIANS(45) -> 0.7853981634 | D41: radians
A42: Pipe length from water source to the boundary of the 10 foot buffer | B42: yard_in | C42: 0 | D42: feet | E42: Use if technology is first step in treatment process
A43: Pipe length from the boundary of the 10 foot buffer to distribution network | B43: yard_out | C43: 0 | D43: feet | E43: Use if technology is last step in treatment process
A45: Geotechnical
A46: Include geotechnical costs for low cost systems? | B46: include_geo_low | C46: 0 | D46: <--- enter 1 for yes, 0 for no | E46: Note: geotechnical is always included with the septic system option, regardless of the numbers entered here
A47: Include geotechnical costs for medium cost systems? | B47: include_geo_medium | C47: 0 | D47: <--- enter 1 for yes, 0 for no
A48: Include geotechnical costs for high cost systems? | B48: include_geo_high | C48: 1 | D48: <--- enter 1 for yes, 0 for no
A49: Test pit length | B49: pit_length | C49: 4 | D49: feet
A50: Test pit width | B50: pit_width | C50: 4 | D50: feet
A51: Test pit depth | B51: pit_depth | C51: 7 | D51: feet
A52: Borehole depth without basins | B52: bore_depth_nobasin | C52: 10 | D52: feet
A53: Borehole depth for shallow basins | B53: bore_depth_min | C53: 25 | D53: feet
A54: Borehole depth for deep basins | B54: bore_depth_max | C54: 50 | D54: feet
A55: Basin excavation depth above which deeper boreholes are needed | B55: deep_bore_need | C55: 20 | D55: feet | E55: Systems with deep basins require deeper investigation
A57: Technology footprint above which boreholes are needed | B57: bore_need | C57: 2000 | D57: square feet | E57: Small system geotechnical investigation can be completed with test pits, larger systems require boreholes
A58: Minimum number of boreholes | B58: min_holes | C58: 4
A59: Borehole needed every x square feet | B59: hole_per_sf | C59: 1000 | D59: square feet
A60: Boreholes per job | B60: hole_per_job | C60: 24 | D60: boreholes/job
A61: Linear feet bored per day | B61: hole_per_day | C61: 55.5 | D61: l.f./day | E61: RS Means Costworks 2001
A63: Standby Power
A64: Include standby power costs? | B64: include_standby | C64: 1 | D64: <--- enter 1 for yes, 0 for no
A65: Include standby power costs for small systems? | B65: include_standby_small | C65: 0 | D65: <--- enter 1 for yes, 0 for no
A66: Design safety factor for standby power | B66: std_safety_factor | C66: 0 | E66: Default 0%. Apply a percentage to increase standby power requirements.
A67: Include heating in standby power | B67: need_heat | C67: 0 | D67: <--- enter 1 for yes, 0 for no | E67: If a system uses gas or diesel heat, heating will not be included, regardless of this assumption.
A68: Include cooling in standby power | B68: need_cool | C68: 0 | D68: <--- enter 1 for yes, 0 for no | E68: If both heating and cooling are included, standby power requirements will be based on the maximum of the two.
A69: Minimum standby power generator size | B69: min_standby | C69: 1.5 | D69: kW | E69: Minimum size for full standby generators
A71: Electrical (including yard wiring)
A72: Electrical percentage | B72: elect_pct | C72: 0.1 | D72: of direct cost
A74: Instrumentation and Control
A75: Instrumentation and control percentage | B75: i_c_pct | C75: 0 | D75: of direct cost | E75: Included as a direct cost line item.
A77: Contingency
A78: Include contingency costs for low cost systems? | B78: include_conting_low | C78: 0 | D78: <--- enter 1 for yes, 0 for no
A79: Include contingency costs for medium cost systems? | B79: include_conting_medium | C79: 0 | D79: <--- enter 1 for yes, 0 for no
A80: Include contingency costs for high cost systems? | B80: include_conting_high | C80: 1 | D80: <--- enter 1 for yes, 0 for no
A81: Technology complexity factor | B81: complexity | C81: 1.5 | E81: Technology-specific factor. See Appendices for details. Low complexity = 0.5; Average complexity = 1.0; High complexity = 1.5; Very high complexity = 2.0.
A83: Process Engineering
A84: Engineering percentage for small systems | B84: eng_pct_small | C84: 0.2 | D84: of direct capital cost | E84: Enter 0% to exclude.
A85: Engineering percentage for medium systems | B85: eng_pct_medium | C85: 0.12 | D85: of direct capital cost
A86: Engineering percentage for large systems | B86: eng_pct_large | C86: 0.08 | D86: of direct capital cost
A88: Miscellaneous Allowance
A89: Miscellaneous allowance percentage | B89: misc_pct | C89: 0.1 | D89: of direct capital cost | E89: Enter 0% to exclude.
A91: Legal, Fiscal, and Administrative
A92: Legal percentage | B92: legal_pct | C92: 0.02 | D92: of direct capital cost | E92: Enter 0% to exclude. Highly site-specific. Can range from 2-5% of equipment, installation, construction, electrical, and standby power. To estimate, add 5% to total estimated construction cost.
A94: Sales Tax
A95: Sales tax percentage | B95: tax_pct | C95: 0 | D95: of direct capital cost | E95: May be exempt if constructed with public funds. May be as high as 7.25% of equipment and construction, with national average 4.75%.
A97: Financing during Construction
A98: Financing percentage | B98: finance_pct | C98: 0.05 | D98: of direct capital cost | E98: Enter 0% to exclude. Typically assumed to be one year's interest on capital cost.
A99: Financing percentage for small systems | B99: finance_pct_small | C99: 0 | D99: of direct capital cost | E99: Small system construction assumed to take less than one year
A101: Construction Management and General Contractor Overhead
A102: Builder's risk insurance percentage | B102: br_ins_pct | C102: 0.0034 | E102: Enter 0% to exclude. 0.34% is national average rate. RSMeans Building Construction Cost Data 2009, reference section R01100-070
A103: Include performance bond cost? | B103: include_bond | C103: 1 | D103: <--- enter 1 for yes, 0 for no
A104: Include construction management cost? | B104: include_cm | C104: 1 | D104: <--- enter 1 for yes, 0 for no
A105: Include construction management cost for pre-engineered packages? | B105: include_cm_pre | C105: 0 | D105: <--- enter 1 for yes, 0 for no
A107: Heating Table (1=include heating in buildings and O&M, 0 = do not include heating)
A108: Component Level | B108: Range Name | C108: System Size
C109: Small (<1 mgd) | D109: Medium (1-10 mgd) | E109: Large (>10 mgd)
A110: Buildings 500 square feet or greater
A111: low cost | B111: heating_table | C111: 0 | D111: 1 | E111: 1
A112: mid cost | C112: 1 | D112: 1 | E112: 1
A113: high cost | C113: 1 | D113: 1 | E113: 1
A114: Buildings less than 500 ft2 (other than those used for chlorine storage)
A115: low cost | B115: heating_table_shed | C115: 0 | D115: 0 | E115: 1
A116: mid cost | C116: 0 | D116: 0 | E116: 1
A117: high cost | C117: 1 | D117: 1 | E117: 1
A119: Cooling Table (1=include cooling in buildings and O&M, 0 = do not include cooling)
A120: Component Level | B120: Range Name | C120: System Size
C121: Small (<1 mgd) | D121: Medium (1-10 mgd) | E121: Large (>10 mgd)
A122: Buildings 500 square feet or greater
A123: low cost | B123: cooling_table | C123: 0 | D123: 0 | E123: 1
A124: mid cost | C124: 0 | D124: 1 | E124: 1
A125: high cost | C125: 1 | D125: 1 | E125: 1
A126: Buildings less than 500 ft2 (other than those used for chlorine storage)
A127: low cost | B127: cooling_table_shed | C127: 0 | D127: 0 | E127: 0
A128: mid cost | C128: 0 | D128: 0 | E128: 0
A129: high cost | C129: 0 | D129: 0 | E129: 0

Sheet Vessel Constraints
A1: Vessel Constraint Calculations
A2: This sheet performs calculations to confirm that the vessel design on the Input page meets engineering constraints
A4: Calculation | B4: Range Name | C4: Value | D4: Units | E4: Guidance
A5: From Inputs
A6: Design Flow | B6: design_flow | C6: =IF(df_units="gpm",(1-bp_pct)*design_flow_I*24*60/1000000,(1-bp_pct)*design_flow_I) -> 0.03 | D6: MGD | E6: From input, less bypass
A7: Average Flow | B7: average_flow | C7: =(1-bp_pct)*IF(af_units="gpm",average_flow_I*24*60/1000000,IF(af_units="fraction of design flow",average_flow_I*design_flow,average_flow_I)) -> 0.007 | D7: MGD | E7: From input, less bypass
A8: Design Flow Rate | B8: design_flow_rate | C8: =design_flow*1000000/(24*60) -> 20.83333333 | D8: gpm | E8: Design flow expressed in gpm
A9: Average Flow Rate | B9: average_flow_rate | C9: =average_flow*1000000/(24*60) -> 4.861111111 | D9: gpm | E9: Average flow expressed in gpm
A10: Bypass Flow Rate | B10: bp_flow_rate | C10: =bp_pct/(1-bp_pct)*design_flow_rate -> 0 | D10: gpm
A11: Theoretical total empty bed contact time (EBCT) | B11: EBCT | C11: =EBCT_I -> 10 | D11: minutes | E11: =VLOOKUP("EBCT",input_guidance_table,media_type+1,FALSE) -> For optimal arsenic absorption, vendor recommends a minimum 6 minute EBCT. Pilot tests use EBCT of 5 minutes. Additional vendor suggests 5 to 8 minutes.
A12: Minimum number of vessels in series | B12: Num_tanks | C12: =num_tanks_I -> 2 | D12: units | E12: =VLOOKUP("Num_tanks",input_guidance_table,media_type+1,FALSE) -> Guidance: The two vessels are set in series: the first is a roughing vessel and the second is a polishing vessel. The polishing vessel, for all practical purposes, serves as a redundant vessel. Having two vessels in series serves the purpose of treating more water volume than one vessel with similar bed volume.
A13: Vessel geometry | B13: tank_geom | C13: =IF(tank_geom_I="horizontal",2,1) -> 1 | D13: <-- 1 for upright cylindrical, 2 for horizontally-laid cylinder
A15: From Central Cost Database
A16: Maximum Standard Vessel Diameter | B16: max_diam_std_size | C16: =max_vessel_diam_cl -> 14 | D16: feet
A17: Minimum Vessel Diameter | B17: min_diam | C17: =min_vessel_diam_cl -> 1.5 | D17: feet
A18: Maximum Vessel Diameter | B18: max_diam | C18: =IF(max_diam_override>0,max_diam_override,max_diam_std_size) -> 14 | D18: feet | E18: Standard unless overridden on CDA's
A20: Media-specific Design Criteria | B20: From Adsorptive Media Assumptions page, dependent on media selection input
A21: Adsorptive Media Type | B21: media_type | C21: 1 | D21: <-- 1 for AA for As, 2 for AAFS-50, 3 for G2, 4 for SORB33, 5 for GFH, 6 for AA for F, 7 for user-defined
A22: Loading rate minimum | B22: load_min | C22: =VLOOKUP("load_min",vessel_design_table,media_type+1,FALSE) -> 2 | D22: gpm/square ft | E22: =VLOOKUP("load_min",guidance_table,media_type+1,FALSE) -> Guidance: Surface loading rate is between 2 gpm/ft2 and 7.5 gpm/ft2
A23: Loading rate maximum | B23: load_max | C23: =VLOOKUP("load_max",vessel_design_table,media_type+1,FALSE) -> 7.5 | D23: gpm/square ft
A24: Add a redundant unit per x parallel lines | B24: redund_freq | C24: =VLOOKUP("redund_freq",vessel_design_table,media_type+1,FALSE) -> 10 | D24: number of parallel lines/redundant unit | E24: =VLOOKUP("redund_freq",guidance_table,media_type+1,FALSE) -> Guidance: redundant unit every 1-5 parallel lines
A25: Bed expansion during backwash | B25: bed_expansion | C25: =VLOOKUP("bed_expansion",vessel_design_table,media_type+1,FALSE) -> 0.5 | E25: =VLOOKUP("bed_expansion",guidance_table,media_type+1,FALSE) -> Guidance: Generally, AA bed expansion can range between 50 and 75 percent. Ask the supplier for bed expansion information.
A26: Minimum bed depth | B26: min_bed_depth | C26: =VLOOKUP("min_bed_depth",vessel_design_table,media_type+1,FALSE) -> 2.5 | D26: feet
A27: Maximum bed depth | B27: max_bed_depth | C27: =VLOOKUP("max_bed_depth",vessel_design_table,media_type+1,FALSE) -> 5 | D27: feet
A28: Media bulk density | B28: media_density | C28: =VLOOKUP("media_density",back_regen_table,media_type+1,FALSE) -> 50 | D28: lbs/cubic ft
A30: Vessel Constraints
A31: EBCT per vessel | B31: EBCT_tank | C31: =EBCT/Num_tanks -> 5 | D31: minutes
A32: Vessel surface area | B32: max_sa | C32: =IF(tank_geom=1,PI()*(comm_diam-2*Vessel_thickness)*(comm_diam-2*Vessel_thickness)/4,IF(tank_geom=2,(comm_diam-2*Vessel_thickness)*comm_height_length,0)) -> 4.908738521 | D32: square feet
A33: Height available above media bed (for horizontal vessels) | B33: distance_above | C33: =IF(tank_geom=2,comm_diam-bed_depth-horiz_underdrain,"NA") -> NA | D33: ft
A34: Void space above media bed (for horizontal vessels) | B34: void_above | C34: =IF(tank_geom=2,comm_height_length*(comm_diam*comm_diam/2*ASIN(SQRT(distance_above/comm_diam))-(comm_diam/2-distance_above)*SQRT((comm_diam-distance_above)*distance_above)),"NA") -> NA | D34: cubic feet
A35: Maximum flow per vessel | B35: flow_per_vessel | C35: =IF(tank_geom=1,(max_sa*bed_depth*7.48)/EBCT_tank,media_volume*7.48/EBCT_tank) -> 21.2960712 | D35: gpm | E35: This represents the maximum flow a given vessel could handle, not the flow during normal operating conditions
A36: Number of parallel treatment trains | B36: num_treat_lines | C36: =ROUNDUP(design_flow_rate/flow_per_vessel,0) -> 1 | D36: lines
A37: Number of vessels excluding redundancy | B37: op_num_tanks | C37: =ROUNDUP(design_flow_rate/flow_per_vessel,0)*Num_tanks -> 2 | D37: units
A38: Number of redundant units | B38: NRD | C38: =IF(NRD_I<>"",NRD_I,IF(design_flow>=1,ROUNDUP(num_treat_lines/redund_freq,0),IF(op_num_tanks=1,NRD_small_1,NRD_small))) -> 0 | D38: units
A39: Total number of vessels including redundancy | B39: final_num_tanks | C39: =op_num_tanks+NRD -> 2 | D39: units
A41: Vessel requirements based on bed depth and contact time
A42: Minimum total contact material needed | B42: contact_material | C42: =design_flow_rate*EBCT/(7.481) -> 27.84832687 | D42: cubic feet
A43: Minimum volume of contact material per vessel | B43: contact_mat_per_vessel | C43: =contact_material/op_num_tanks -> 13.92416344 | D43: cubic feet
A44: Minimum volume of vessel | B44: vol_vessel | C44: =contact_mat_per_vessel*(1+bed_expansion) -> 20.88624515 | D44: cubic feet | E44: Volume required for media plus expansion, without freeboard or underdrain
A45: Minimum surface area of contact material | B45: SA | C45: =contact_mat_per_vessel/(bed_depth) -> 4.801435668 | D45: square feet
A47: Quantities based on user-specified vessel dimensions
A48: Final surface area of contact material | B48: comm_SA | C48: =IF(tank_geom=1,(comm_diam-(2*Vessel_thickness))^2*PI()/4,IF(tank_geom=2,(comm_diam-(2*Vessel_thickness))*comm_height_length)) -> 4.908738521 | D48: square feet
A49: Final surface loading rate | B49: comm_load_rate | C49: =(design_flow_rate/num_treat_lines)/comm_SA -> 4.244131816 | D49: gpm/square ft
A50: Media volume per tank | B50: media_volume | C50: =IF(tank_geom=1,comm_SA*bed_depth,IF(tank_geom=2,comm_vol-underdrain_horiz_void-void_above)) -> 14.23534171 | D50: cubic feet
B51: media_volume_gal | C51: =media_volume*7.48 -> 106.480356 | D51: gallons
A52: Media mass per vessel | B52: media_per_vessel | C52: =media_volume*media_density -> 711.7670856 | D52: lbs/vessel
A53: Total media required | B53: total_media | C53: =media_per_vessel*final_num_tanks -> 1423.534171 | D53: lbs
B54: total_media_cf | C54: =media_volume*final_num_tanks -> 28.47068342 | D54: cubic feet
A56: Media volume when expanded | B56: media_volume_expanded | C56: =media_volume*(1+bed_expansion) -> 21.35301257 | D56: cubic feet
A58: Total vessel volume | B58: comm_vol | C58: =PI()*comm_diam*comm_diam/4*comm_height_length -> 24.54369261 | D58: cubic feet
B59: comm_vol_gal | C59: =comm_vol*7.48 -> 183.5868207 | D59: gal
A61: Checks on user-specified dimensions
A62: Design dimensions for vertical vessels:
A63: Height of vessel required | B63: height | C63: =bed_depth*(1+bed_expansion)+free_board -> 4.85 | D63: feet
A64: Required vessel diameter (circular vessels) | B64: diameter | C64: =(SA*4/PI())^0.5+(2*Vessel_thickness) -> 2.472524573 | D64: feet
A65: Minimum commercial height given diameter | B65: min_comm_height | C65: =VLOOKUP(comm_diam,vessel_size_table_cl,2) -> 4 | D65: feet
A66: Maximum commercial height given diameter | B66: max_comm_height | C66: =VLOOKUP(comm_diam,vessel_size_table_cl,3) -> 9 | D66: feet
A68: Void space required for horizontal vessels:
A69: For freeboard | B69: freeboard_horiz_void | C69: =comm_height_length*(comm_diam*comm_diam/2*ASIN(SQRT(free_board/comm_diam))-(comm_diam/2-free_board)*SQRT((comm_diam-free_board)*free_board)) -> 3.494493891 | D69: cubic feet | E69: Volume of a horizontal slice taken out of a cylinder
A70: For underdrain | B70: underdrain_horiz_void | C70: =comm_height_length*(comm_diam*comm_diam/2*ASIN(SQRT(horiz_underdrain/comm_diam))-(comm_diam/2-horiz_underdrain)*SQRT((comm_diam-horiz_underdrain)*horiz_underdrain)) -> 15.37588615 | D70: cubic feet
A71: Total | B71: horiz_void | C71: =freeboard_horiz_void+underdrain_horiz_void -> 18.87038004 | D71: cubic feet
A73: Volume available for media and expansion:
A74: Vertical vessel | B74: vert_vol_available | C74: =(comm_height_length-free_board)*PI()*comm_diam^2/4 -> 22.08932335 | D74: cubic feet
A75: Horizontal vessel | B75: horiz_vol_available | C75: =comm_vol-horiz_void -> 5.673312567 | D75: cubic feet
A76: For selected vessel geometry | B76: input_vol_vess | C76: =CHOOSE(tank_geom,vert_vol_available,horiz_vol_available) -> 22.08932335 | D76: cubic feet | E76: To be compared to vol_vessel, to determine whether vessel is oversized.
A78: Tolerance for oversized vessels | B78: vol_tol | C78: =CHOOSE(tank_geom,IF(ss_cat2=1,vol_tol_vert_small,vol_tol_vert_med),vol_tol_horiz) -> 0.5 | E78: Tolerance added to vol_vessel in checking for oversized vessels.

Sheet Backwash
A1: Backwash Calculations
A3: Calculation | B3: Range Name | C3: Value | D3: Units | E3: Guidance
A4: From Inputs
A5: Backwash system design | B5: no_backwash | C5: =IF(no_backwash_I="existing pumps",1,IF(no_backwash_I="new pumps","",IF(ss_cat2=1,1,""))) -> 1 | D5: <-- 1 = backwash using existing supply or treated water pumps, blank = include backwash pumps in costs
B6: no_back_tank | C6: =IF(no_back_tank_I="existing storage",1,IF(no_back_tank_I="new storage","",IF(ss_cat2=2,"",1))) -> 1 | D6: <-- 1 = backwash from existing storage or supply, blank = include backwash tanks in costs
A7: Interval between backwashes | B7: back_interval | C7: =IF(back_interval_I="",regen_freq*24,back_interval_I) -> 720 | D7: hours
A9: Media Specific Backwash Assumptions | B9: From Adsorptive Media Assumptions page, dependent on media selection input
A10: Water backwash rate | B10: h2oflush_backwash_rate | C10: =VLOOKUP("h2oflush_backwash_rate",back_regen_table,media_type+1,FALSE) -> 10 | D10: gpm/square ft | E10: =VLOOKUP("h2oflush_backwash_rate",guidance_table,media_type+1,FALSE) -> 
A11: Backwash time | B11: backwash_time | C11: =VLOOKUP("backwash_time",back_regen_table,media_type+1,FALSE) -> 10 | D11: minutes | E11: =VLOOKUP("backwash_time",guidance_table,media_type+1,FALSE) -> 
A12: Final rinse quantity | B12: finalrinse_flow | C12: =VLOOKUP("finalrinse_flow",back_regen_table,media_type+1,FALSE) -> 2 | D12: bed volumes | E12: =VLOOKUP("finalrinse_flow",guidance_table,media_type+1,FALSE) -> Final rinse is used if regeneration occurs to remove residual caustic
A13: Final rinse time | B13: finalrinse_time | C13: =VLOOKUP("finalrinse_time",back_regen_table,media_type+1,FALSE) -> 15 | D13: minutes | E13: =VLOOKUP("finalrinse_time",guidance_table,media_type+1,FALSE) -> 
A15: Water Flush
A16: Water flush flow (for backwash) | B16: water_flush | C16: =ROUND(h2oflush_backwash_rate*comm_SA,0) -> 49 | D16: gpm
A17: Final rinse flow (if regeneration is used) | B17: finalrinse | C17: =IF(finalrinse_time=0,0,finalrinse_flow*media_volume_gal/finalrinse_time) -> 14.1973808 | D17: gpm
A18: Total water flush | B18: waterflush_vol | C18: =water_flush*backwash_time+IF(throwaway=1,0,media_volume_gal*finalrinse_flow+dil_acid_vol+dil_NaOH_vol) -> 490 | D18: gallons | E18: Includes final rinse and dilution water if regeneration is used; this is the design size for the backwash tanks (big enough to contain volume of one backwash and one final rinse)
A19: Maximum backwash tank size | B19: max_back_tank_size | C19: =MAX(VLOOKUP(10^6,st_bwt_cost_cl,1)-1,VLOOKUP(10^6,fg_bwt_cost_cl,1)-1,VLOOKUP(10^6,hdpe_bwt_cost_cl,1)-1) -> 289000 | D19: gallons | E19: The largest size for which costs are available. Applies to backwash tanks.
A20: Number of backwash tanks | B20: num_back_tanks | C20: =IF(no_back_tank=1,0,ROUNDUP(waterflush_vol/max_back_tank_size,0)) -> 0 | D20: units
A21: Backwash tank volume | B21: back_tank_vol | C21: =IF(no_back_tank=1,0,waterflush_vol/num_back_tanks) -> 0 | D21: gallons | E21: Includes final rinse if regeneration is used

Sheet Regen and pH adj
A1: Regeneration and pH Adjustment Calculations
A3: Calculation | B3: Range Name | C3: Value | D3: Units | E3: Guidance
A4: From Input Sheet
A5: Media regeneration or throwaway operation? | B5: throwaway | C5: =IF(throwaway_I="throwaway",1,2) -> 1 | D5: 1 for throwaway, 2 for regeneration
A6: Type of acid for pH adjustment and/or regeneration | B6: acid_type | C6: =IF(acid_type_I="sulfuric",2,1) -> 1 | D6: 1 for hydrochloric, 2 for sulfuric
A8: Media Specific Regeneration Assumptions | B8: From Adsorptive Media Assumptions page, dependent on media selection input
A9: Regeneration calculation type | B9: regen_calc_type | C9: =IF(VLOOKUP("regen_calc_type",back_regen_table,media_type+1,FALSE)="lbs/cubic ft",1,2) -> 1 | E9: =VLOOKUP("regen_calc_type",guidance_table,media_type+1,FALSE) -> Choose: lbs of 100% chemical per cu. ft. of media or bed volumes of dilute solution.
A10: HCl required for regeneration | B10: acid_regen_need_HCl | C10: =VLOOKUP("acid_regen_need_HCl",back_regen_table,media_type+1,FALSE) -> 7 | D10: =IF(media_type=1,"lb/cubic ft", IF(OR(media_type=2,media_type=3),"bed volumes","")) -> lb/cubic ft | E10: =VLOOKUP("acid_regen_need_HCl",guidance_table,media_type+1,FALSE) -> Dependent on acid type (7 lbs/cu ft. for HCl, 3.5 lbs/cu ft. for H2SO4)
A11: H2SO4 required for regeneration | B11: acid_regen_need_H2SO4 | C11: =VLOOKUP("acid_regen_need_H2SO4",back_regen_table,media_type+1,FALSE) -> 3.5 | D11: =IF(media_type=1,"lb/cubic ft", IF(OR(media_type=2,media_type=3),"bed volumes","")) -> lb/cubic ft | E11: =VLOOKUP("acid_regen_need_H2SO4",guidance_table,media_type+1,FALSE) -> Dependent on acid type (7 lbs/cu ft. for HCl, 3.5 lbs/cu ft. for H2SO4)
A12: NaOH required for regeneration | B12: caustic_regen_need | C12: =VLOOKUP("caustic_regen_need",back_regen_table,media_type+1,FALSE) -> 7.5 | D12: =IF(media_type=1,"lb/cubic ft", IF(OR(media_type=2,media_type=3),"bed volumes","")) -> lb/cubic ft | E12: =VLOOKUP("caustic_regen_need",guidance_table,media_type+1,FALSE) -> 
A13: Caustic regeneration treatment time | B13: caustic_time | C13: =VLOOKUP("caustic_time",back_regen_table,media_type+1,FALSE) -> 88 | D13: minutes | E13: =VLOOKUP("caustic_time",guidance_table,media_type+1,FALSE) -> 
A14: Acid regeneration treatment time | B14: acid_time | C14: =VLOOKUP("acid_time",back_regen_table,media_type+1,FALSE) -> 84 | D14: minutes | E14: =VLOOKUP("acid_time",guidance_table,media_type+1,FALSE) -> 
A15: Acid concentration in percent for HCl | B15: acid_strength_HCl | C15: =VLOOKUP("acid_strength_HCl",back_regen_table,media_type+1,FALSE) -> 0.36 | E15: =IF(media_type=5,"","Dependent on acid type (28% for HCl, 77.67% for H2SO4)") -> Dependent on acid type (28% for HCl, 77.67% for H2SO4)
A16: Acid concentration in percent for H2SO4 | B16: acid_strength_H2SO4 | C16: =VLOOKUP("acid_strength_H2SO4",back_regen_table,media_type+1,FALSE) -> 0.7767 | E16: =IF(media_type=5,"","Dependent on acid type (28% for HCl, 77.67% for H2SO4)") -> Dependent on acid type (28% for HCl, 77.67% for H2SO4)
A17: Caustic concentration in percent | B17: caustic_strength | C17: =VLOOKUP("caustic_strength",back_regen_table,media_type+1,FALSE) -> 0.5
A18: Dilute HCl concentration in percent | B18: acid_dilute_HCl | C18: =VLOOKUP("acid_dilute_HCL",back_regen_table,media_type+1,FALSE) -> 0.02 | E18: =VLOOKUP("acid_dilute_HCl",guidance_table,media_type+1,FALSE) -> 
A19: Dilute H2SO4 concentration in percent | B19: acid_dilute_H2SO4 | C19: =VLOOKUP("acid_dilute_H2SO4",back_regen_table,media_type+1,FALSE) -> 0.02 | E19: =VLOOKUP("acid_dilute_H2SO4",guidance_table,media_type+1,FALSE) -> 
A20: Dilute caustic concentration in percent | B20: caustic_dilute | C20: =VLOOKUP("caustic_dilute",back_regen_table,media_type+1,FALSE) -> 0.02 | E20: =VLOOKUP("caustic_dilute",guidance_table,media_type+1,FALSE) -> 
A21: Target pH for treatment (when pH adjustment is used) | B21: pHf_selected | C21: =VLOOKUP("pHf_selected",back_regen_table,media_type+1,FALSE) -> 5.5 | E21: =VLOOKUP("pHf_selected",guidance_table,media_type+1,FALSE) -> This is the selected pH level needed to improve contaminant removal; 5.5-6 for As and F removal (Water Treatment Principles and Applications. Canada: Canadian Water and Wastewaer Association, 1993. Pp. 88 Figure 3.24).
A23: Regeneration
A24: Regeneration/Disposal frequency | B24: regen_freq | C24: =ROUNDDOWN(((num_treat_lines*media_volume_gal*BV_regen)/(average_flow*1000000)),0) -> 349 | D24: days
A25: Washes per month | B25: washes_per_month | C25: =30/regen_freq -> 0.08595988539 | D25: washes
A26: Regeneration downtime | B26: regeneration_downtime | C26: =IF(throwaway=1,0,finalrinse_time+acid_time+caustic_time) -> 0 | D26: minutes
A28: Caustic Wash for Regeneration
A29: Dilute caustic solution needed per wash per vessel | B29: caustic_vol | C29: =IF(OR(regen_calc_type="NA",throwaway=1),0,IF(regen_calc_type=1,caustic_soda/VLOOKUP(caustic_dilute,NaOH_table_cl,2),IF(regen_calc_type=2,media_volume_gal*caustic_regen_need))) -> 0 | D29: gallons/wash/vessel
A30: Concentrated caustic needed per wash per vessel | B30: caustic_vol_conc | C30: =caustic_soda/VLOOKUP(caustic_strength,NaOH_table_cl,2) -> 0 | D30: gallons/wash/vessel
A31: Dilution water required | B31: dil_NaOH_vol | C31: =caustic_vol-caustic_vol_conc -> 0 | D31: gallons/wash/vessel
A32: Pounds of concentrated NaOH required per vessel | B32: caustic_soda | C32: =IF(OR(regen_calc_type="NA",throwaway=1),0,IF(regen_calc_type=1,caustic_regen_need*media_volume,IF(regen_calc_type=2,caustic_vol*VLOOKUP(caustic_dilute,NaOH_table_cl,2)))) -> 0 | D32: lbs/wash/vessel
A33: Caustic solution flow rate | B33: caustic_flow | C33: =IF(caustic_time="NA",0,caustic_vol/caustic_time) -> 0 | D33: gpm
A34: Concentrated caustic flow rate | B34: caustic_flow_conc | C34: =IF(caustic_time="NA",0,caustic_vol_conc/caustic_time) -> 0 | D34: gpm
A35: Concentrated caustic in storage for regeneration | B35: caustic_vol_store | C35: =ROUNDUP(caustic_vol_conc*(washes_per_month/30)*cstore_days*num_treat_lines,0) -> 0 | D35: gallons
A37: Acid Rinse for Regeneration
A38: Acid concentration in percent (concentrated) | B38: acid_strength | C38: =IF(acid_type=1,acid_strength_HCl,acid_strength_H2SO4) -> 0.36
A39: Acid concentration in percent (diluted) | B39: acid_dilute | C39: =IF(acid_type=1,acid_dilute_HCl,acid_dilute_H2SO4) -> 0.02
A40: Acid needed per regeneration | B40: acid_regen_need | C40: =IF(acid_type=1,acid_regen_need_HCl,acid_regen_need_H2SO4) -> 7 | D40: =IF(regen_calc_type="NA","",IF(regen_calc_type=1,"lbs/cubic ft","bed volumes")) -> lbs/cubic ft
A41: Pounds/gal of pure acid (concentrated) | B41: acid_dens | C41: =VLOOKUP(acid_strength,IF(acid_type=1,hcl_table_cl,h2so4_table_cl),4) -> 3.542 | D41: lbs/gallon
A42: Pounds/gal of pure acid (diluted) | B42: acid_dens_dil | C42: =IF(acid_dilute="NA",0,VLOOKUP(acid_dilute,IF(acid_type=1,hcl_table_cl,h2so4_table_cl),4)) -> 0.168 | D42: lbs/gallon
A43: Dilute acid solution needed per rinse per vessel | B43: acid_vol | C43: =IF(OR(regen_calc_type="NA",throwaway=1),0,IF(regen_calc_type=1,weight_acid_solution/acid_dens_dil,IF(regen_calc_type=2,media_volume_gal*acid_regen_need))) -> 0 | D43: gallons/wash/vessel
A44: Concentrated acid needed per rinse per vessel | B44: acid_vol_conc | C44: =weight_acid_solution/acid_dens -> 0 | D44: gallons/wash/vessel
A45: Dilution water required | B45: dil_acid_vol | C45: =acid_vol-C44 -> 0 | D45: gallons/wash/vessel
A46: Pounds of concentrated acid required per wash per vessel | B46: weight_acid_solution | C46: =IF(OR(regen_calc_type="NA",throwaway=1),0,IF(regen_calc_type=1,acid_regen_need*media_volume,IF(regen_calc_type=2,acid_vol*acid_dens_dil))) -> 0 | D46: lbs/wash/vessel
A47: Acid solution flow rate | B47: acid_flow | C47: =IF(acid_time="NA",0,acid_vol/acid_time) -> 0 | D47: gpm
A48: Concentrated acid flow rate | B48: acid_flow_conc | C48: =IF(acid_time="NA",0,acid_vol_conc/acid_time) -> 0 | D48: gpm
A49: Concentrated acid in storage for regeneration | B49: acid_vol_store | C49: =ROUNDUP(acid_vol_conc*(washes_per_month/30)*cstore_days*num_treat_lines,0) -> 0 | D49: gallons
A51: pH Adjustment Chemistry
A52: Target pH for treatment | B52: pHf | C52: =IF(pH_adj="no",pHo,pHf_selected) -> 5.5 | E52: Accounts for whether or not pH adjustment has been selected
A53: Ionic strength (I) | B53: I_ion_str | C53: =TDS_I/40000 -> 0.005 | D53: mol/L | E53: 40,000 converts TDS to ionic strength, Equation 4, Trussell 1998
A54: Temperature variance from 25 degrees centigrade | B54: t_minus25 | C54: =t_I-25 -> -15 | D54: degrees C | E54: For use in Equation S14, Trussell 1998
A55: Dielectric constant (D) | B55: D_dielectric | C55: =78.54*(1-0.004579*t_minus25+0.0000119*t_minus25^2+0.000000028*t_minus25^3) -> 84.13738872 | E55: Equation S14, Trussell 1998
A56: Temperature in degrees Kelvin | B56: T_K | C56: =t_I+273 -> 283 | D56: degrees K | E56: 273 converts degrees C to degrees K
A57: Limiting theoretical slope (A) | B57: A_slope_lim | C57: =1290000*(SQRT(2)/(D_dielectric*T_K)^1.5) -> 0.496525447 | E57: Equation S13, Trussell 1998
A58: Monovalent activity coefficient (-log form) | B58: log_gamma_1 | C58: =A_slope_lim*1^2*(SQRT(I_ion_str)/(1+SQRT(I_ion_str))-0.3*I_ion_str) -> 0.03204619055 | E58: Modified Davies equation, Equation S12, Trussell 1998
A59: Divalent activity coefficient (-log form) | B59: log_gamma_2 | C59: =A_slope_lim*2^2*(SQRT(I_ion_str)/(1+SQRT(I_ion_str))-0.3*I_ion_str) -> 0.1281847622 | E59: Modified Davies equation, Equation S12, Trussell 1998
A60: Monovalent activity coefficient (ɣ1) | B60: gamma_1 | C60: =10^-log_gamma_1 -> 0.9288675893
A61: Divalent activity coefficient (ɣ2) | B61: gamma_2 | C61: =10^-log_gamma_2 -> 0.7444152094
A62: Equilibrium constant for carbonic acid (H2CO3) (-log form) | B62: pK_1 | C62: =a1_K1+a2_K1/T_K+a3_K1*LOG10(T_K)+a4_K1*T_K+a5_K1/T_K^2 -> 6.476641144
A63: Equilibrium constant for bicarbonate (HCO3-) (-log form) | B63: pK_2 | C63: =a1_K2+a2_K2/T_K+a3_K2*LOG10(T_K)+a4_K2*T_K+a5_K2/T_K^2 -> 10.48853824
A64: Equilibrium constant for water (H2O) (-log form) | B64: pK_w | C64: =a1_Kw+a2_Kw/T_K+a3_Kw*LOG10(T_K)+a4_Kw*T_K+a5_Kw/T_K^2 -> 14.53856657
A65: Equilibrium constant for carbonic acid (H2CO3) (K1) | B65: K_1 | C65: =10^-pK_1 -> 3.337020356e-07
A66: Equilibrium constant for bicarbonate (HCO3-) (K2) | B66: K_2 | C66: =10^-pK_2 -> 3.246846499e-11
A67: Equilibrium constant for water (H2O) (Kw) | B67: K_w | C67: =10^-pK_w -> 2.893566232e-15
A68: Intermediate calculation | B68: term1_i | C68: =gamma_1*10^-pHo/K_1 -> 0.08802275424 | E68: ɣ110-pH / K1
A69: Intermediate calculation | B69: term2_i | C69: =(gamma_1*K_2)/(gamma_2*10^-pHo) -> 0.001281151026 | E69: ɣ1K2 / ɣ210-pH
A70: Intermediate calculation | B70: term3_i | C70: =alk_I/50000 -> 0.002 | D70: eq/L | E70: Alk / 50,000 (where 50,000 converts mg/L to eq/L)
A71: Intermediate calculation | B71: term4_i | C71: =K_w/(gamma_1*10^-pHo) -> 9.8509841e-08 | E71: Kw / ɣ110-pH
A72: Intermediate calculation | B72: term5_i | C72: =10^-pHo/gamma_1 -> 3.404443967e-08 | E72: 10-pH / ɣ1
A73: Intermediate calculation | B73: term6_i | C73: =(2*K_2*gamma_1)/(gamma_2*10^-pHo) -> 0.002562302051 | E73: 2K2ɣ1 / ɣ210-pH
A74: Initial total inorganic carbon (CT) | B74: C_T_i | C74: =(1+term1_i+term2_i)*((term3_i-term4_i+term5_i)/(1+term6_i)) -> 0.002172969783 | D74: mol/L | E74: Equation 15, Najm 2001
A75: Intermediate calculation | B75: term1_t | C75: =(2*K_2*gamma_1)/(gamma_2*10^-pHf) -> 2.562302051e-05 | E75: 2K2ɣ1 / ɣ210-pH
A76: Intermediate calculation | B76: term2_t | C76: =(gamma_1*10^-pHf)/K_1 -> 8.802275424 | E76: ɣ110-pH / K1
A77: Intermediate calculation | B77: term3_t | C77: =(gamma_1*K_2)/(gamma_2*10^-pHf) -> 1.281151026e-05 | E77: ɣ1K2 / ɣ210-pH
A78: Intermediate calculation | B78: term4_t | C78: =K_w/(gamma_1*10^-pHf) -> 9.8509841e-10 | E78: Kw / ɣ110-pH
A79: Intermediate calculation | B79: term5_t | C79: =10^-pHf/gamma_1 -> 3.404443967e-06 | E79: 10-pH / ɣ1
A80: Target alkalinity for treatment | B80: alk_t | C80: =50000*((C_T_i*(1+term1_t))/(1+term2_t+term3_t)+term4_t-term5_t) -> 10.91410355 | D80: mg/L as CaCO3 | E80: Equation 17, Najm 2001, where 50,000 converts eq/L to mg/L
A81: Hydrogen ion (H+) required to lower pH | B81: H_tot | C81: =(alk_I-alk_t)/50000 -> 0.001781717929 | D81: mol/L | E81: Equation 18, Najm 2001, where 50,000 converts from mg/L to mol/L
A82: Hydroxide (OH-) required to restore pH | B82: OH_tot | C82: =H_tot -> 0.001781717929 | D82: mol/L
A84: Chemical Usage for pH Adjustment
A85: Moles of acid required to lower pH | B85: acid_moles | C85: =H_tot/IF(acid_type=1,1,2) -> 0.001781717929 | D85: mol/L | E85: Sulfuric acid provides 2 moles of H+ per mole; hydrochloric acid provides 1 mole per mole
A86: Dose of acid required to lower pH | B86: mg_per_liter | C86: =acid_moles*IF(acid_type=1,molwt_HCl,molwt_H2SO4)*1000 -> 65.03270441 | D86: mg/L | E86: 1,000 converts g to mg
A87: Pounds of pure acid per gallon | B87: acid_solution_lb | C87: =VLOOKUP(acid_strength,IF(acid_type=1,hcl_table_cl,h2so4_table_cl),4) -> 3.542 | D87: lbs/gal
A88: Pounds of pure acid per day | B88: acid_ppd | C88: =1000000*3.7854*mg_per_liter*2.2*average_flow/1000000 -> 3.791091909 | D88: lbs/day
A89: Gallons of acid solution per day | B89: gal_acid_day | C89: =IF(pH_adj="no",0,acid_ppd/acid_solution_lb) -> 1.070325214 | D89: gpd
A90: Gallons of acid solution stored | B90: acid_ph_adjust | C90: =ROUNDUP(gal_acid_day*cstore_days,0) -> 33 | D90: gallons
A91: Maximum acid flow rate for pH adjustment (based on design flow) | B91: des_acid_flow | C91: =gal_acid_day/24*design_flow/average_flow -> 0.1911295025 | D91: gph
A93: NaOH required to restore pH | B93: NaOH_tot | C93: =IF(OR(pH_adj="no",corr_cont="no"),0,39.997*OH_tot*1000) -> 71.26337201 | D93: mg/L | E93: 39.997 is molar mass of NaOH in g/mol, 1,000 converts g to mg
A94: NaOH concentration in lbs/gal | B94: caustic_conc_lb | C94: =VLOOKUP(caustic_strength,NaOH_table_cl,2) -> 6.364 | D94: lbs/gal
A95: Pounds of pure NaOH needed per day | B95: lb_NaOH_day | C95: =1000000*3.7854*NaOH_tot*2.2*average_flow/1000000 -> 4.154309673 | D95: lbs
A96: Pounds of pure NaOH needed in storage | B96: lb_NaOH_store | C96: =ROUNDUP(lb_NaOH_day*cstore_days,0) -> 125 | D96: lbs
A97: Gallons of NaOH needed per day | B97: gal_NaOH_day | C97: =IF(lb_NaOH_day=0,0,lb_NaOH_day/caustic_conc_lb) -> 0.6527827896 | D97: gal
A98: Gallons of NaOH needed in storage | B98: gal_NaOH_store | C98: =IF(lb_NaOH_store=0,0,ROUNDUP(lb_NaOH_store/caustic_conc_lb,0)) -> 20 | D98: gal
A99: Maximum NaOH flow for pH adjustment (based on design flow) | B99: des_NaOH_flow | C99: =gal_NaOH_day/24*design_flow/average_flow -> 0.1165683553 | D99: gph
A101: Total Chemical Requirements
A102: Total acid solution in storage | B102: acid_storage_total | C102: =acid_ph_adjust+IF(throwaway<>1,acid_vol_store,0) -> 33 | D102: gallons | E102: Includes quantity required for pH adjustment
A103: Acid solution specific gravity | B103: acid_spgr | C103: =VLOOKUP(acid_strength,IF(acid_type=1,hcl_table_cl,h2so4_table_cl),2) -> 1.1789
A104: Total weight of bulk acid solution in storage | B104: acid_storage_lbs_total | C104: =IF(acid_storage_total=0,0,ROUNDUP(acid_storage_total*acid_spgr*8.345,0)) -> 325 | D104: lbs
A105: Total NaOH in storage | B105: NaOH_storage_total | C105: =gal_NaOH_store+IF(throwaway<>1,caustic_vol_store,0) -> 20 | D105: gallons | E105: Includes quantity required for pH adjustment
A106: NaOH solution specific gravity | B106: NaOH_spgr | C106: =VLOOKUP(caustic_strength,NaOH_table_cl,4) -> 1.525
A107: Total weight of bulk NaOH solution in storage | B107: NaOH_storage_lbs_total | C107: =IF(NaOH_storage_total=0,0,ROUNDUP(NaOH_storage_total*NaOH_spgr*8.345,0)) -> 255 | D107: lbs
A109: Maximum chemical storage tank size | B109: max_chem_tank_size | C109: =MAX(VLOOKUP(10^6,pl_cst_cost_cl,1)-1,VLOOKUP(10^6,fg_cst_cost_cl,1)-1,VLOOKUP(10^6,ss_cst_cost_cl,1)-1) -> 30000 | D109: gallons | E109: The largest size for which costs are available.
A110: Maximum chemical storage tank size excluding stainless steel | B110: max_chem_tank_size_noSS | C110: =MAX(VLOOKUP(10^6,pl_cst_cost_cl,1)-1,VLOOKUP(10^6,fg_cst_cost_cl,1)-1) -> 30000 | D110: gallons | E110: The largest size for which costs are available (not including stainless steel, which is not compatible with hydrochloric or sulfuric acid).
A111: Number of acid storage tanks | B111: num_acid_tanks | C111: =ROUNDUP(acid_storage_total/max_chem_tank_size_noSS,0) -> 1 | D111: units
A112: Volume of acid storage tanks | B112: acid_tank_vol | C112: =ROUNDUP(IF(acid_storage_total=0,0,acid_storage_total/num_acid_tanks),0) -> 33 | D112: gallons
A113: Number of caustic storage tanks | B113: num_caustic_tanks | C113: =ROUNDUP(NaOH_storage_total/max_chem_tank_size,0) -> 1 | D113: units
A114: Volume of caustic storage tanks | B114: caustic_tank_vol | C114: =ROUNDUP(IF(NaOH_storage_total=0,0,NaOH_storage_total/num_caustic_tanks),0) -> 20 | D114: gallons
A115: Acid Day tank storage volume required (based on design flow) | B115: day_tank_vol_needed_acid | C115: =ROUNDUP(gal_acid_day*design_flow/average_flow,0) -> 5 | D115: gallons
A116: Caustic Day tank storage volume required (based on design flow) | B116: day_tank_vol_needed_caustic | C116: =ROUNDUP(gal_NaOH_day*design_flow/average_flow,0) -> 3 | D116: gallons
A117: Number of acid day tanks | B117: day_tanks_acid | C117: =IF(day_tank_vol_needed_acid<day_tank_needed,0,ROUNDUP(day_tank_vol_needed_acid/max_chem_tank_size_noSS,0)) -> 1 | D117: units
A118: Number of caustic day tanks | B118: day_tanks_caustic | C118: =IF(day_tank_vol_needed_caustic<day_tank_needed,0,ROUNDUP(day_tank_vol_needed_caustic/max_chem_tank_size,0)) -> 0 | D118: units
A119: Volume of acid day tanks | B119: day_tank_vol_acid | C119: =ROUNDUP(IF(day_tanks_acid=0,0,day_tank_vol_needed_acid/day_tanks_acid),0) -> 5 | D119: gallons
A120: Volume of caustic day tanks | B120: day_tank_vol_caustic | C120: =ROUNDUP(IF(day_tanks_caustic=0,0,day_tank_vol_needed_caustic/day_tanks_caustic),0) -> 0 | D120: gallons
A121: Maximum chemical tank mixer horsepower - acid | B121: cmix_hp_max_acid | C121: =MAX(VLOOKUP(10^6,port_mix_cost_cl,1)-0.1,VLOOKUP(10^6,mount_mix_cost_cl,1)-0.1,VLOOKUP(10^6,imp_mix_cost_cl,1)-0.1) -> 30 | D121: hp
A122: Maximum chemical tank mixer horsepower - caustic | B122: cmix_hp_max_caustic | C122: =MAX(VLOOKUP(10^6,port_mix_cost_cl,1)-0.1,VLOOKUP(10^6,mount_mix_cost_cl,1)-0.1,VLOOKUP(10^6,imp_mix_cost_cl,1)-0.1) -> 30 | D122: hp
A123: Mixers per storage tank - acid | B123: cmix_per_tank_acid | C123: =IF(AND(include_cmix=1,num_acid_tanks<>0),ROUNDUP(acid_tank_vol/1000*cmix_hp_per/cmix_hp_max_acid,0),0) -> 0 | D123: units
A124: Mixers per storage tank - caustic | B124: cmix_per_tank_caustic | C124: =IF(AND(include_cmix=1,num_caustic_tanks<>0),ROUNDUP(caustic_tank_vol/1000*cmix_hp_per/cmix_hp_max_caustic,0),0) -> 0 | D124: units
A125: Number of storage tank mixers - acid | B125: cmixers_acid | C125: =num_acid_tanks*cmix_per_tank_acid -> 0 | D125: units
A126: Number of storage tank mixers - caustic | B126: cmixers_caustic | C126: =num_caustic_tanks*cmix_per_tank_caustic -> 0 | D126: units
A127: Mixer size for storage tanks - acid | B127: cmix_size_acid | C127: =IF(cmixers_acid<>0,MAX(min_cmix_hp,acid_tank_vol/1000*cmix_hp_per/cmix_per_tank_acid),0) -> 0 | D127: hp
A128: Mixer size for storage tanks - caustic | B128: cmix_size_caustic | C128: =IF(cmixers_caustic<>0,MAX(min_cmix_hp,caustic_tank_vol/1000*cmix_hp_per/cmix_per_tank_caustic),0) -> 0 | D128: hp
A129: Mixers per day tank - acid | B129: dmix_per_tank_acid | C129: =IF(AND(include_cmix=1,day_tanks_acid<>0),ROUNDUP(day_tank_vol_acid/1000*cmix_hp_per/cmix_hp_max_acid,0),0) -> 0 | D129: units
A130: Mixers per day tank - caustic | B130: dmix_per_tank_caustic | C130: =IF(AND(include_cmix=1,day_tanks_caustic<>0),ROUNDUP(day_tank_vol_caustic/1000*cmix_hp_per/cmix_hp_max_caustic,0),0) -> 0 | D130: units
A131: Number of day tank mixers - acid | B131: dmixers_acid | C131: =day_tanks_acid*dmix_per_tank_acid -> 0 | D131: units
A132: Number of day tank mixers - caustic | B132: dmixers_caustic | C132: =day_tanks_caustic*dmix_per_tank_caustic -> 0 | D132: units
A133: Mixer size for day tanks - acid | B133: dmix_size_acid | C133: =IF(dmixers_acid<>0,MAX(min_cmix_hp,day_tank_vol_acid/1000*cmix_hp_per/dmix_per_tank_acid),0) -> 0 | D133: hp
A134: Mixer size for day tanks - caustic | B134: dmix_size_caustic | C134: =IF(dmixers_caustic<>0,MAX(min_cmix_hp,day_tank_vol_caustic/1000*cmix_hp_per/dmix_per_tank_caustic),0) -> 0 | D134: hp
A136: Secondary Containment for Acid Storage Tanks
A137: Minimum volume required | B137: acid_st_cont_volume | C137: =ROUNDUP(MAX(num_acid_tanks*acid_tank_vol*sec_cont_pct_of_total,acid_tank_vol*sec_cont_pct_of_largest)/7.48,0) -> 5 | D137: cubic feet | E137: 7.48 converts gallons to cubic feet
A138: Footprint available | B138: acid_st_cont_fp | C138: =IF(num_acid_tanks=0,0,storage_tank_fp_acid-num_acid_tanks*PI()*(at_diam/2)^2) -> 11.23285413 | D138: square feet | E138: Total footprint minus displacement by tanks themselves
A139: Curb height required | B139: acid_st_curb_height | C139: =IF(num_acid_tanks=0,0,acid_st_cont_volume/acid_st_cont_fp+sec_cont_freeboard/12) -> 0.945122846 | D139: feet
A140: Curb thickness | B140: acid_st_curb_thick | C140: =IF(num_acid_tanks=0,0,MIN(sec_cont_max_thick,acid_st_curb_height)) -> 0.945122846 | D140: feet
A141: Curb length (long side) | B141: acid_st_curb_len_long | C141: =IF(num_acid_tanks=0,0,num_acid_tanks*at_diam+2*space_at+(num_acid_tanks-1)*space_at+2*acid_st_curb_thick) -> 5.390245692 | D141: feet
A142: Curb length (short side) | B142: acid_st_curb_len_short | C142: =IF(num_acid_tanks=0,0,at_diam+2*space_at) -> 3.5 | D142: feet
A143: Curb concrete volume | B143: acid_st_curb_concrete | C143: =IF(num_acid_tanks=0,0,ROUNDUP((acid_st_curb_len_long*2+acid_st_curb_len_short*2)*acid_st_curb_height*acid_st_curb_thick/27,0)) -> 1 | D143: cubic yards | E143: 27 converts cubic feet to cubic yards
A144: Chemical resistant coating required | B144: acid_st_coating_gal | C144: =IF(num_acid_tanks=0,0,ROUNDUP((storage_tank_fp_acid+2*(acid_st_curb_len_long-2*acid_st_curb_thick)*acid_st_curb_height+2*acid_st_curb_len_short*acid_st_curb_height)/sec_cont_coating_cvg,0)) -> 1 | D144: gallons | E144: Covers total footprint plus inside surface and top of curbs
A146: Secondary Containment for Caustic Storage Tanks
A147: Minimum volume required | B147: caustic_st_cont_volume | C147: =ROUNDUP(MAX(num_caustic_tanks*caustic_tank_vol*sec_cont_pct_of_total,caustic_tank_vol*sec_cont_pct_of_largest)/7.48,0) -> 3 | D147: cubic feet | E147: 7.48 converts gallons to cubic feet
A148: Footprint available | B148: caustic_st_cont_fp | C148: =IF(num_caustic_tanks=0,0,storage_tank_fp_caustic-num_caustic_tanks*PI()*(ct_diam/2)^2) -> 11.23285413 | D148: square feet | E148: Total footprint minus displacement by tanks themselves
A149: Curb height required | B149: caustic_st_curb_height | C149: =IF(num_caustic_tanks=0,0,caustic_st_cont_volume/caustic_st_cont_fp+sec_cont_freeboard/12) -> 0.7670737076 | D149: feet
A150: Curb thickness | B150: caustic_st_curb_thick | C150: =IF(num_caustic_tanks=0,0,MIN(sec_cont_max_thick,caustic_st_curb_height)) -> 0.7670737076 | D150: feet
A151: Curb length (long side) | B151: caustic_st_curb_len_long | C151: =IF(num_caustic_tanks=0,0,num_caustic_tanks*ct_diam+2*space_ct+(num_caustic_tanks-1)*space_ct+2*caustic_st_curb_thick) -> 5.034147415 | D151: feet
A152: Curb length (short side) | B152: caustic_st_curb_len_short | C152: =IF(num_caustic_tanks=0,0,ct_diam+2*space_ct) -> 3.5 | D152: feet
A153: Curb concrete volume | B153: caustic_st_curb_concrete | C153: =IF(num_caustic_tanks=0,0,ROUNDUP((caustic_st_curb_len_long*2+caustic_st_curb_len_short*2)*caustic_st_curb_height*caustic_st_curb_thick/27,0)) -> 1 | D153: cubic yards | E153: 27 converts cubic feet to cubic yards
A154: Chemical resistant coating required | B154: caustic_st_coating_gal | C154: =IF(num_caustic_tanks=0,0,ROUNDUP((storage_tank_fp_caustic+2*(caustic_st_curb_len_long-2*caustic_st_curb_thick)*caustic_st_curb_height+2*caustic_st_curb_len_short*caustic_st_curb_height)/sec_cont_coating_cvg,0)) -> 1 | D154: gallons | E154: Covers total footprint plus inside surface and top of curbs
A156: Secondary Containment for Acid Day Tanks
A157: Minimum volume required | B157: acid_dt_cont_volume | C157: =ROUNDUP(MAX(day_tanks_acid*day_tank_vol_acid*sec_cont_pct_of_total,day_tank_vol_acid*sec_cont_pct_of_largest)/7.48,0) -> 1 | D157: cubic feet | E157: 7.48 converts gallons to cubic feet
A158: Footprint available | B158: acid_dt_cont_fp | C158: =IF(day_tanks_acid=0,0,day_tank_fp_acid-day_tanks_acid*PI()*(dt_diam_acid/2)^2) -> 8.214601837 | D158: square feet | E158: Total footprint minus displacement by tanks themselves
A159: Curb height required | B159: acid_dt_curb_height | C159: =IF(day_tanks_acid=0,0,acid_dt_cont_volume/acid_dt_cont_fp+sec_cont_freeboard/12) -> 0.6217344456 | D159: feet
A160: Curb thickness | B160: acid_dt_curb_thick | C160: =IF(day_tanks_acid=0,0,MIN(sec_cont_max_thick,acid_dt_curb_height)) -> 0.6217344456 | D160: feet
A161: Curb length (long side) | B161: acid_dt_curb_len_long | C161: =IF(day_tanks_acid=0,0,day_tanks_acid*dt_diam_acid+2*space_dt_acid+(day_tanks_acid-1)*space_dt_acid+2*acid_dt_curb_thick) -> 4.243468891 | D161: feet
A162: Curb length (short side) | B162: acid_dt_curb_len_short | C162: =IF(day_tanks_acid=0,0,dt_diam_acid+2*space_dt_acid) -> 3 | D162: feet
A163: Curb concrete volume | B163: acid_dt_curb_concrete | C163: =IF(day_tanks_acid=0,0,ROUNDUP((acid_dt_curb_len_long*2+acid_dt_curb_len_short*2)*acid_dt_curb_height*acid_dt_curb_thick/27,0)) -> 1 | D163: cubic yards | E163: 27 converts cubic feet to cubic yards
A164: Chemical resistant coating required | B164: acid_dt_coating_gal | C164: =IF(day_tanks_acid=0,0,ROUNDUP((day_tank_fp_acid+2*(acid_dt_curb_len_long-2*acid_dt_curb_thick)*acid_dt_curb_height+2*acid_dt_curb_len_short*acid_dt_curb_height)/sec_cont_coating_cvg,0)) -> 1 | D164: gallons | E164: Covers total footprint plus inside surface and top of curbs
A166: Secondary Containment for Caustic Day Tanks
A167: Minimum volume required | B167: caustic_dt_cont_volume | C167: =ROUNDUP(MAX(day_tanks_caustic*day_tank_vol_caustic*sec_cont_pct_of_total,day_tank_vol_caustic*sec_cont_pct_of_largest)/7.48,0) -> 0 | D167: cubic feet | E167: 7.48 converts gallons to cubic feet
A168: Footprint available | B168: caustic_dt_cont_fp | C168: =IF(day_tanks_caustic=0,0,day_tank_fp_caustic-day_tanks_caustic*PI()*(dt_diam_caustic/2)^2) -> 0 | D168: square feet | E168: Total footprint minus displacement by tanks themselves
A169: Curb height required | B169: caustic_dt_curb_height | C169: =IF(day_tanks_caustic=0,0,caustic_dt_cont_volume/caustic_dt_cont_fp+sec_cont_freeboard/12) -> 0 | D169: feet
A170: Curb thickness | B170: caustic_dt_curb_thick | C170: =IF(day_tanks_caustic=0,0,MIN(sec_cont_max_thick,caustic_dt_curb_height)) -> 0 | D170: feet
A171: Curb length (long side) | B171: caustic_dt_curb_len_long | C171: =IF(day_tanks_caustic=0,0,day_tanks_caustic*dt_diam_caustic+2*space_dt_caustic+(day_tanks_caustic-1)*space_dt_caustic+2*caustic_dt_curb_thick) -> 0 | D171: feet
A172: Curb length (short side) | B172: caustic_dt_curb_len_short | C172: =IF(day_tanks_caustic=0,0,dt_diam_caustic+2*space_dt_caustic) -> 0 | D172: feet
A173: Curb concrete volume | B173: caustic_dt_curb_concrete | C173: =IF(day_tanks_caustic=0,0,ROUNDUP((caustic_dt_curb_len_long*2+caustic_dt_curb_len_short*2)*caustic_dt_curb_height*caustic_dt_curb_thick/27,0)) -> 0 | D173: cubic yards | E173: 27 converts cubic feet to cubic yards
A174: Chemical resistant coating required | B174: caustic_dt_coating_gal | C174: =IF(day_tanks_caustic=0,0,ROUNDUP((day_tank_fp_caustic+2*(caustic_dt_curb_len_long-2*caustic_dt_curb_thick)*caustic_dt_curb_height+2*caustic_dt_curb_len_short*caustic_dt_curb_height)/sec_cont_coating_cvg,0)) -> 0 | D174: gallons | E174: Covers total footprint plus inside surface and top of curbs
A176: Hydrochloric Acid Purchasing
A177: Quantity required for large quantity purchase | C177: =VLOOKUP("Hydrochloric Acid - Large Qty",chem_break_table_cl,2,FALSE) -> 17710 | D177: lbs | E177: #N/A indicates that price data do not depend on volume purchased.
A178: Quantity required for mid quantity purchase | C178: =VLOOKUP("Hydrochloric Acid - Mid Qty",chem_break_table_cl,2,FALSE) -> 1771 | D178: lbs | E178: #N/A indicates that price data do not depend on volume purchased.
A179: Quantity required for small quantity purchase | C179: =VLOOKUP("Hydrochloric Acid - Small Qty",chem_break_table_cl,2,FALSE) -> 0 | D179: lbs | E179: #N/A indicates that price data do not depend on volume purchased.
A180: Purchase Type | B180: HCl_purchase | C180: =IF(AND(ISNA(C177),ISNA(C178),ISNA(C179)),"",IF(acid_storage_lbs_total>=C177," - Large Qty",IF(acid_storage_lbs_total>=C178," - Mid Qty"," - Small Qty"))) -> - Small Qty | E180: Returns descriptive term based on volume of each purchase for use in determining pricing. Blank indicates that price data do not depend on volume purchased.
A182: Sulfuric Acid Purchasing
A183: Quantity required for large quantity purchase | C183: =VLOOKUP("Sulfuric Acid - Large Qty",chem_break_table_cl,2,FALSE) -> 28427.724 | D183: lbs | E183: #N/A indicates that price data do not depend on volume purchased.
A184: Quantity required for mid quantity purchase | C184: =VLOOKUP("Sulfuric Acid - Mid Qty",chem_break_table_cl,2,FALSE) -> 28427.724 | D184: lbs | E184: #N/A indicates that price data do not depend on volume purchased.
A185: Quantity required for small quantity purchase | C185: =VLOOKUP("Sulfuric Acid - Small Qty",chem_break_table_cl,2,FALSE) -> 0 | D185: lbs | E185: #N/A indicates that price data do not depend on volume purchased.
A186: Purchase Type | B186: H2SO4_purchase | C186: =IF(AND(ISNA(C183),ISNA(C184),ISNA(C185)),"",IF(acid_storage_lbs_total>=C183," - Large Qty",IF(acid_storage_lbs_total>=C184," - Mid Qty"," - Small Qty"))) -> - Small Qty | E186: Returns descriptive term based on volume of each purchase for use in determining pricing. Blank indicates that price data do not depend on volume purchased.
A188: Sodium Hydroxide Purchasing
A189: Quantity required for large quantity purchase | C189: =VLOOKUP("Sodium Hydroxide "&TEXT(caustic_strength,"0%")&" - Large Qty",chem_break_table_cl,2,FALSE) -> 25437 | D189: lbs | E189: #N/A indicates that price data do not depend on volume purchased.
A190: Quantity required for mid quantity purchase | C190: =VLOOKUP("Sodium Hydroxide "&TEXT(caustic_strength,"0%")&" - Mid Qty",chem_break_table_cl,2,FALSE) -> 5000 | D190: lbs | E190: #N/A indicates that price data do not depend on volume purchased.
A191: Quantity required for small quantity purchase | C191: =VLOOKUP("Sodium Hydroxide "&TEXT(caustic_strength,"0%")&" - Small Qty",chem_break_table_cl,2,FALSE) -> 0 | D191: lbs | E191: #N/A indicates that price data do not depend on volume purchased.
A192: Purchase Type | B192: NaOH_purchase | C192: =IF(AND(ISNA(C189),ISNA(C190),ISNA(C191)),"",IF(NaOH_storage_lbs_total>=C189," - Large Qty",IF(NaOH_storage_lbs_total>=C190," - Mid Qty"," - Small Qty"))) -> - Small Qty | E192: Returns descriptive term based on volume of each purchase for use in determining pricing. Blank indicates that price data do not depend on volume purchased.

Sheet Pumps Pipe Structure
A1: Pumps, Piping, and Structure Calculations
A3: Calculation | B3: Range Name | C3: Value | D3: Units | E3: Guidance
A4: From Inputs
A5: Media transfer method | B5: transfer_method | C5: =IF(transfer_method_I="","",IF(transfer_method_I="slurry pumps",1,IF(transfer_method_I="eductors",2,3))) -> 3 | D5: <-- 1 for slurry pumps, 2 for eductors, 3 for manual trabsfer
A7: Pump Design
A8: Flow of each booster pump | B8: pump_rating | C8: =IF(lines_pump_I="",IF(ss_cat2=1,0,MIN(MAX(average_flow_rate+bp_flow_rate*average_flow_rate/design_flow_rate,(design_flow_rate+bp_flow_rate)/2)*(1+pump_safety_factor),max_pump_size)),IF(lines_pump_I=0,0,(design_flow_rate+bp_flow_rate)*(1+pump_safety_factor)/lines_pump_I)) -> 0 | D8: gpm | E8: Includes safety factor
A9: Maximum pump size | B9: max_pump_size | C9: =VLOOKUP(10^6,pump_cost_cl,1)-1 -> 10000 | D9: gpm | E9: The largest pump size for which costs are available. Applies to booster pumps, backwash pumps, and acid and caustic pumps for regeneration (not chemical metering pumps)
A10: Number of booster pumps | B10: booster_pumps | C10: =IF(pump_rating=0,0,ROUNDUP((design_flow_rate+bp_flow_rate)*(1+pump_safety_factor)/pump_rating,0)) -> 0 | D10: units | E10: Operating pumps
A11: Total booster pumps | B11: total_booster_pumps | C11: =IF(pump_rating=0,0,booster_pumps+NRD_pumps) -> 0 | D11: units | E11: Includes redundancy
A13: Backwash pumping flow needed | B13: back_pump_flow_total | C13: =MAX(IF(throwaway=1,0,finalrinse*(1+pump_safety_factor)),water_flush*(1+pump_safety_factor)) -> 61.25 | D13: gpm | E13: Includes safety factor, must be sized for greater of backwash and final rinse if regeneration is used
A14: Number of backwash pumps | B14: backwash_pumps | C14: =IF(no_backwash=1,0,ROUNDUP(back_pump_flow_total/max_pump_size,0)+NRD_back_pumps) -> 0 | D14: pumps | E14: Multiple pumps used if total backwash flow is very high, includes redundant pumps
A15: Backwash pump rating | B15: back_pump_rating | C15: =IF(no_backwash=1,0,back_pump_flow_total/(backwash_pumps-NRD_back_pumps)) -> 0 | D15: gpm
A17: Maximum chemical pump size | B17: max_chem_pump_size | C17: =VLOOKUP(10^6,chem_pump_cost_cl,1)-0.01 -> 12180 | D17: gph | E17: The largest size for which costs are available. Applies to chemical pumps for regeneration.
A18: Number of acid pumps for regeneration | B18: acid_pumps | C18: =IF(OR(throwaway=1,regen_calc_type="NA"),0,ROUNDUP(acid_flow_conc*(1+pump_safety_factor)*60/max_chem_pump_size,0)+NRD_acid_pumps) -> 0 | D18: pumps | E18: Multiple pumps used if total flow is very high, includes redundant pumps
A19: Acid regen pump rating | B19: acid_pump_rating | C19: =IF(OR(throwaway=1,regen_calc_type="NA"),0,acid_flow_conc*(1+pump_safety_factor)*60/(acid_pumps-NRD_acid_pumps)) -> 0 | D19: gph | E19: Includes safety factor
A20: Number of caustic pumps for regeneration | B20: caustic_pumps | C20: =IF(OR(throwaway=1,regen_calc_type="NA"),0,ROUNDUP(caustic_flow_conc*(1+pump_safety_factor)*60/max_chem_pump_size,0)+NRD_caustic_pumps) -> 0 | D20: pumps | E20: Multiple pumps used if total flow is very high, includes redundant pumps
A21: Caustic regen pump rating | B21: caustic_pump_rating | C21: =IF(OR(throwaway=1,regen_calc_type="NA"),0,caustic_flow_conc*(1+pump_safety_factor)*60/(caustic_pumps-NRD_caustic_pumps)) -> 0 | D21: gph | E21: Includes safety factor
A23: Total acid metering flow needed | B23: am_pump_flow_total | C23: =IF(des_acid_flow=0,0,MAX(min_chem_flow,des_acid_flow*(1+pump_safety_factor))) -> 0.2389118782 | D23: gph | E23: Pumping for pH adjustment, includes safety factor
A24: Maximum chemical metering pump size | B24: max_cm_pump_size | C24: =MAX(VLOOKUP(10^6,ss_empump_cost_cl,1)-0.01,VLOOKUP(10^6,ss_mmpump_cost_cl,1)-0.01,VLOOKUP(10^6,pvc_empump_cost_cl,1)-0.01,VLOOKUP(10^6,pvc_mmpump_cost_cl,1)-0.01) -> 132 | D24: gph | E24: The largest size for which costs are available. Applies to caustic metering pumps for pH adjustment and residuals chemical metering pumps.
A25: Maximum chemical metering pump size excluding stainless steel | B25: max_cm_pump_size_noSS | C25: =MAX(VLOOKUP(10^6,pvc_empump_cost_cl,1)-0.01,VLOOKUP(10^6,pvc_mmpump_cost_cl,1)-0.01) -> 132 | D25: gph | E25: The largest size for which costs are available not including stainless, which is not compatible with hydrochloric acid and sulfuric acid. Applies to acid pumps for pH adjustment.
A26: Number of acid metering pumps | B26: pump_chem_acid | C26: =IF(pH_adj="no",0,ROUNDUP(am_pump_flow_total/max_cm_pump_size_noSS,0)+NRD_pump_chem_acid) -> 2 | D26: pumps | E26: Multiple pumps used if total flow is very high, includes redundant pumps
A27: Acid metering pump rating | B27: am_pump_rating | C27: =IF(pH_adj="no",0,am_pump_flow_total/(pump_chem_acid-NRD_pump_chem_acid)) -> 0.2389118782 | D27: gph
A28: Total caustic metering flow needed | B28: cm_pump_flow_total | C28: =IF(des_NaOH_flow=0,0,MAX(min_chem_flow,des_NaOH_flow*(1+pump_safety_factor))) -> 0.1457104441 | D28: gph | E28: Pumping for pH adjustment, includes safety factor
A29: Number of caustic metering pumps | B29: pump_chem_caustic | C29: =IF(cm_pump_flow_total=0,0,ROUNDUP(cm_pump_flow_total/max_cm_pump_size,0)+NRD_pump_chem_caustic) -> 2 | D29: pumps | E29: Multiple pumps used if total flow is very high, includes redundant pumps
A30: Caustic metering pump rating | B30: cm_pump_rating | C30: =IF(corr_cont="no",0,cm_pump_flow_total/(pump_chem_caustic-NRD_pump_chem_caustic)) -> 0.1457104441 | D30: gph
A32: Media transfer rate required | B32: transfer_rate | C32: =media_volume*media_density/transfer_time -> 177.9417714 | D32: lbs/hr
A33: Media transfer rate in gallons | B33: transfer_rate_gal | C33: =transfer_rate/(media_density/7.48*60) -> 0.44366815 | D33: gpm
A34: Maximum eductor size | B34: max_eductor_size | C34: =VLOOKUP(10^6,eductor_size_table_cl,1) -> 53.5 | D34: gpm | E34: The largest size for which costs are available.
A35: Number of eductors | B35: eductors | C35: =IF(transfer_method<>2,0,ROUNDUP(transfer_rate_gal/max_eductor_size,0)+NRD_eductors) -> 0 | D35: units
A36: Effective transfer rate | B36: eff_transfer_rate | C36: =IF(eductors=0,0,transfer_rate_gal/(eductors-NRD_eductors)) -> 0 | D36: gpm
A37: Eductor size | B37: eductor_size | C37: =IF(transfer_method=2,VLOOKUP(eff_transfer_rate,eductor_size_table_cl,2),"NA") -> NA | D37: inches
A39: Piping Design
A40: Influent and treated water pipe length | B40: in_out_pipe_length | C40: =in_out_pipe_mult*facil_length -> 40 | D40: linear feet
A41: Influent and treated water pipe flow | B41: in_out_pipe_flow | C41: =design_flow_rate -> 20.83333333 | D41: gpm
A42: Influent and treated water piping diameter | B42: in_out_pipe_diam | C42: =VLOOKUP(in_out_pipe_flow,pipe_size_table_cl,2) -> 1.5 | D42: inches
A43: Process piping length | B43: proc_pipe_length | C43: =proc_pipe_mult*facil_length -> 40 | D43: linear feet
A44: Process pipe flow | B44: proc_pipe_flow | C44: =flow_per_vessel -> 21.2960712 | D44: gpm
A45: Process pipe diameter | B45: proc_pipe_diam | C45: =VLOOKUP(proc_pipe_flow,pipe_size_table_cl,2) -> 2 | D45: inches
A46: Backwash piping length | B46: back_pipe_length | C46: =back_pipe_mult*facil_length -> 50 | D46: linear feet
A47: Backwash pipe flow | B47: back_pipe_flow | C47: =MAX(water_flush,IF(throwaway=1,0,MAX(finalrinse,caustic_flow,acid_flow))) -> 49 | D47: gpm
A48: Backwash pipe diameter | B48: back_pipe_diam | C48: =VLOOKUP(back_pipe_flow,pipe_size_table_cl,2) -> 2.5 | D48: inches
A49: Caustic piping length | B49: caust_pipe_length | C49: =IF(NaOH_storage_total=0,0,chem_pipe_mult*facil_length) -> 20 | D49: linear feet
A50: Caustic pipe flow | B50: caustic_pipe_flow | C50: =IF(corr_cont="yes",IF(throwaway<>1,MAX(caustic_flow_conc,des_NaOH_flow/60),des_NaOH_flow/60),IF(throwaway<>1,caustic_flow_conc,0)) -> 0.001942805922 | D50: gpm
A51: Caustic pipe diameter | B51: caustic_pipe_diam | C51: =IF(caustic_pipe_flow=0,0,VLOOKUP(caustic_pipe_flow,pipe_size_table_cl,2)) -> 0.5 | D51: inches
A52: Acid piping length | B52: acid_pipe_length | C52: =IF(acid_storage_total=0,0,chem_pipe_mult*facil_length) -> 20 | D52: linear feet
A53: Acid pipe flow | B53: acid_pipe_flow | C53: =IF(pH_adj="yes",IF(throwaway<>1,MAX(acid_flow_conc,des_acid_flow/60),des_acid_flow/60),IF(throwaway<>1,acid_flow_conc,0)) -> 0.003185491709 | D53: gpm
A54: Acid pipe diameter | B54: acid_pipe_diam | C54: =IF(acid_pipe_flow=0,0,VLOOKUP(acid_pipe_flow,pipe_size_table_cl,2)) -> 0.5 | D54: inches
A55: Ferric chloride addition pipe length | B55: coag_pipe_length | C55: =IF(coag_pipe_flow=0,0,chem_pipe_mult*facil_length) -> 0 | D55: linear feet
A56: Ferric chloride pipe flow | B56: coag_pipe_flow | C56: =MAX(coag_rate,coag_rate_n)/60 -> 0 | D56: gpm
A57: Ferric chloride pipe diameter | B57: coag_pipe_diam | C57: =IF(coag_pipe_flow=0,0,VLOOKUP(coag_pipe_flow,pipe_size_table_cl,2)) -> 0 | D57: inches
A58: Polymer addition pipe length | B58: polymer_pipe_length | C58: =IF(polymer_day=0,0,chem_pipe_mult*facil_length) -> 0 | D58: linear feet
A59: Polymer pipe flow | B59: polymer_pipe_flow | C59: =polymer_rate/60 -> 0 | D59: gpm
A60: Polymer pipe diameter | B60: polymer_pipe_diam | C60: =IF(polymer_day=0,0,VLOOKUP(polymer_pipe_flow,pipe_size_table_cl,2)) -> 0 | D60: inches
A61: Bypass piping length | B61: bp_pipe_length | C61: =IF(bp_pct>0,bp_pipe_mult*facil_length,0) -> 0 | D61: linear feet
A62: Bypass pipe diameter | B62: bp_pipe_diam | C62: =IF(bp_pct>0,VLOOKUP(bp_flow_rate,pipe_size_table_cl,2),0) -> 0 | D62: inches
A64: In-line mixer size | B64: mixer_size | C64: =in_out_pipe_diam -> 1.5 | D64: inches
A65: Maximum inline mixer size | B65: max_inmix | C65: =VLOOKUP(10^6,in_mix_cost_cl,1)-0.1 -> 42 | D65: in. diam | E65: Beyond this diameter, mixing is not needed. Also, the largest size for which costs are available.
A66: Number of inline mixers required | B66: tot_in_mix | C66: =IF(mixer_size>max_inmix,0,IF(pH_adj="yes",num_in_mix,0)+IF(corr_cont="yes",num_in_mix_post,0)) -> 2 | D66: units | E66: Needed for small systems with pH adjustment only
A68: Building Structure
A69: Backwash tank diameter | B69: bt_diam | C69: =ROUNDUP(2*(MAX((2*back_tank_vol/7.48/PI())^(1/3),(4*back_tank_vol/7.48/PI()/(Building_height-ceiling_clearance))^(1/2))),0)/2 -> 0 | D69: feet
A70: Neutralization tank diameter | B70: nt_diam | C70: =ROUNDUP((2*(neut_tank_vol/7.48)/PI())^(1/3),0) -> 0 | D70: feet | E70: Neutralization tank is outside the building, so building height is not a factor in this calculation
A71: Acid tank diameter | B71: at_diam | C71: =ROUNDUP(2*(MAX((2*acid_tank_vol/7.48/PI())^(1/3),(4*acid_tank_vol/7.48/PI()/(Building_height-ceiling_clearance))^(1/2))),0)/2 -> 1.5 | D71: feet
A72: Day tank diameter - acid | B72: dt_diam_acid | C72: =ROUNDUP(2*(MAX((2*day_tank_vol_acid/7.48/PI())^(1/3),(4*day_tank_vol_acid/7.48/PI()/(Building_height-ceiling_clearance))^(1/2))),0)/2 -> 1 | D72: feet
A73: Caustic tank diameter | B73: ct_diam | C73: =ROUNDUP(2*(MAX((2*caustic_tank_vol/7.48/PI())^(1/3),(4*caustic_tank_vol/7.48/PI()/(Building_height-ceiling_clearance))^(1/2))),0)/2 -> 1.5 | D73: feet
A74: Day tank diameter - caustic | B74: dt_diam_caustic | C74: =ROUNDUP(2*(MAX((2*day_tank_vol_caustic/7.48/PI())^(1/3),(4*day_tank_vol_caustic/7.48/PI()/(Building_height-ceiling_clearance))^(1/2))),0)/2 -> 0 | D74: feet
A75: Ferric chloride storage tank diameter | B75: coag_st_diam | C75: =ROUNDUP(2*(MAX((2*coag_tank_vol/7.48/PI())^(1/3),(4*coag_tank_vol/7.48/PI()/(Building_height-ceiling_clearance))^(1/2))),0)/2 -> 0 | D75: feet
A76: Polymer storage tank diameter | B76: polymer_st_diam | C76: =ROUNDUP(2*(MAX((2*polymer_tank_vol/7.48/PI())^(1/3),(4*polymer_tank_vol/7.48/PI()/(Building_height-ceiling_clearance))^(1/2))),0)/2 -> 0 | D76: feet
A77: Residuals holding tank diameter | B77: ht_diam | C77: =ROUNDUP(2*(MAX((2*htank_vol/7.48/PI())^(1/3),(4*htank_vol/7.48/PI()/(Building_height-ceiling_clearance))^(1/2))),0)/2 -> 5 | D77: feet
A78: Maximum access space per vessel or tank | B78: max_space_vessels | C78: =IF(ss_cat2=1,max_space_vessels_pre,max_space_vessels_cust) -> 1 | D78: feet
A79: Access space per vessel | B79: space_vessels | C79: =IF(comm_diam>max_space_vessels,max_space_vessels,comm_diam) -> 1 | D79: feet
A80: Access space per backwash tank | B80: space_bt | C80: =IF(bt_diam>max_space_vessels,max_space_vessels,bt_diam) -> 0 | D80: feet
A81: Access space per neutralization tank | B81: space_nt | C81: =IF(nt_diam>max_space_vessels,max_space_vessels,nt_diam) -> 0 | D81: feet
A82: Access space per acid tank | B82: space_at | C82: =IF(at_diam>max_space_vessels,max_space_vessels,at_diam) -> 1 | D82: feet
A83: Access space per day tank - acid | B83: space_dt_acid | C83: =IF(dt_diam_acid>max_space_vessels,max_space_vessels,dt_diam_acid) -> 1 | D83: feet
A84: Access space per caustic tank | B84: space_ct | C84: =IF(ct_diam>max_space_vessels,max_space_vessels,ct_diam) -> 1 | D84: feet
A85: Access space per day tank - caustic | B85: space_dt_caustic | C85: =IF(dt_diam_caustic>max_space_vessels,max_space_vessels,dt_diam_caustic) -> 0 | D85: feet
A86: Access space per ferric chloride storage tank | B86: space_coag_st | C86: =IF(coag_st_diam>max_space_vessels,max_space_vessels,coag_st_diam) -> 0 | D86: feet
A87: Access space per polymer storage tank | B87: space_polymer_st | C87: =IF(polymer_st_diam>max_space_vessels,max_space_vessels,polymer_st_diam) -> 0 | D87: feet
A88: Access space per residuals holding tank | B88: space_ht | C88: =IF(ht_diam>max_space_vessels,max_space_vessels,ht_diam) -> 1 | D88: feet
A89: Access space per pump | B89: space_pumps | C89: =IF(ss_cat2=1,space_pumps_pre,space_pumps_cust) -> 0 | D89: feet
A90: Footprint for vessels (large system assumptions) | C90: =IF(tank_geom=1,ROUNDUP(((comm_diam+2*space_vessels)^2+(final_num_tanks-1)*(comm_diam+2*space_vessels)*(comm_diam+space_vessels)),0),IF(tank_geom=2,ROUNDUP((comm_diam+2*space_vessels)*(comm_height_length+2*space_vessels)+(final_num_tanks-1)*(comm_height_length+2*space_vessels)*(comm_diam+space_vessels),0))) -> 36 | D90: square feet
A91: Footprint for vessels (skid mounted small system) | C91: =IF(tank_geom=1,ROUNDUP(((comm_diam+2*space_vessels)^2+(final_num_tanks-1)*(comm_diam+2*space_vessels)*(comm_diam+space_vessels/2)),0),IF(tank_geom=2,ROUNDUP((comm_diam+2*space_vessels)*(comm_height_length+2*space_vessels)+(final_num_tanks-1)*(comm_height_length+2*space_vessels)*(comm_diam+space_vessels/2),0))) -> 34 | D91: square feet | E91: Space between skid mounted vessels is reduced, outside access space remains the same
A92: Footprints for vessels and media transfer equipment | B92: vessel_fp | C92: =IF(ss_cat2=1,C91,C90)+IF(transfer_method=1,ROUNDUP(IF(transfer_rate<40000,99.152*transfer_rate^0.0434,0.8761*transfer_rate^0.49),0),0) -> 34 | D92: square feet
A93: Footprint for backwash tank | B93: back_tank_fp | C93: =IF(num_back_tanks=0,0,ROUNDUP((bt_diam+2*space_bt)^2+(num_back_tanks-1)*(bt_diam+2*space_bt)*(bt_diam+space_bt),0)) -> 0 | D93: square feet
A94: Footprint for neutralization tank | B94: ntank_fp | C94: =IF(num_neut_tanks=0,0,ROUNDUP((nt_diam+2*space_nt)^2+(num_neut_tanks-1)*(nt_diam+2*space_nt)*(nt_diam+space_nt),0)) -> 0 | D94: square feet | E94: Located outside
A95: Holding tank footprint | B95: htank_fp | C95: =IF(OR(htanks=0,res_holding<>"tanks"),0,ROUNDUP((ht_diam+2*space_ht)^2+(htanks-1)*(ht_diam+2*space_ht)*(ht_diam+space_ht),0)) -> 49 | D95: square feet
A96: Residuals holding basin footprint | B96: hbasin_fp | C96: =IF(res_holding<>"basins",0,ROUNDUP(hbasins*hbasin_length*hbasin_width*2,0)) -> 0 | D96: square feet
A97: Footprint for booster pumps | C97: =IF(total_booster_pumps=0,0,ROUNDUP((VLOOKUP(pump_rating,pump_dim_table_cl,3)+space_pumps)*(VLOOKUP(pump_rating,pump_dim_table_cl,4)+2*space_pumps)+(total_booster_pumps-1)*(VLOOKUP(pump_rating,pump_dim_table_cl,3)+space_pumps)*(VLOOKUP(pump_rating,pump_dim_table_cl,4)+space_pumps),0)) -> 0 | D97: square feet
A98: Footprint for backwash pumps | C98: =IF(backwash_pumps=0,0,ROUNDUP((VLOOKUP(back_pump_rating,pump_dim_table_cl,3)+space_pumps)*(VLOOKUP(back_pump_rating,pump_dim_table_cl,4)+2*space_pumps)+(backwash_pumps-1)*(VLOOKUP(back_pump_rating,pump_dim_table_cl,3)+space_pumps)*(VLOOKUP(back_pump_rating,pump_dim_table_cl,4)+space_pumps),0)) -> 0 | D98: square feet
A99: Footprint for acid pumps | C99: =IF(acid_pumps=0,0,ROUNDUP((VLOOKUP(acid_pump_rating/60,pump_dim_table_cl,3)+space_pumps)*(VLOOKUP(acid_pump_rating/60,pump_dim_table_cl,4)+2*space_pumps)+(acid_pumps-1)*(VLOOKUP(acid_pump_rating/60,pump_dim_table_cl,3)+space_pumps)*(VLOOKUP(acid_pump_rating/60,pump_dim_table_cl,4)+space_pumps),0)) -> 0 | D99: square feet
A100: Footprint for caustic pumps | C100: =IF(caustic_pumps=0,0,ROUNDUP((VLOOKUP(caustic_pump_rating/60,pump_dim_table_cl,3)+space_pumps)*(VLOOKUP(caustic_pump_rating/60,pump_dim_table_cl,4)+2*space_pumps)+(caustic_pumps-1)*(VLOOKUP(caustic_pump_rating/60,pump_dim_table_cl,3)+space_pumps)*(VLOOKUP(caustic_pump_rating/60,pump_dim_table_cl,4)+space_pumps),0)) -> 0 | D100: square feet
A101: Holding tank pump footprint | C101: =IF(res_pumps=0,0,ROUNDUP((VLOOKUP(res_pump_rating,pump_dim_table_cl,3)+space_pumps)*(VLOOKUP(res_pump_rating,pump_dim_table_cl,4)+2*space_pumps)+(res_pumps-1)*(VLOOKUP(res_pump_rating,pump_dim_table_cl,3)+space_pumps)*(VLOOKUP(res_pump_rating,pump_dim_table_cl,4)+space_pumps),0)) -> 13 | D101: square feet
A102: Neutralization tank pump footprint | C102: =IF(res_pumps_n=0,0,ROUNDUP((VLOOKUP(res_pump_rating_n,pump_dim_table_cl,3)+space_pumps)*(VLOOKUP(res_pump_rating_n,pump_dim_table_cl,4)+2*space_pumps)+(res_pumps_n-1)*(VLOOKUP(res_pump_rating_n,pump_dim_table_cl,3)+space_pumps)*(VLOOKUP(res_pump_rating_n,pump_dim_table_cl,4)+space_pumps),0)) -> 0 | D102: square feet
A103: Residual solids transfer equipment footprint | C103: =IF(res_transfer_method=1,ROUNDUP(IF(res_transfer_rate<40000,99.152*res_transfer_rate^0.0434,0.8761*res_transfer_rate^0.49),0)+ROUNDUP(IF(n_res_transfer_rate<40000,99.152*n_res_transfer_rate^0.0434,0.8761*n_res_transfer_rate^0.49),0),0) -> 0 | D103: square feet | E103: If slurry pumps are used
A104: Total footprint for pumps | B104: pump_fp | C104: =SUM(C97:C103) -> 13 | D104: square feet
A105: Acid storage tank footprint | B105: storage_tank_fp_acid | C105: =IF(num_acid_tanks=0,0,ROUNDUP((at_diam+2*space_at)^2+(num_acid_tanks-1)*(at_diam+2*space_at)*(at_diam+space_at),0)) -> 13 | D105: square feet
A106: Caustic storage tank footprint | B106: storage_tank_fp_caustic | C106: =IF(num_caustic_tanks=0,0,ROUNDUP((ct_diam+2*space_ct)^2+(num_caustic_tanks-1)*(ct_diam+2*space_ct)*(ct_diam+space_ct),0)) -> 13 | D106: square feet
A107: Acid day tank footprint | B107: day_tank_fp_acid | C107: =ROUNDUP((dt_diam_acid+2*space_dt_acid)^2+(day_tanks_acid-1)*(dt_diam_acid+2*space_dt_acid)*(dt_diam_acid+space_dt_acid),0) -> 9 | D107: square feet
A108: Caustic day tank footprint | B108: day_tank_fp_caustic | C108: =ROUNDUP((dt_diam_caustic+2*space_dt_caustic)^2+(day_tanks_caustic-1)*(dt_diam_caustic+2*space_dt_caustic)*(dt_diam_caustic+space_dt_caustic),0) -> 0 | D108: square feet
A109: Ferric chloride storage tank footprint | B109: coag_fp | C109: =IF(coag_tanks=0,0,ROUNDUP((coag_st_diam+2*space_coag_st)^2+(coag_tanks-1)*(coag_st_diam+2*space_coag_st)*(coag_st_diam+space_coag_st),0)) -> 0 | D109: square feet
A110: Polymer storage tank footprint | B110: polymer_fp | C110: =IF(polymer_tanks=0,0,ROUNDUP((polymer_st_diam+2*space_polymer_st)^2+(polymer_tanks-1)*(polymer_st_diam+2*space_polymer_st)*(polymer_st_diam+space_polymer_st),0)) -> 0 | D110: square feet
A111: Total footprint for chemical storage | B111: chem_store_fp | C111: =SUM(C105:C110) -> 35 | D111: square feet
A112: Office space | B112: office_fp | C112: =VLOOKUP(design_flow,labor_table_cl,3)*IF(ss_cat2=1,space_office_small,space_office) -> 0 | D112: square feet
A113: Exact building footprint required | B113: fp_required | C113: =vessel_fp+back_tank_fp+pump_fp+chem_store_fp+office_fp+htank_fp+hbasin_fp -> 131 | D113: square feet
A114: Footprint of building 1 | B114: build1_fp | C114: =ROUNDUP(IF(fp_required<add_2nd_building,fp_required,vessel_fp),-1) -> 140 | D114: square feet | E114: If total footprint is large, building 1 contains vessels only. If total footprint is small, building 1 contains all equipment.
A115: Footprint of building 2 | B115: build2_fp | C115: =ROUNDUP(IF(fp_required<add_2nd_building,0,back_tank_fp+pump_fp+chem_store_fp+office_fp+htank_fp+hbasin_fp),-1) -> 0 | D115: square feet | E115: If total footprint is large, a second building is used for pumps, backwash, and chemical storage
A116: Total footprint | B116: total_fp | C116: =build1_fp+build2_fp -> 140 | D116: square feet
A117: Concrete Class A for vessel and pumps padding | B117: concrete | C117: =ROUNDUP((fp_required+ntank_fp-office_fp)*IF(ss_cat2=1,pad_thick_small,pad_thick)/27,0) -> 2 | D117: cubic yards
A118: Facility dimension assumed square | B118: facil_length | C118: =ROUNDUP(total_fp^0.5,-1) -> 20 | D118: feet
A119: Additional footprint for evaporation pond | B119: ep_fp | C119: =IF(ep_cells=0,0,ROUNDUP((ep_cell_side+2*non_fire_buffer)^2+(ep_cells-1)*(ep_cell_side+2*non_fire_buffer)*(ep_cell_side+non_fire_buffer),0)) -> 0 | D119: square feet
A120: Land acquisition required | B120: land_required | C120: =ROUNDUP(((build1_fp)^0.5+(2*non_fire_buffer))*((build1_fp)^0.5+(non_fire_buffer+fire_buffer))+IF(build2_fp=0,0,((build2_fp)^0.5+(2*non_fire_buffer))*((build2_fp)^0.5+(non_fire_buffer+fire_buffer)))+ntank_fp+sept_fp+ep_fp+solids_pad_area,-2)/43560 -> 0.04591368228 | D120: acres
A121: Land Cost per acre | B121: land_cost_cl | C121: =VLOOKUP(design_flow,land_cost_cl,3) -> 21165.71325 | D121: $/acre

Sheet Instrumentation and Control
A1: Instrumentation and Control Calculations
A3: Calculation | B3: Range Name | C3: Value | D3: Units | E3: Guidance
A4: From Inputs
A5: Component level | B5: component_level | C5: =IF(component_level_I="high cost",2,IF(component_level_I="mid cost",1,"")) ->  | D5: blank = low cost, 1 = mid cost, 2 = high cost
A6: Manual system controls | B6: manual | C6: =IF(manual_I="manual",1,IF(manual_I="semi-automated",2,IF(manual_I="fully automated",3,IF(component_level="",1,IF(component_level=2,3,CHOOSE(ss_cat2,1,3,3)))))) -> 1 | D6: 1 = fully manual system, 2 = semi-automated system, 3 = fully automated system. | E6: Based on system size and component level (see cell comment), unless user overrides on input sheet
A8: Valves and Instrumentation
A9: Size of valves for influent and treated water lines | B9: in_valve_size | C9: =in_out_pipe_diam -> 1.5 | D9: inches
A10: Size of valves for process line | B10: tank_valve_size | C10: =proc_pipe_diam -> 2 | D10: inches
A11: Size of valves for backwash pipe line | B11: back_valve_size | C11: =back_pipe_diam -> 2.5 | D11: inches
A12: Size of valves for acid pipe lines | B12: acid_valve_size | C12: =acid_pipe_diam -> 0.5 | D12: inches
A13: Size of valves for caustic pipe lines | B13: caustic_valve_size | C13: =caustic_pipe_diam -> 0.5 | D13: inches
A14: Size of valves for bypass line | B14: bypass_valve_size | C14: =bp_pipe_diam -> 0 | D14: inches
A15: Size of valves for ferric chloride line | B15: coag_valve_size | C15: =coag_pipe_diam -> 0 | D15: inches
A16: Size of valves for polymer line | B16: polymer_valve_size | C16: =polymer_pipe_diam -> 0 | D16: inches
A18: Number of MOVs on process line per vessel | B18: proc_MOV_vessel | C18: =VLOOKUP(IF(Num_tanks=1,"proc_mov_vessel_par","proc_mov_vessel_ser"),valve_table,manual+1,FALSE) -> 0 | D18: valves/vessel | E18: Depends on whether system is operated in parallel or series (lead/lag)
A19: Number of MOVs for process line | B19: tot_proc_MOVs | C19: =final_num_tanks*proc_MOV_vessel+total_booster_pumps*VLOOKUP("proc_MOV_pump",valve_table,manual+1,FALSE) -> 0 | D19: valves
A20: Number of MOVs for backwash line | B20: tot_back_MOVs | C20: =final_num_tanks*VLOOKUP("back_MOV_vessel",valve_table,manual+1,FALSE)+backwash_pumps*VLOOKUP("back_MOV_pump",valve_table,manual+1,FALSE)+num_back_tanks*VLOOKUP("back_MOV_tank",valve_table,manual+1,FALSE)+IF(no_backwash=1,VLOOKUP("back_MOV_no_back",valve_table,manual+1,FALSE),0)+num_neut_tanks*VLOOKUP("back_MOV_neut",valve_table,manual+1,FALSE) -> 0 | D20: valves
A21: Number of MOVs for acid line | B21: tot_acid_MOVs | C21: =VLOOKUP("acid_MOV_pump",valve_table,manual+1,FALSE)*(pump_chem_acid+acid_pumps)+VLOOKUP("chem_MOV_day",valve_table,manual+1,FALSE)*day_tanks_acid -> 0 | D21: valves
A22: Number of MOVs for caustic line | B22: tot_caustic_MOVs | C22: =IF(caustic_valve_size=0,0,VLOOKUP("caustic_MOV_pump",valve_table,manual+1,FALSE)*(pump_chem_caustic+caustic_pumps)+VLOOKUP("chem_MOV_day",valve_table,manual+1,FALSE)*day_tanks_caustic) -> 0 | D22: valves
A23: Number of MOVs for ferric chloride line | B23: tot_coag_MOVs | C23: =IF(coag_day_gal=0,0,cm_pumps_coag*VLOOKUP("chem_MOV_pump",valve_table,manual+1,FALSE)) -> 0 | D23: valves
A24: Number of MOVs for polymer addition line | B24: tot_polymer_MOVs | C24: =IF(polymer_day=0,0,(cm_pumps_polymer)*VLOOKUP("chem_MOV_pump",valve_table,manual+1,FALSE)) -> 0 | D24: valves
A25: Number of MOVs for bypass line | B25: tot_bp_MOVs | C25: =IF(bp_pct=0,0,VLOOKUP("tot_bp_movs",valve_table,manual+1,FALSE)) -> 0 | D25: valves
A26: Total number of MOVs | B26: tot_MOVs | C26: =tot_proc_MOVs+tot_back_MOVs+tot_acid_MOVs+tot_caustic_MOVs+tot_bp_MOVs+total_res_MOVs+tot_polymer_MOVs -> 0 | D26: valves
A27: Number of manual valves on process line per vessel | B27: proc_man_vessel_cont | C27: =VLOOKUP(IF(Num_tanks=1,"proc_man_vessel_par","proc_man_vessel_ser"),valve_table,manual+1,FALSE) -> 3 | D27: valves/vessel
A28: Number of manual valves for process line | B28: tot_proc_man | C28: =(proc_man_vessel_cont+proc_man_vessel)*final_num_tanks+total_booster_pumps*VLOOKUP("proc_man_pump",valve_table,manual+1,FALSE) -> 8 | D28: valves
A29: Number of manual valves for backwash line | B29: tot_back_man | C29: =final_num_tanks*VLOOKUP("back_man_vessel",valve_table,manual+1,FALSE)+backwash_pumps*VLOOKUP("back_man_pump",valve_table,manual+1,FALSE)+num_back_tanks*VLOOKUP("back_man_tank",valve_table,manual+1,FALSE)+IF(no_backwash=1,VLOOKUP("back_man_no_back",valve_table,manual+1,FALSE),0)+num_neut_tanks*VLOOKUP("back_man_neut",valve_table,manual+1,FALSE) -> 5 | D29: valves
A30: Number of manual valves for acid line | B30: tot_acid_man | C30: =VLOOKUP("acid_man_pump",valve_table,manual+1,FALSE)*(pump_chem_acid+acid_pumps)+VLOOKUP("chem_man_day",valve_table,manual+1,FALSE)*day_tanks_acid -> 5 | D30: valves
A31: Number of manual valves for caustic line | B31: tot_caustic_man | C31: =IF(caustic_valve_size=0,0,VLOOKUP("caustic_man_pump",valve_table,manual+1,FALSE)*(pump_chem_caustic+caustic_pumps)+VLOOKUP("chem_man_day",valve_table,manual+1,FALSE)*day_tanks_caustic) -> 4 | D31: valves
A32: Number of manual valves for ferric chloride line | B32: tot_coag_man | C32: =IF(coag_day_gal=0,0,(cm_pumps_coag)*VLOOKUP("chem_man_pump",valve_table,manual+1,FALSE)) -> 0 | D32: valves
A33: Number of manual valves for polymer addition line | B33: tot_polymer_man | C33: =IF(polymer_day=0,0,(cm_pumps_polymer)*VLOOKUP("chem_man_pump",valve_table,manual+1,FALSE)) -> 0 | D33: valves
A34: Number of manual valves for bypass line | B34: tot_bp_man | C34: =IF(bp_pct=0,0,VLOOKUP("tot_bp_man",valve_table,manual+1,FALSE)) -> 0 | D34: valves
A35: Number of check valves backwash line | B35: tot_back_chv | C35: =back_chv_pump*backwash_pumps+IF(no_backwash=1,back_chv_no_back,0) -> 1 | D35: valves
A36: Number of check valves for acid line | B36: tot_acid_chv | C36: =acid_chv_pump*(pump_chem_acid+acid_pumps) -> 4 | D36: valves
A37: Number of check valves for caustic line | B37: tot_caustic_chv | C37: =IF(caustic_valve_size=0,0,caustic_chv_pump*(pump_chem_caustic+caustic_pumps)) -> 4 | D37: valves
A38: Number of check valves for ferric chloride line | B38: tot_coag_chv | C38: =coag_chv_pump*cm_pumps_coag -> 0 | D38: valves
A39: Number of check valves polymer line | B39: tot_polymer_chv | C39: =polymer_chv_pump*cm_pumps_polymer -> 0 | D39: valves
A41: Size of flow meters for influent line | B41: in_meter_size | C41: =in_out_pipe_diam -> 1.5 | D41: inches
A42: Size of flow meters for process line | B42: proc_meter_size | C42: =proc_pipe_diam -> 2 | D42: inches
A43: Size of flow meters for backwash line | B43: back_meter_size | C43: =back_pipe_diam -> 2.5 | D43: inches
A44: Number of flow meters for process line | B44: tot_fm_proc | C44: =fm_proc*final_num_tanks -> 0 | D44: units
A46: Total level switch/alarms | B46: tot_level_switch | C46: =final_num_tanks*IF(ss_cat2=1,level_switch_small,level_switch) -> 0 | D46: units
A47: Total high/low alarms for backwash tanks | B47: tot_back_alarm | C47: =num_back_tanks*alarm_back -> 0 | D47: units
A48: Total high/low alarms for chemical tanks | B48: tot_chem_alarm | C48: =alarm_chem*(num_acid_tanks+num_caustic_tanks+day_tanks_acid+day_tanks_caustic) -> 3 | D48: units
A49: Total pH controls | B49: pH_controls | C49: =IF(acid_storage_total=0,0,pH_control_vessel*final_num_tanks)+IF(ss_cat2=1,add_pH_controls_small,add_pH_controls) -> 0 | D49: units
A50: Total turbidity meters | B50: tot_turb_meters | C50: =IF(ss_cat2=1,turb_tank_small*final_num_tanks+add_turb_small,turb_tank*final_num_tanks+add_turb) -> 0 | D50: units
A51: Total temperature meters | B51: tot_temp_meters | C51: =IF(ss_cat2=1,temp_meters_small,temp_meters) -> 0 | D51: units
A52: Total head loss sensors | B52: tot_head_sens | C52: =IF(ss_cat2=1,head_tank_small,head_tank)*final_num_tanks -> 0 | D52: units
A53: Sampling ports | B53: ports | C53: =ports_tank*final_num_tanks+add_ports+IF(bp_pct>0,ports_bp,0) -> 5 | D53: units
A54: Total drive controllers | B54: tot_switches | C54: =IF(manual<>3,0,S_booster_pump*total_booster_pumps+S_back_pump*backwash_pumps+S_res_pump*(res_pumps+res_pumps_n+cm_pumps_coag+cm_pumps_coag_n+cm_pumps_polymer)+CHOOSE(transfer_method,S_slurry,S_eductor*eductors,0)+CHOOSE(res_transfer_method,S_slurry*(res_slurry_pumps+n_res_slurry_pumps),S_eductor*(res_eductors+n_res_eductors),0)+S_cm_pump*(pump_chem_acid+pump_chem_caustic)+S_chem_pump*(caustic_pumps+acid_pumps)+S_mixer*(nmixers+hmixers+cmixers_acid+cmixers_caustic+dmixers_acid+dmixers_caustic+polymer_cmixers+coag_cmixers)) -> 0 | D54: units
A56: System Controls
A57: Flow meter lookup code - influent and treated water | B57: fm_lkp_io | C57: =IF(OUTPUT!L266=1,"flow_op",IF(OUTPUT!L267=1,"flow_prop",IF(OUTPUT!L268=1,"flow_ven","flow_mag"))) -> flow_prop | E57: These codes are used to look up SCADA requirements, which depend on the type of flow meter selected.
A58: Flow meter lookup code - process | B58: fm_lkp_proc | C58: =IF(OUTPUT!L271=1,"flow_op",IF(OUTPUT!L272=1,"flow_prop",IF(OUTPUT!L273=1,"flow_ven","flow_mag"))) -> flow_mag
A59: Flow meter lookup code - backwash | B59: fm_lkp_back | C59: =IF(OUTPUT!L276=1,"flow_op",IF(OUTPUT!L277=1,"flow_prop",IF(OUTPUT!L278=1,"flow_ven","flow_mag"))) -> flow_prop
A60: Flow meter lookup code - residuals | B60: fm_lkp_res | C60: =IF(OUTPUT!L281=1,"flow_op",IF(OUTPUT!L282=1,"flow_prop",IF(OUTPUT!L283=1,"flow_ven","flow_mag"))) -> flow_prop
A61: Total discrete inputs | B61: discrete_inputs | C61: =VLOOKUP(fm_lkp_io,port_table,2,FALSE)*tot_fm_in+VLOOKUP(fm_lkp_proc,port_table,2,FALSE)*tot_fm_proc+VLOOKUP(fm_lkp_back,port_table,2,FALSE)*tot_fm_back+VLOOKUP(fm_lkp_res,port_table,2,FALSE)*tot_fm_res+VLOOKUP("alarm",port_table,2,FALSE)*(tot_level_switch+tot_back_alarm+tot_chem_alarm+tot_res_alarm)+VLOOKUP("ph",port_table,2,FALSE)*pH_controls+VLOOKUP("temp",port_table,2,FALSE)*tot_temp_meters+VLOOKUP("turb",port_table,2,FALSE)*tot_turb_meters+VLOOKUP("head",port_table,2,FALSE)*tot_head_sens+VLOOKUP("port",port_table,2,FALSE)*ports+VLOOKUP("switch",port_table,2,FALSE)*tot_switches+VLOOKUP("valve",port_table,2,FALSE)*tot_MOVs -> 9 | D61: units
A62: Total discrete outputs | B62: discrete_outputs | C62: =IF(manual=2,0,VLOOKUP(fm_lkp_io,port_table,3,FALSE)*tot_fm_in+VLOOKUP(fm_lkp_proc,port_table,3,FALSE)*tot_fm_proc+VLOOKUP(fm_lkp_back,port_table,3,FALSE)*tot_fm_back+VLOOKUP(fm_lkp_res,port_table,3,FALSE)*tot_fm_res+VLOOKUP("alarm",port_table,3,FALSE)*(tot_level_switch+tot_back_alarm+tot_chem_alarm+tot_res_alarm)+VLOOKUP("ph",port_table,3,FALSE)*pH_controls+VLOOKUP("temp",port_table,3,FALSE)*tot_temp_meters+VLOOKUP("turb",port_table,3,FALSE)*tot_turb_meters+VLOOKUP("head",port_table,3,FALSE)*tot_head_sens+VLOOKUP("port",port_table,3,FALSE)*ports+VLOOKUP("switch",port_table,3,FALSE)*tot_switches+VLOOKUP("valve",port_table,3,FALSE)*tot_MOVs) -> 4 | D62: units
A63: Total analog inputs | B63: analog_inputs | C63: =VLOOKUP(fm_lkp_io,port_table,4,FALSE)*tot_fm_in+VLOOKUP(fm_lkp_proc,port_table,4,FALSE)*tot_fm_proc+VLOOKUP(fm_lkp_back,port_table,4,FALSE)*tot_fm_back+VLOOKUP(fm_lkp_res,port_table,4,FALSE)*tot_fm_res+VLOOKUP("alarm",port_table,4,FALSE)*(tot_level_switch+tot_back_alarm+tot_chem_alarm+tot_res_alarm)+VLOOKUP("ph",port_table,4,FALSE)*pH_controls+VLOOKUP("temp",port_table,4,FALSE)*tot_temp_meters+VLOOKUP("turb",port_table,4,FALSE)*tot_turb_meters+VLOOKUP("head",port_table,4,FALSE)*tot_head_sens+VLOOKUP("port",port_table,4,FALSE)*ports+VLOOKUP("switch",port_table,4,FALSE)*tot_switches+VLOOKUP("valve",port_table,4,FALSE)*tot_MOVs -> 3 | D63: units
A64: Total analog outputs | B64: analog_outputs | C64: =IF(manual=2,0,VLOOKUP(fm_lkp_io,port_table,5,FALSE)*tot_fm_in+VLOOKUP(fm_lkp_proc,port_table,5,FALSE)*tot_fm_proc+VLOOKUP(fm_lkp_back,port_table,5,FALSE)*tot_fm_back+VLOOKUP(fm_lkp_res,port_table,5,FALSE)*tot_fm_res+VLOOKUP("alarm",port_table,5,FALSE)*(tot_level_switch+tot_back_alarm+tot_chem_alarm+tot_res_alarm)+VLOOKUP("ph",port_table,5,FALSE)*pH_controls+VLOOKUP("temp",port_table,5,FALSE)*tot_temp_meters+VLOOKUP("turb",port_table,5,FALSE)*tot_turb_meters+VLOOKUP("head",port_table,5,FALSE)*tot_head_sens+VLOOKUP("port",port_table,5,FALSE)*ports+VLOOKUP("switch",port_table,5,FALSE)*tot_switches+VLOOKUP("valve",port_table,5,FALSE)*tot_MOVs) -> 0 | D64: units
A65: I/O Discrete Output Modules | B65: plc_discrete_output | C65: =ROUNDUP(discrete_outputs/32,0) -> 1 | D65: units
A66: I/O Discrete Input Modules | B66: plc_discrete_input | C66: =ROUNDUP(discrete_inputs/32,0) -> 1 | D66: units
A67: I/O Combination Analog Modules | B67: plc_combination_analog | C67: =ROUNDUP((analog_inputs + analog_outputs)/12,0) -> 1 | D67: units
A68: Total number of PLC slots used | B68: plc_slots | C68: =plc_cpu + plc_ethernet + plc_discrete_input + plc_discrete_output + plc_combination_analog -> 7 | D68: units
A69: Expansions required | B69: plc_expansions | C69: =IF(plc_slots<=9,0,ROUNDUP((plc_slots-9)/8,0)) -> 0 | D69: units
A70: PLC Rack/Power Supplies | B70: plc_rack | C70: =1+plc_expansions -> 1 | D70: units
A71: Base Expansion Modules | B71: plc_base_expansion | C71: =plc_expansions -> 0 | D71: units
A72: Base Expansion Controller Modules | B72: plc_base_expansion_controller | C72: =plc_expansions -> 0 | D72: units
A73: Number of computer workstations | B73: workstations | C73: =ROUNDUP(Operator_LOE/2080/shifts_day/workstation_ratio,0) -> 1 | D73: units
A74: Number of printers | B74: printers | C74: =ROUNDUP(workstations/printer_ratio,0) -> 1 | D74: units

Sheet Residuals Management
A1: Residuals Management Calculations
A3: Calculation | B3: Range Name | C3: Value | D3: Units | E3: Guidance
A4: From Inputs
A5: Discharge option for spent regenerant | B5: res_reg_opt | C5: =IF(res_reg_opt_I="surface water",1,IF(res_reg_opt_I="POTW",2,3)) -> 2 | D5: <-- 1 for direct discharge to surface water, 2 for discharge to POTW, 3 for hazardous waste disposal
A6: Discharge option for spent backwash | B6: res_s2_opt | C6: =IF(res_s2_opt_I="surface water",1,IF(res_s2_opt_I="POTW",2,IF(res_s2_opt_I="recycle",3,IF(res_s2_opt_I="septic system",4,5)))) -> 3 | D6: <-- 1 for surface water, 2 for POTW, 3 for recycle,4 for septic system, 5 for evaporation pond
A7: Flow equalization for spent backwash | B7: res_s1_opt | C7: =IF(res_s1_opt_I="","",IF(OR(res_s2_opt=4,res_s2_opt=5),3,IF(res_s1_opt_I="holding tank",1,IF(throwaway<>1,IF(res_s1_opt_I="use neutralization tank",2,IF(res_s1_opt_I="none",3,"")),IF(res_s1_opt_I="none",2,""))))) ->  | D7: =IF(throwaway<>1,IF(res_s2_opt<>3,"<-- 1 for separate holding tank, 2 for use regenerant neutralization tank, 3 for no flow equalization","<--1 for separate holding tank, 2 for use regenerant neutralization tank"),IF(res_s2_opt<>3,"<-- 1 for holding tank, 2 for no flow equalization","")) -> 
A8: Characteristics of spent media | B8: media_haz | C8: =IF(media_haz_I="","",IF(media_haz_I="hazardous",2,IF(media_haz_I="radioactive",3,IF(media_haz_I="radioactive hazardous",4,1)))) -> 1 | D8: <-- 1 for non-hazardous, 2 for hazardous, 3 for radioactive, 4 for radioactive hazardous
A9: Characteristics of holding tank solids | B9: solids_haz | C9: =IF(OR(res_s2_opt=5,res_s2_opt=4),1,IF(solids_haz_I="hazardous",2,IF(solids_haz_I="radioactive",3,IF(solids_haz_I="radioactive hazardous",4,1)))) -> 1 | D9: <-- 1 for non-hazardous, 2 for hazardous, 3 for radioactive, 4 for radioactive hazardous
A10: Characteristics of neutralization tank solids | B10: rsolids_haz | C10: =IF(rsolids_haz_I="hazardous",2,IF(rsolids_haz_I="radioactive",3,IF(rsolids_haz_I="radioactive hazardous",4,1))) -> 1 | D10: <-- 1 for non-hazardous, 2 for hazardous, 3 for radioactive, 4 for radioactive hazardous
A12: Spent Backwash
A13: Single event volume | B13: res_vol1 | C13: =water_flush*backwash_time -> 490 | D13: gal | E13: Backwashing one vessel
A14: Time between events | B14: res_stagger_time1 | C14: =back_interval*60/final_num_tanks -> 21600 | D14: minutes
A15: Actual residuals discharge flow rate | B15: res_flow_actual1 | C15: =IF(OR(res_s1_opt=1,res_s2_opt=3,AND(throwaway<>1,res_s1_opt=2)),res_vol1/res_stagger_time1,res_vol1/backwash_time) -> 0.02268518519 | D15: gpm | E15: Accounts for flow equalization, if used
A16: Design residuals discharge flow rate | B16: res_flow1 | C16: =IF(OR(res_s1_opt=1,AND(throwaway=1,res_s2_opt=3)),res_cap_factor*res_vol1/res_stagger_time1,IF(AND(throwaway<>1,res_s1_opt=2),res_cap_factor_n*res_vol1/res_stagger_time1,res_flow_actual1)) -> 0.04537037037 | D16: gpm | E16: Accounts for less than perfect staggering if flow equalization is used
A17: Annual residuals dischage | B17: res_flow_annual1 | C17: =res_vol1*final_num_tanks*(365*24/back_interval) -> 11923.33333 | D17: gal
A19: Spent Regenerant
A20: Single event volume | B20: res_vol2 | C20: =IF(throwaway=1,0,media_volume_gal*finalrinse_flow+acid_vol+caustic_vol) -> 0 | D20: gal | E20: Regenerating one vessel
A21: Time between events | B21: res_stagger_time2 | C21: =IF(throwaway=1,0,regen_freq*24*60/num_treat_lines) -> 0 | D21: minutes
A22: Actual residuals discharge flow rate | B22: res_flow_actual2 | C22: =IF(res_stagger_time2=0,0,res_vol2/res_stagger_time2) -> 0 | D22: gpm | E22: Always accounts for flow equalization
A23: Design residuals discharge flow rate | B23: res_flow2 | C23: =IF(res_stagger_time2=0,0,res_cap_factor_n*res_vol2/res_stagger_time2) -> 0 | D23: gpm | E23: Accounts for less than perfect staggering due to flow equalization
A24: Annual residuals dischage | B24: res_flow_annual2 | C24: =res_vol2*final_num_tanks*(365*24/back_interval) -> 0 | D24: gal
A26: Holding/Septic Tank/Evaporation Pond Solids
A27: TSS in residuals (influent TSS removal contribution) | C27: =(influent_TSS-effluent_TSS)*average_flow*1000000*(back_interval/24)/(res_vol1*final_num_tanks) -> 321.4285714 | D27: ppm
A28: TSS in residuals (media attrition contribution) | C28: =media_loss_vol_annual*media_density*453590/(res_flow_annual1*3.78) -> 0 | D28: ppm
A29: TSS in residuals | B29: TSS_residuals | C29: =SUM(C27:C28) -> 321.4285714 | D29: ppm | E29: Because backwash occurs more frequently than regeneration, all accumulated solids go with backwash
A30: Evaporation pond TSS accumulation | B30: ep_solids | C30: =IF(res_s2_opt=5,TSS_residuals*res_flow_annual1*3.785/1000/453.59/dredging_freq,0) -> 0 | D30: lbs
A31: Annual TSS accumulation | C31: =IF(OR(res_s2_opt=5,AND(res_holding="none",num_sept_tanks=0)),0,TSS_residuals*IF(coag_res=1,coag_TSSrem,htank_TSSrem)*res_flow_annual1*3.785/1000/453.59) -> 7.995112602 | D31: lbs/year
A32: Annual coagulant accumulation | C32: =IF(AND(res_holding<>"none",coag_res=1),IF(coag_type<>1,coag_dose*coag_spf*8.34*res_flow_annual1/10^6)+IF(coag_type<>2,polymer_dose*polymer_spf*8.34*res_flow_annual1/10^6),0) -> 0 | D32: lbs/year
A33: Annual solids accumulation | B33: ht_solids | C33: =C32+C31 -> 7.995112602 | D33: lbs/year
A34: Holding tank cleaning frequency | B34: sol_disp_freq | C34: =IF(res_s2_opt=5,dredging_freq,IF(res_holding="none",0,ROUNDUP((ht_solids/ht_solids_density*7.48)/(IF(res_holding="tanks",htanks*htank_vol,hbasins*hbasin_vol)*htank_clean_pct),0))) -> 1 | D34: times per year
A35: Septic tank cleaning frequency | B35: septic_disp_freq | C35: =IF(num_sept_tanks=0,0,(ht_solids/ht_solids_density*7.48)/(num_sept_tanks*sept_tank_vol*htank_clean_pct)) -> 0 | D35: times per year
A36: Residual solids quantity (total per event) | B36: res_solids | C36: =IF(AND(res_holding="none",num_sept_tanks=0,ep_solids=0),0,IF(res_s2_opt=5,ep_solids/2000,ht_solids/IF(res_holding="none",septic_disp_freq,sol_disp_freq)/2000)) -> 0.003997556301 | D36: tons
A38: Neutralization Tank Solids
A39: TSS in residuals (influent TSS removal contribution) | C39: =(influent_TSS-effluent_TSS)*average_flow*1000000*(back_interval/24)/((res_vol1+res_vol2)*final_num_tanks) -> 321.4285714 | D39: ppm
A40: TSS in residuals (media attrition contribution) | C40: =media_loss_vol_annual*media_density*453590/((res_flow_annual1+res_flow_annual2)*3.78) -> 0 | D40: ppm
A41: TSS in residuals | B41: TSS_residuals_n | C41: =IF(AND(throwaway<>1,res_s1_opt=2),SUM(C39:C40),0) -> 0 | D41: ppm | E41: Unless backwash is managed in neutralization tanks, assume no solids accumulation
A42: Neutralization tank annual TSS accumulation | C42: =IF(num_neut_tanks<>0,TSS_residuals_n*IF(coag_res_n=1,coag_TSSrem_n,ntank_TSSrem)*(res_flow_annual1+res_flow_annual2)*3.785/1000/453.59,0) -> 0 | D42: lbs/year
A43: Neutralization tank annual coagulant accumulation | C43: =IF(AND(num_neut_tanks<>0,coag_res_n=1),coag_dose_n*coag_spf_n*8.34*(res_flow_annual1+res_flow_annual2)/10^6,0) -> 0 | D43: lbs/year
A44: Neutralization tank annual solids accumulation | B44: nt_solids | C44: =C43+C42 -> 0 | D44: lbs/year
A45: Neutralization tank cleaning frequency | B45: sol_disp_freq_n | C45: =IF(num_neut_tanks=0,0,ROUNDUP((nt_solids/nt_solids_density*7.48)/(num_neut_tanks*neut_tank_vol*ntank_clean_pct),0)) -> 0 | D45: times per year
A46: Residual solids quantity (total per event) | B46: res_solids_n | C46: =IF(OR(num_neut_tanks=0,sol_disp_freq_n=0),0,nt_solids/sol_disp_freq_n)/2000 -> 0 | D46: tons
A48: Spent Media
A49: Replacement/disposal frequency | B49: disp_freq | C49: =IF(throwaway=1,365/regen_freq,IF(media_life="NA",365/(regen_freq*max_regen),1/media_life)) -> 1.045845272 | D49: times per year
A50: Spent media quantity (total per event) | B50: spent_media | C50: =IF(throwaway=1,media_per_vessel*num_treat_lines,(total_media_cf-media_loss_vol_annual)*media_density)/2000 -> 0.3558835428 | D50: tons | E50: For regenerated systems this is reduced by one year's media loss, assuming disposal takes place before adding loss replacement for the year
A51: Spent media quantity (average per year) | B51: spent_media_yr | C51: =spent_media*disp_freq -> 0.3721991207 | D51: tons
A53: Capital Items
A54: Spent backwash holding tanks
A55: Maximum holding tank size | B55: max_htank_size | C55: =MAX(VLOOKUP(10^6,st_bwt_cost_cl,1)-1,VLOOKUP(10^6,fg_bwt_cost_cl,1)-1,VLOOKUP(10^6,hdpe_bwt_cost_cl,1)-1) -> 289000 | D55: gal | E55: The largest size for which costs are available.
A56: Number of holding tanks | B56: htanks | C56: =IF(coag_res=1,0,IF(OR(res_s1_opt=1,AND(throwaway=1,res_s2_opt=3)),ROUNDUP(res_cap_factor*res_vol1/max_htank_size,0),0)) -> 1 | D56: units | E56: Use basins, instead of tanks, when cogulant is added
A57: Holding tank volume | B57: htank_vol | C57: =IF(htanks=0,0,res_cap_factor*res_vol1/htanks) -> 980 | D57: gal
A59: Spent backwash holding basins
A60: Holding basin redundancy factor | B60: hbasin_redun | C60: =IF(coag_res=1,ROUNDUP(res_coag_settle_time/res_stagger_time1,0),1) -> 1 | E60: To account for minumum coagulation time, when concrete basins are used, rather than tanks
A61: Number of holding basins | B61: hbasins | C61: =IF(OR(res_s1_opt=1,AND(throwaway=1,res_s2_opt=3)),hbasins_default*hbasin_redun,0) -> 1 | D61: units | E61: If concrete basins are used, rather than tanks
A62: Total residuals storage volume in cubic feet | B62: total_hvol_ft | C62: =IF(hbasins=0,0,res_cap_factor*res_vol1*hbasin_redun/7.48) -> 131.0160428 | D62: cubic feet | E62: If concrete basins are used, rather than tanks
A63: Residuals storage volume per basin in cubic feet | B63: hvol_ft | C63: =IF(hbasins=0,0,total_hvol_ft/hbasins) -> 131.0160428 | D63: cubic feet | E63: If concrete basins are used, rather than tanks
A64: Residuals basin operating depth | B64: hbasin_op_depth | C64: =IF(hbasins=0,0,ROUNDUP(hvol_ft^(1/3)*holding_ratio,0)) -> 4 | D64: ft | E64: If concrete basins are used, rather than tanks
A65: Residuals basin width | B65: hbasin_width | C65: =IF(hbasins=0,0,ROUNDUP((hvol_ft/hbasin_op_depth)^0.5,0)) -> 6 | D65: ft | E65: If concrete basins are used, rather than tanks
A66: Residuals basin length | B66: hbasin_length | C66: =hbasin_width -> 6 | D66: ft | E66: If concrete basins are used, rather than tanks
A67: Residuals basin depth including freeboard | B67: hbasin_depth | C67: =IF(hbasins=0,0,hbasin_op_depth+holding_freeboard) -> 7 | D67: ft | E67: If concrete basins are used, rather than tanks
A68: Residuals basin volume | B68: hbasin_vol | C68: =ROUND(hbasin_width*hbasin_length*hbasin_depth*7.48,0) -> 1885 | D68: gal | E68: If concrete basins are used, rather than tanks
A69: Concrete volume | B69: hconc_vol | C69: =(2*(hbasin_width*hbasins+conc_thick*(hbasins+1))*hbasin_depth*conc_thick+(hbasins+1)*hbasin_length*hbasin_depth*conc_thick+(hbasin_length+2*conc_thick)*(hbasin_width*hbasins+conc_thick*(hbasins+1))*conc_thick)/27 -> 9.62962963 | D69: cubic yards | E69: If concrete basins are used, rather than tanks
A70: Excavation volume | B70: hexcavation_vol | C70: =IF(hbasins=0,0,((hbasins*hbasin_width+(hbasins+1)*conc_thick+overexcavate)*(hbasin_length+2*conc_thick+overexcavate)*(hbasin_depth+conc_thick+overexcavate)+0.5*(3*(hbasin_depth+conc_thick+overexcavate)*(hbasin_depth+conc_thick+overexcavate)*(hbasin_length+2*conc_thick+overexcavate)))/27) -> 160 | D70: cubic yards | E70: If concrete basins are used, rather than tanks
A71: Backfill volume | B71: hbackfill_vol | C71: =IF(hbasins=0,0,hexcavation_vol-(hbasins*hbasin_width+(hbasins+1)*conc_thick)*(hbasin_length+2*conc_thick)*(hbasin_depth+conc_thick)/27) -> 141.037037 | D71: cubic yards | E71: If concrete basins are used, rather than tanks
A72: Railing length | B72: hrailing | C72: =IF(hbasins=0,0,2*(hbasins*hbasin_width+2*conc_thick/2+(hbasins-1)*conc_thick)+2*(hbasin_length+2*conc_thick/2)) -> 28 | D72: lf | E72: If concrete basins are used, rather than tanks
A74: Residuals holding type selected | B74: res_holding | C74: =IF(AND(hbasins<>0,coag_res=1),"basins",IF(OUTPUT!L75=1,"basins",IF(OR(OUTPUT!L76=1,OUTPUT!L77=1,OUTPUT!L78=1),"tanks","none"))) -> tanks | E74: Basins when coagulant is added; otherwise based on priority lookups on the output sheet
A76: Neutralization tanks
A77: Total volume required | B77: ntank_vol_total | C77: =IF(throwaway=1,0,IF(res_s1_opt=2,res_cap_factor_n*(res_vol1+res_vol2),res_cap_factor_n*res_vol2)) -> 0 | D77: gal
A78: Maximum neutralization tank size | B78: max_ntank_size | C78: =MAX(VLOOKUP(10^6,st_bwt_cost_cl,1)-1,VLOOKUP(10^6,fg_bwt_cost_cl,1)-1,VLOOKUP(10^6,hdpe_bwt_cost_cl,1)-1) -> 289000 | D78: gal | E78: The largest size for which costs are available. Because spent regenerant is dilute, chemical resistant tanks are not required.
A79: Number of neutralization tanks | B79: num_neut_tanks | C79: =IF(throwaway=1,0,(ROUNDUP(C77/max_ntank_size,0))) -> 0 | D79: units
A80: Volume of neutralization tanks | B80: neut_tank_vol | C80: =IF(throwaway=1,0,ntank_vol_total/num_neut_tanks) -> 0 | D80: gal
A82: Residuals Mixers
A83: Maximum mixer horsepower (holding and neutralization tanks) | B83: hmix_hp_max | C83: =MAX(VLOOKUP(10^6,port_mix_cost_cl,1)-0.1,VLOOKUP(10^6,mount_mix_cost_cl,1)-0.1,VLOOKUP(10^6,imp_mix_cost_cl,1)-0.1) -> 30 | D83: hp
A84: Maximum mixer horsepower (storage tanks) | B84: cmix_hp_max | C84: =MAX(VLOOKUP(10^6,port_mix_cost_cl,1)-0.1,VLOOKUP(10^6,mount_mix_cost_cl,1)-0.1,VLOOKUP(10^6,imp_mix_cost_cl,1)-0.1) -> 30 | D84: hp
A85: Mixers per holding tank | B85: hmix_per_tank | C85: =IF(AND(res_holding<>"none",coag_res=1,coag_type<>1),ROUNDUP(IF(res_holding="tanks",htank_vol,hbasin_vol)/1000*hmix_hp_per/hmix_hp_max,0),0) -> 0 | D85: units
A86: Number of holding tank mixers | B86: hmixers | C86: =IF(AND(res_holding<>"none",coag_res=1),IF(res_holding="tanks",htanks,hbasins)*hmix_per_tank,0) -> 0 | D86: units | E86: If coagulant is used
A87: Mixer size for holding tanks | B87: hmix_size | C87: =IF(AND(res_holding<>"none",coag_res=1,coag_type<>1),MAX(min_hmix_hp,IF(res_holding="tanks",htank_vol,hbasin_vol)/1000*hmix_hp_per/hmix_per_tank),0) -> 0 | D87: hp
A88: Mixers per neutralization tank | B88: nmix_per_tank | C88: =ROUNDUP(neut_tank_vol/1000*nmix_hp_per/hmix_hp_max,0) -> 0 | D88: units
A89: Number of neutralization tank mixers | B89: nmixers | C89: =num_neut_tanks*nmix_per_tank -> 0 | D89: units | E89: Mixers are always required for neutralization, even without coagulant addition
A90: Mixer size for neutralization tanks | B90: nmix_hp | C90: =IF(num_neut_tanks=0,0,MAX(min_hmix_hp,neut_tank_vol/1000*nmix_hp_per/nmix_per_tank)) -> 0 | D90: hp
A92: Ferric Chloride Addition
A93: Pounds of pure ferric chloride needed per event for holding tank | B93: coag_day_lbs | C93: =IF(AND(res_holding<>"none",coag_res=1,coag_type<>1),coag_dose*8.34*res_vol1/10^6,0) -> 0 | D93: lbs
A94: Gallons of solution needed per event for holding tank | B94: coag_day_gal | C94: =coag_day_lbs/coag_pct/coag_density -> 0 | D94: gal
